Workbook

Sheet Background
C3: ACRP Deicing Runoff Management Decision Support Tool
C10: Background
D11: The ACRP Deicing Runoff Management Decision Support Tool was developed as part of the ACRP 02-71 research project. It was created to accompany ACRP Report 14 (2nd Edition) and help airport staff and consultants in applying the guidance in the report to conduct an initial screening analysis of possible deicing runoff management strategies at their facility. NOTE: Macros must be enabled in this tool in order for it to function properly.
C16: Summary
D17: This tool is intended to help airports identify the Source Reduction, Collection and Containment, Treatment/Disposal/Recycling, and Storage Best Management Practices (BMPs) that may be applicable and feasible at their facility. It represents a structured screening-level analysis of information provided by the user on key aspects of the facility and aircraft and airfield pavement deicing operations and controls. A list of the key pieces of information that the user will need to run the ACRP Deicing Runoff Management Decision Support Tool is provided in the accompanying User's Guide. This tool is intended to be applied to a single drainage area. This could involve the entire airport, or a subset of drainage basins where deicing operations are currently conducted or are planned in the future. For additional information, see the User's Guide. Users must be aware of the inherent limitations of this tool. Final evaluation, selection and design of BMPs will depend on a variety of site-specific factors that include physical and environmental setting, operational requirements (including safety), tenant community, and regulatory requirements. The generalized assumptions embedded in the tool may not be applicable to a particular facility. As a result, the results of the analysis provided through this tool should only be used as a basis for preliminary identification of BMPs to be subsequently investigated at a higher level of site-specific analysis. The tool is set up to allow the user to create different named scenarios that can be saved as a uniquely named tool file and/or as a printed report. Generally, required responses are highlighted in white boxes while information given to the user is displayed with a grey background. It is recommended that the pages on this tool be completed in the sequence they appear because questions on some pages are dependent on answers given in an earlier page, and certain BMPs may be incompatible with others. However, the Source Reduction page and its recommendations may be useful for certain users as a standalone analysis, and can be completed or skipped independent of the rest of the tool. A summary report is generated to document the analysis and provide ranked recommendations.
C24: Additional Resources
D25: ACRP Report 14
D26: Fact Sheets
D27: User Guide
D28: Worksheet

Sheet Start
C3: Start
C9: Topic
C11: Background information
D12: Prior to beginning work on the tool, please see the | F12: Worksheet
D13: Macros must be enabled in this tool in order for it to function properly.
D14: A deicing event is defined as a day when ADF is applied to aircraft.
D15: A defrosting event is defined as a deicing day when low volumes of ADF are applied to remove frost/hoarfrost from aircraft.
C17: Run-Specific Information
D18: Analyst
D19: Scenario Name
D20: Description
D21: Date | F21: =TODAY() -> 2020-04-17
D22: Airport
D23: Manually enter name of airport
D24: Choose nearest airport for weather data
C26: Weather Information
D27: Is weather data available for this airport?
D28: Average number of days with deicing events (including defrosting events) at airport
D29: Average number of days with frost deicing events (negligible precipitation) at airport
D30: Average number of days with events with snow > 1 inch (or liquid equivalent > 0.1 inch)
D31: Average winter temperature or average deicing event temperature (°F) | F31: =VLOOKUP(IF(airportName="NOT LISTED",airportNearest,airportName),Table1[[Column102]:[Column11]],2,FALSE) -> 
D32: Average winter precipitation (inches) | F32: =VLOOKUP(airportName,Table1[[Column102]:[Column22]],13, FALSE) -> 
C34: Deicer Use
D35: What type of aircraft deicing/anti-icing chemicals are used at the airport?
D36: What is the best data available on aircraft deicer applied in terms of?
D37: What type of deicing/anti-icing fluids are used at the airport? (Check all that apply)
D38: Enter average gallons pure propylene glycol applied annually. (round to the nearest 5,000 gallons)
D39: Enter average gallons pure ethylene glycol applied annually. (round to the nearest 5,000 gallons)
D40: What percentage of the above usage is associated with Type I fluid?
D41: For Type I fluid applied, is better data available on mixed fluid (as applied), or undiluted fluid (neat)?
D42: Enter average gallons mixed Type I fluid applied annually (round to nearest 5,000 gallons).
D43: Average Type I Fluid Mixture (% mix:% water) | F43: 55:45
D44: Enter average gallons undiluted Type I fluid used annually (round to nearest 5,000 gallons).
D45: Enter average gallons Type II fluid applied annually (round to nearest 5,000 gallons).
D46: Enter average gallons Type IV fluid applied annually (round to nearest 5,000 gallons).

Sheet Start - Guidance (deicer) (hidden)
A1: Deicer Use Input Questions
B2: USER QUESTION | C2: DROP DOWN ANSWERS | D2: SOURCE/NOTES
A3: DU1 | B3: Are propylene-glycol or ethylene-glycol based aircraft deicing/anti-icing chemicals used at the airport? | C3: propylene-glycol based aircraft deicing/anti-icing chemicals | D3: Go to Q2 (If Q4 is used, only ask 4a)
C4: ethylene-glycol based aircraft deicing/anti-icing chemicals | D4: Go to Q2 (If Q4 is used, only ask 4b)
C5: propylene-glycol and ethylene-glycol based aircraft deicing/anti-icing chemicals | D5: Go to Q2 (If Q4 is used, ask both 4a and 4b)
A7: DU2 | B7: The best data available on aircraft deicer applied is in terms of ____? | C7: gallons of pure propylene/ethylene glycol | D7: go to Q4
C8: gallons of deicing/anti-icing fluid | D8: go to Q3
A10: DU3 | B10: What type of deicing/anti-icing fluids are used at the airport? (Check all that apply) | C10: Type I fluids | D10: go to Q5
C11: Type II fluids | D11: go to Q8
C12: Type IV fluids | D12: go to Q9
A15: DU4a | B15: Enter average gallons pure propylene glycol applied annually. (round to the nearest 5,000 gallons) | C15: User data entry
A16: DU4b | B16: Enter average gallons pure ethylene glycol applied annually. (round to the nearest 5,000 gallons) | C16: User data entry
A18: DU5 | B18: For Type I fluid applied, is better data available on mixed fluid (as applied), or undiluted fluid (neat)? | C18: Mixed Fluid (as applied) | D18: Go to Q6
C19: Undiluted Fluid (neat) | D19: Go to Q7
A21: DU6a | B21: Enter average gallons mixed Type I fluid applied annually (round to nearest 5,000 gallons). | C21: User provided.
A22: DU6b | B22: Average Type I Fluid Mixture (% mix:% water) | C22: Allowable entries (% mix:% water) 60:40 55:45 50:50 45:55 40:60 35:65 30:70 | D22: Note: This question is also asked in the source reduction section.
A24: DU7 | B24: Enter average gallons undiluted Type I fluid used annually (round to nearest 5,000 gallons). | C24: User provided.
A26: DU8 | B26: Enter average gallons Type II fluid applied annually (round to nearest 5,000 gallons). | C26: User provided.
A28: DU9 | B28: Enter average gallons Type IV fluid applied annually (round to nearest 5,000 gallons). | C28: User provided.
A30: Tool Calculations to convert deicer use to glycols, BOD, COD and TOC:
B31: PG-based Type I mixed * %glycol * .88 = Propylene Glycol | D31: 88% is listed on Lyondell Acroplus ADF, Lyondell arctic plus, Octagon Octaflo EF Concentrate, Kilfrost DF Plus (88), Kilfrost Dfsustain, Safetemp ES Type I, Cryotech Polar Plus. 85-90 is listed on SafeTemp Aircraft De-Icer
B32: PG-based Type I unmixed * .88
B33: EG-based Type I mixed * %glycol * .88 | D33: 88% is listed on Octagon Octaflo EG Type I, >86% is listed on Cryotech Polar Shield TKS
B34: EG-based Type I unmixed * .88
B35: PG-based Type IV * .5 | D35: 50% is listed on Lyondell Safewing anti-icing fluid, and Cryotech Polar Guard Advance. UCAR Flightguard AD-480 lists 52%
B36: EG-based Type IV * .5
B37: PG-based Type II * .5 | D37: 50% is listed on Safewing MP II Flight
B38: EG-based Type II * .5
B39: Propylene Glycol = 1.1 * BOD5 | D39: ACRP Report 166
B40: Propylene Glycol = 0.59 * COD
B41: Propylene Glycol = 2.1 * TOC
B42: Ethylene Glycol = 2.1 * BOD5
B43: Ethylene Glycol = 0.78 * COD
B44: Ethylene Glycol = 2.6 * TOC
D45: PG is 8.647 pounds/gallon
A47: 1.4
B49: On average, how much aircraft deicer is applied at the airport annually? | C49: < 40,000 gallons PG, < 45,000 gallons pure Type I ADF, < 91,000 gallons 50:50 mixed Type I ADF | D49: Based on minimum deicer use reported for ELG questionnaire for an on-site actively managed treatment operation (ISLIP - 43,500 gallons glycol)
C50: 40,000 < x < 80,000 gallons PG, 45,000 < x < 91,000 gallons pure Type I ADF, 91,000 < x < 182,000 gallons 50:50 mixed Type I ADF | D50: Based on maximum deicer use reported for ELG questionnaire where PFT is the only treatment method used. (Dead Horse AK 78,900 gallons glycol)
C51: 80,000 < x < 95,000 gallons PG, 91,000 < x < 119,000 gallons pure Type I ADF, 182,000 < x < 238,000 gallons 50:50 mixed Type I ADF
C52: > 95,000 gallons PG, > 119,000 gallons pure Type I ADF, > 238,000 gallons 50:50 mixed Type I ADF | D52: Based on minimum deicer use reported for ELG questionnaire for an on-site recycling (GRR - 98,200 gallons glycol) and Based on maximum deicer use reported for aerated lagoon with discharge to surface waters (BNA 91,500 gallons glycol)
B53: *Type I ADF*.88 = PG, mixed Type I ADF*.5=Type I ADF

Sheet SRP - Questions
C3: Source Reduction
C9: Topic | H9: Guidance
C11: Background Information
D12: This page assesses the applicable best management practices for the reduction of applied deicer fluid.
C14: Assumptions
D15: Forced air will only be used for defrosting and storms with snow depth <1"
D16: Alternative/Default - Forced air will be used for 10-15% of events
D17: Forced air will reduce fluid usage by 50-80%. Use 65% reduction as mid-point.
D18: Fluid savings associated with blend to temperature are based on PropyleneGlycol Type I fluids. Fluid savings will be greater if Ethylene Glycol Type I fluids are used.
C20: Forced Air
D21: Is forced air deicing currently conducted at the airport?
D22: What percentage of deicing trucks currently located at the airport are equipped with forced air? (C_FA%)
D23: Number of events suitable for Forced Air (N_FA) | F23: =deicingEventsInput-snowEventsInput-frostDeicingEventsInput -> 0
D24: Estimated current benefit from forced air technologies (compared to estimated usage without source reduction technology). Value listed is percent decrease in ADF usage. | F24: =(eventsSuitableForFA/deicingEventsInput)*trucksWithFAInput*0.65*GetPercentTypeI() -> 
D25: Estimated future benefit from forced air technologies (compared to estimated usage without source reduction technology). Value listed is percent decrease in ADF usage. | F25: =IF(deicingEventsInput<>"",(eventsSuitableForFA/deicingEventsInput)*0.65*GetPercentTypeI(),"") ->  | H25: =GetFluidReductionRanking(F25) -> Should consider forced air/fluid technology but need to consider site specific conditions and cost. Please see Fact Sheet 5 Forced Air/Fluid deicing for additional information.
C27: Blend to Temperature
D28: Is Blend to Temperature deicing currently conducted at airport?
D29: What percentage of deicing operations are conducted using Blend to Temperature technologies? (C_BTT%)
D30: What is the general level of ramp congestion?
D31: Is there a common area where a stationary blend to temperature system could be installed which is conventient to carrier operations?
D32: Estimated current benefit from blend to temperature technologies (compared to estimated usage without source reduction technology). Value listed is percent decrease in ADF usage. | F32: =futureBenefitFromBTT*deicingOperationsUsingBTTInput -> 
D33: Estimated future benefit from blend to temperature technologies (compared to estimated usage without source reduction technology). Value listed is percent decrease in ADF usage. | F33: =INDEX(bttMatrixTable, MATCH(duAvgTypeIFluidMixtureInput,fluidMixtureRatios,0),MATCH(avgTempInput,bttMatrixAFluidMins,1))*GetPercentTypeI() ->  | H33: =GetBTTRanking(F33) -> 
C35: Additional Technologies
D36: Do the air carriers or FBOs currently utilize any of the following technologies as described in the referenced fact sheets?
D37: Proactive anti-icing | H37: ACRP Report 14: Fact Sheet 3
D38: Physical removal of snow | H38: ACRP Report 14: Fact Sheet 7
D39: Hangared parking | H39: ACRP Report 14: Fact Sheet 8
D40: Hot water deicing | H40: ACRP Report 14: Fact Sheet 9
D41: Enclosed bucket deicing | H41: ACRP Report 14: Fact Sheet 10
D42: Enhanced weather forecasting | H42: ACRP Report 14: Fact Sheet 11
D43: Holdover time determinations system | H43: ACRP Report 14: Fact Sheet 12
D44: Reduced aircraft operations | H44: ACRP Report 14: Fact Sheet 14

Sheet weather data (hidden)
A1: Airport Info | L1: Winter Temperature Info (Fahrenheit) | P1: Snowfall and Precipitation Info (inches) | X1: Notes
A2: LocationID | B2: EffectiveDate | C2: Region | D2: DistrictOffice | E2: State | F2: StateName | G2: County | H2: CountyState | I2: City | J2: FacilityName | L2: Avg Min Winter Temp | M2: Avg Min Dec Temp | N2: Avg Min Jan Temp | O2: Avg Min Feb Temp | P2: Avg Dec Snowfall | Q2: Avg Jan Snowfall | R2: Avg Feb Snowfall | S2: Avg Annual Snowfall | T2: Avg Dec Precip | U2: Avg Jan Precip | V2: Avg Feb Precip | W2: Winter Precip
A3: Column1 | B3: Column2 | C3: Column3 | D3: Column4 | E3: Column5 | F3: Column6 | G3: Column7 | H3: Column8 | I3: Column9 | J3: Column10 | K3: Column102 | L3: Column11 | M3: Column12 | N3: Column13 | O3: Column14 | P3: Column15 | Q3: Column16 | R3: Column17 | S3: Column18 | T3: Column19 | U3: Column20 | V3: Column21 | W3: Column22 | X3: Column23
A4: BHM | B4: 2017-09-14 | C4: ASO | D4: JAN | E4: AL | F4: ALABAMA | G4: JEFFERSON | H4: AL | I4: BIRMINGHAM | J4: BIRMINGHAM-SHUTTLESWORTH INTL | K4: =CONCATENATE(Table1[[#This Row],[Column6]]," - ", Table1[[#This Row],[Column10]], " (", Table1[[#This Row],[Column1]],")") -> ALABAMA - BIRMINGHAM-SHUTTLESWORTH INTL (BHM) | L4: 35.7 | M4: 36.3 | N4: 33.8 | O4: 37.1 | P4: 0 | Q4: 1 | R4: 0 | S4: 2 | T4: 4.45 | U4: 4.84 | V4: 4.53 | W4: 13.82 | X4: For winter temps only Birmingham Airport was found.
A5: HSV | B5: 2017-09-14 | C5: ASO | D5: JAN | E5: AL | F5: ALABAMA | G5: MADISON | H5: AL | I5: HUNTSVILLE | J5: HUNTSVILLE INTL-CARL T JONES FIELD | K5: =CONCATENATE(Table1[[#This Row],[Column6]]," - ", Table1[[#This Row],[Column10]], " (", Table1[[#This Row],[Column1]],")") -> ALABAMA - HUNTSVILLE INTL-CARL T JONES FIELD (HSV) | L5: 33.8 | M5: 34.4 | N5: 31.8 | O5: 35.5 | P5: 0 | Q5: 1 | R5: 1 | S5: 3 | T5: 5.79 | U5: 4.88 | V5: 4.84 | W5: 15.5
A6: MOB | B6: 2017-09-14 | C6: ASO | D6: JAN | E6: AL | F6: ALABAMA | G6: MOBILE | H6: AL | I6: MOBILE | J6: MOBILE RGNL | K6: =CONCATENATE(Table1[[#This Row],[Column6]]," - ", Table1[[#This Row],[Column10]], " (", Table1[[#This Row],[Column1]],")") -> ALABAMA - MOBILE RGNL (MOB) | L6: 41.8 | M6: 42.2 | N6: 40 | O6: 43.3 | P6: none | Q6: none | R6: none | S6: 0 | T6: 5.08 | U6: 5.67 | V6: 5.12 | W6: 15.83
A7: ANC | B7: 2017-09-14 | C7: AAL | D7: NONE | E7: AK | F7: ALASKA | G7: ANCHORAGE | H7: AK | I7: ANCHORAGE | J7: TED STEVENS ANCHORAGE INTL | K7: =CONCATENATE(Table1[[#This Row],[Column6]]," - ", Table1[[#This Row],[Column10]], " (", Table1[[#This Row],[Column1]],")") -> ALASKA - TED STEVENS ANCHORAGE INTL (ANC) | L7: 12.7 | M7: 13.2 | N7: 11.1 | O7: 13.8 | P7: 17 | Q7: 11 | R7: 11 | S7: 74 | T7: 1.1 | U7: 0.75 | V7: 0.71 | W7: 2.56
A8: JNU | B8: 2017-09-14 | C8: AAL | D8: NONE | E8: AK | F8: ALASKA | G8: JUNEAU | H8: AK | I8: JUNEAU | J8: JUNEAU INTL | K8: =CONCATENATE(Table1[[#This Row],[Column6]]," - ", Table1[[#This Row],[Column10]], " (", Table1[[#This Row],[Column1]],")") -> ALASKA - JUNEAU INTL (JNU) | L8: 24.8 | M8: 25.6 | N8: 23.7 | O8: 25 | P8: 16 | Q8: 28 | R8: 17 | S8: 88 | T8: 5.83 | U8: 5.35 | V8: 4.13 | W8: 15.32
A9: BET | B9: 2017-09-14 | C9: AAL | D9: NONE | E9: AK | F9: ALASKA | G9: BETHEL | H9: AK | I9: BETHEL | J9: BETHEL | K9: =CONCATENATE(Table1[[#This Row],[Column6]]," - ", Table1[[#This Row],[Column10]], " (", Table1[[#This Row],[Column1]],")") -> ALASKA - BETHEL (BET) | L9: 3 | M9: 3.9 | N9: 0.8 | O9: 4.4 | P9: 11 | Q9: 10 | R9: 7 | S9: 62 | T9: 1.1 | U9: 0.79 | V9: 0.71 | W9: 2.62
A10: FAI | B10: 2017-09-14 | C10: AAL | D10: NONE | E10: AK | F10: ALASKA | G10: FAIRBANKS NORTH STAR | H10: AK | I10: FAIRBANKS | J10: FAIRBANKS INTL | K10: =CONCATENATE(Table1[[#This Row],[Column6]]," - ", Table1[[#This Row],[Column10]], " (", Table1[[#This Row],[Column1]],")") -> ALASKA - FAIRBANKS INTL (FAI) | L10: -14.2 | M10: -12.9 | N10: -16.9 | O10: -12.7 | P10: 12 | Q10: 10 | R10: 8 | S10: 65 | T10: 0.63 | U10: 0.59 | V10: 0.43 | W10: 1.64
A11: HOM | B11: 2017-09-14 | C11: AAL | D11: NONE | E11: AK | F11: ALASKA | G11: KENAI-COOK INLET | H11: AK | I11: HOMER | J11: HOMER | K11: =CONCATENATE(Table1[[#This Row],[Column6]]," - ", Table1[[#This Row],[Column10]], " (", Table1[[#This Row],[Column1]],")") -> ALASKA - HOMER (HOM) | L11: 19.9 | M11: 21.1 | N11: 18.8 | O11: 19.8 | P11: 10 | Q11: 9 | R11: 10 | S11: 48 | T11: 3.07 | U11: 2.64 | V11: 1.69 | W11: 7.42
A12: DLG | B12: 2017-09-14 | C12: AAL | D12: NONE | E12: AK | F12: ALASKA | G12: BRISTOL BAY | H12: AK | I12: DILLINGHAM | J12: DILLINGHAM | K12: =CONCATENATE(Table1[[#This Row],[Column6]]," - ", Table1[[#This Row],[Column10]], " (", Table1[[#This Row],[Column1]],")") -> ALASKA - DILLINGHAM (DLG) | L12: 11.2 | M12: 11.6 | N12: 9.5 | O12: 12.5 | P12: none | Q12: none | R12: none | S12: none | T12: 2.09 | U12: 1.77 | V12: 1.1 | W12: 4.65 | X12: For snowfall and precip stats only Dillingham was listed.
A13: ENA | B13: 2017-09-14 | C13: AAL | D13: NONE | E13: AK | F13: ALASKA | G13: KENAI-COOK INLET | H13: AK | I13: KENAI | J13: KENAI MUNI | K13: =CONCATENATE(Table1[[#This Row],[Column6]]," - ", Table1[[#This Row],[Column10]], " (", Table1[[#This Row],[Column1]],")") -> ALASKA - KENAI MUNI (ENA) | L13: 9.9 | M13: 11.2 | N13: 8.1 | O13: 10.4 | P13: 15 | Q13: 10 | R13: 11 | S13: 68 | T13: 1.34 | U13: 0.94 | V13: 0.87 | W13: 3.19
A14: ADQ | B14: 2017-09-14 | C14: AAL | D14: NONE | E14: AK | F14: ALASKA | G14: KODIAK ISLAND | H14: AK | I14: KODIAK | J14: KODIAK | K14: =CONCATENATE(Table1[[#This Row],[Column6]]," - ", Table1[[#This Row],[Column10]], " (", Table1[[#This Row],[Column1]],")") -> ALASKA - KODIAK (ADQ) | L14: 26.1 | M14: 26.3 | N14: 25.9 | O14: 26.1 | P14: 14 | Q14: 13 | R14: 15 | S14: 68 | T14: 8.74 | U14: 8.31 | V14: 6.14 | W14: 23.16
A15: OTZ | B15: 2017-09-14 | C15: AAL | D15: NONE | E15: AK | F15: ALASKA | G15: KOBUK | H15: AK | I15: KOTZEBUE | J15: RALPH WIEN MEMORIAL | K15: =CONCATENATE(Table1[[#This Row],[Column6]]," - ", Table1[[#This Row],[Column10]], " (", Table1[[#This Row],[Column1]],")") -> ALASKA - RALPH WIEN MEMORIAL (OTZ) | L15: -7.1 | M15: -4.1 | N15: -9.5 | O15: -7.8 | P15: 12 | Q15: 9 | R15: 10 | S15: 61 | T15: 0.75 | U15: 0.63 | V15: 0.67 | W15: 2.04
A16: SCC | B16: 2017-09-14 | C16: AAL | D16: NONE | E16: AK | F16: ALASKA | G16: NORTH SLOPE | H16: AK | I16: DEADHORSE | J16: DEADHORSE | K16: =CONCATENATE(Table1[[#This Row],[Column6]]," - ", Table1[[#This Row],[Column10]], " (", Table1[[#This Row],[Column1]],")") -> ALASKA - DEADHORSE (SCC) | L16: -21.2 | M16: -17.2 | N16: -23.1 | O16: -23.6 | P16: none | Q16: none | R16: none | S16: none | T16: none | U16: none | V16: none | W16: 0.41 | X16: For snowfall and precip stats airport not found.
A17: OME | B17: 2017-09-14 | C17: AAL | D17: NONE | E17: AK | F17: ALASKA | G17: NOME | H17: AK | I17: NOME | J17: NOME | K17: =CONCATENATE(Table1[[#This Row],[Column6]]," - ", Table1[[#This Row],[Column10]], " (", Table1[[#This Row],[Column1]],")") -> ALASKA - NOME (OME) | L17: -0.3 | M17: 2.2 | N17: -2.8 | O17: -0.5 | P17: 15 | Q17: 13 | R17: 12 | S17: 77 | T17: 1.06 | U17: 0.94 | V17: 0.94 | W17: 2.95
A18: KTN | B18: 2017-09-14 | C18: AAL | D18: NONE | E18: AK | F18: ALASKA | G18: KETCHIKAN GATEWAY | H18: AK | I18: KETCHIKAN | J18: KETCHIKAN INTL | K18: =CONCATENATE(Table1[[#This Row],[Column6]]," - ", Table1[[#This Row],[Column10]], " (", Table1[[#This Row],[Column1]],")") -> ALASKA - KETCHIKAN INTL (KTN) | L18: 39.6 | M18: 31 | N18: 28.8 | O18: 31.2 | P18: 9 | Q18: 13 | R18: 9 | S18: 40 | T18: 14.21 | U18: 15.39 | V18: 10.51 | W18: 13.88
A19: SIT | B19: 2017-09-14 | C19: AAL | D19: NONE | E19: AK | F19: ALASKA | G19: SITKA | H19: AK | I19: SITKA | J19: SITKA ROCKY GUTIERREZ | K19: =CONCATENATE(Table1[[#This Row],[Column6]]," - ", Table1[[#This Row],[Column10]], " (", Table1[[#This Row],[Column1]],")") -> ALASKA - SITKA ROCKY GUTIERREZ (SIT) | L19: 38 | M19: 27.8 | N19: 26.2 | O19: 27.6 | P19: 4 | Q19: 10 | R19: 8 | S19: 33 | T19: 8.86 | U19: 8.39 | V19: 6.5 | W19: =SUM(Table1[[#This Row],[Column19]:[Column20]]) -> 17.25 | X19: Airport not found for winter temp info. For snowfall and precip stats only Sitka was listed.
A20: PSG | B20: 2017-09-14 | C20: AAL | D20: NONE | E20: AK | F20: ALASKA | G20: WRANGELL-PETERSBURG | H20: AK | I20: PETERSBURG | J20: PETERSBURG JAMES A JOHNSON | K20: =CONCATENATE(Table1[[#This Row],[Column6]]," - ", Table1[[#This Row],[Column10]], " (", Table1[[#This Row],[Column1]],")") -> ALASKA - PETERSBURG JAMES A JOHNSON (PSG) | L20: 26.7 | M20: 27.2 | N20: 26 | O20: 27.1 | P20: 11 | Q20: 22 | R20: 16 | S20: 77 | T20: 11.06 | U20: 11.5 | V20: 7.36 | W20: 29.89
A21: AKN | B21: 2017-09-14 | C21: AAL | D21: NONE | E21: AK | F21: ALASKA | G21: BRISTOL BAY | H21: AK | I21: KING SALMON | J21: KING SALMON | K21: =CONCATENATE(Table1[[#This Row],[Column6]]," - ", Table1[[#This Row],[Column10]], " (", Table1[[#This Row],[Column1]],")") -> ALASKA - KING SALMON (AKN) | L21: 10.1 | M21: 108 | N21: 8.8 | O21: 10.9 | W21: 3.01 | X21: Airport not found for snow/precip stats.
A22: PHX | B22: 2017-09-14 | C22: AWP | D22: PHX | E22: AZ | F22: ARIZONA | G22: MARICOPA | H22: AZ | I22: PHOENIX | J22: PHOENIX SKY HARBOR INTL | K22: =CONCATENATE(Table1[[#This Row],[Column6]]," - ", Table1[[#This Row],[Column10]], " (", Table1[[#This Row],[Column1]],")") -> ARIZONA - PHOENIX SKY HARBOR INTL (PHX) | L22: 46.3 | M22: 44.8 | N22: 45.6 | O22: 48.7 | P22: none | Q22: none | R22: none | S22: none | T22: 0.87 | U22: 0.91 | V22: 0.91 | W22: 2.71 | X22: For winter temp and percip stats only Phoenix Airport, AZ listed.
A23: GCN | B23: 2017-09-14 | C23: AWP | D23: PHX | E23: AZ | F23: ARIZONA | G23: COCONINO | H23: AZ | I23: GRAND CANYON | J23: GRAND CANYON NATIONAL PARK | K23: =CONCATENATE(Table1[[#This Row],[Column6]]," - ", Table1[[#This Row],[Column10]], " (", Table1[[#This Row],[Column1]],")") -> ARIZONA - GRAND CANYON NATIONAL PARK (GCN) | L23: 13.7 | M23: 12.5 | N23: 12.4 | O23: 16.4 | P23: none | Q23: none | R23: none | S23: none | T23: 1.1 | U23: 1.57 | V23: 1.65 | W23: 4.46 | X23: For snowfall and precip stats only Grand Canyon was listed.
A24: TUS | B24: 2017-09-14 | C24: AWP | D24: PHX | E24: AZ | F24: ARIZONA | G24: PIMA | H24: AZ | I24: TUCSON | J24: TUCSON INTL | K24: =CONCATENATE(Table1[[#This Row],[Column6]]," - ", Table1[[#This Row],[Column10]], " (", Table1[[#This Row],[Column1]],")") -> ARIZONA - TUCSON INTL (TUS) | L24: 40.3 | M24: 39.1 | N24: 39.8 | O24: 42.2 | P24: none | Q24: none | R24: none | S24: none | T24: 1.02 | U24: 1.02 | V24: 0.94 | W24: 2.73 | X24: For snowfall and precip stats only Tucson was listed.
A25: IWA | B25: 2017-09-14 | C25: AWP | D25: PHX | E25: AZ | F25: ARIZONA | G25: MARICOPA | H25: AZ | I25: PHOENIX | J25: PHOENIX-MESA GATEWAY | K25: =CONCATENATE(Table1[[#This Row],[Column6]]," - ", Table1[[#This Row],[Column10]], " (", Table1[[#This Row],[Column1]],")") -> ARIZONA - PHOENIX-MESA GATEWAY (IWA) | L25: 46.3 | M25: 44.8 | N25: 45.6 | O25: 48.7 | W25: 2.71 | X25: Airport not found.
A26: FFZ | B26: 2017-09-14 | C26: AWP | D26: PHX | E26: AZ | F26: ARIZONA | G26: MARICOPA | H26: AZ | I26: MESA | J26: FALCON FLD | K26: =CONCATENATE(Table1[[#This Row],[Column6]]," - ", Table1[[#This Row],[Column10]], " (", Table1[[#This Row],[Column1]],")") -> ARIZONA - FALCON FLD (FFZ) | L26: 46.3 | M26: 44.8 | N26: 45.6 | O26: 48.7 | W26: 2.71 | X26: Airport not found.
A27: NYL | B27: 2017-09-14 | C27: AWP | D27: PHX | E27: AZ | F27: ARIZONA | G27: YUMA | H27: AZ | I27: YUMA | J27: YUMA MCAS/YUMA INTL | K27: =CONCATENATE(Table1[[#This Row],[Column6]]," - ", Table1[[#This Row],[Column10]], " (", Table1[[#This Row],[Column1]],")") -> ARIZONA - YUMA MCAS/YUMA INTL (NYL) | L27: 48 | M27: 46.6 | N27: 47.6 | O27: 50.1 | P27: none | Q27: none | R27: none | S27: none | T27: 0.43 | U27: 0.39 | V27: 0.28 | W27: 1.27 | X27: for snowfall and precip stats only Yuma was listed.
A28: SDL | B28: 2017-09-14 | C28: AWP | D28: PHX | E28: AZ | F28: ARIZONA | G28: MARICOPA | H28: AZ | I28: SCOTTSDALE | J28: SCOTTSDALE | K28: =CONCATENATE(Table1[[#This Row],[Column6]]," - ", Table1[[#This Row],[Column10]], " (", Table1[[#This Row],[Column1]],")") -> ARIZONA - SCOTTSDALE (SDL) | L28: 43.5 | M28: 42.1 | N28: 43 | O28: 45.5 | P28: none | Q28: none | R28: none | S28: 0 | T28: 1.14 | U28: 1.26 | V28: 1.22 | W28: 3.6
A29: FLG | B29: 2017-09-14 | C29: AWP | D29: PHX | E29: AZ | F29: ARIZONA | G29: COCONINO | H29: AZ | I29: FLAGSTAFF | J29: FLAGSTAFF PULLIAM | K29: =CONCATENATE(Table1[[#This Row],[Column6]]," - ", Table1[[#This Row],[Column10]], " (", Table1[[#This Row],[Column1]],")") -> ARIZONA - FLAGSTAFF PULLIAM (FLG) | L29: 17.7 | M29: 16.8 | N29: 17.3 | O29: 19.3 | P29: 11 | Q29: 18 | R29: 17 | S29: 77 | T29: 2.05 | U29: 2.13 | V29: 2.32 | W29: 6.08
A30: SEZ | B30: 2017-09-14 | C30: AWP | D30: PHX | E30: AZ | F30: ARIZONA | G30: YAVAPAI | H30: AZ | I30: SEDONA | J30: SEDONA | K30: =CONCATENATE(Table1[[#This Row],[Column6]]," - ", Table1[[#This Row],[Column10]], " (", Table1[[#This Row],[Column1]],")") -> ARIZONA - SEDONA (SEZ) | L30: 32.9 | M30: 31.8 | N30: 32.5 | O30: 34.8 | P30: - | Q30: - | R30: - | S30: - | T30: - | U30: 2.09 | V30: 2.17 | W30: 5.81
A31: AVQ | B31: 2017-09-14 | C31: AWP | D31: PHX | E31: AZ | F31: ARIZONA | G31: PIMA | H31: AZ | I31: MARANA | J31: MARANA RGNL | K31: =CONCATENATE(Table1[[#This Row],[Column6]]," - ", Table1[[#This Row],[Column10]], " (", Table1[[#This Row],[Column1]],")") -> ARIZONA - MARANA RGNL (AVQ) | L31: 40.3 | M31: 39.1 | N31: 39.8 | O31: 42.2 | W31: 2.73 | X31: Airport not found
A32: LIT | B32: 2017-09-14 | C32: ASW | D32: AOK | E32: AR | F32: ARKANSAS | G32: PULASKI | H32: AR | I32: LITTLE ROCK | J32: BILL AND HILLARY CLINTON NATIONAL/ADAMS FI | K32: =CONCATENATE(Table1[[#This Row],[Column6]]," - ", Table1[[#This Row],[Column10]], " (", Table1[[#This Row],[Column1]],")") -> ARKANSAS - BILL AND HILLARY CLINTON NATIONAL/ADAMS FI (LIT) | L32: 33.1 | M32: 33.7 | N32: 31.2 | O32: 34.5 | P32: none | Q32: none | R32: none | S32: none | T32: 4.96 | U32: 3.54 | V32: 3.66 | W32: 12.18 | X32: For snowfall and precip stats only Little Rock was listed.
A33: XNA | B33: 2017-09-14 | C33: ASW | D33: AOK | E33: AR | F33: ARKANSAS | G33: BENTON | H33: AR | I33: FAYETTEVILLE/SPRINGDALE/ | J33: NORTHWEST ARKANSAS RGNL | K33: =CONCATENATE(Table1[[#This Row],[Column6]]," - ", Table1[[#This Row],[Column10]], " (", Table1[[#This Row],[Column1]],")") -> ARKANSAS - NORTHWEST ARKANSAS RGNL (XNA) | L33: 26.1 | M33: 26.2 | N33: 24.4 | O33: 27.8 | P33: 1 | Q33: 2 | R33: 2 | S33: 5 | T33: 3.03 | U33: 2.56 | V33: 2.4 | W33: 8.39 | X33: For snowfall and precip stats only Fayetteville was listed.
A34: LAX | B34: 2017-09-14 | C34: AWP | D34: LAX | E34: CA | F34: CALIFORNIA | G34: LOS ANGELES | H34: CA | I34: LOS ANGELES | J34: LOS ANGELES INTL | K34: =CONCATENATE(Table1[[#This Row],[Column6]]," - ", Table1[[#This Row],[Column10]], " (", Table1[[#This Row],[Column1]],")") -> CALIFORNIA - LOS ANGELES INTL (LAX) | L34: 49.1 | M34: 48.7 | N34: 48.8 | O34: 50 | P34: none | Q34: none | R34: none | S34: none | T34: 2.76 | U34: 3.98 | V34: 5.08 | W34: 8.01 | X34: For snowfall and precip stats only Los Angeles was listed.
A35: SFO | B35: 2017-09-14 | C35: AWP | D35: SFO | E35: CA | F35: CALIFORNIA | G35: SAN MATEO | H35: CA | I35: SAN FRANCISCO | J35: SAN FRANCISCO INTL | K35: =CONCATENATE(Table1[[#This Row],[Column6]]," - ", Table1[[#This Row],[Column10]], " (", Table1[[#This Row],[Column1]],")") -> CALIFORNIA - SAN FRANCISCO INTL (SFO) | L35: 45 | M35: 44.6 | N35: 44.2 | O35: 46.3 | P35: none | Q35: none | R35: none | S35: none | T35: 4.57 | U35: 4.49 | V35: 4.45 | W35: 12.28 | X35: For snowfall and precip stats only San Francisco was listed.
A36: SAN | B36: 2017-09-14 | C36: AWP | D36: LAX | E36: CA | F36: CALIFORNIA | G36: SAN DIEGO | H36: CA | I36: SAN DIEGO | J36: SAN DIEGO INTL | K36: =CONCATENATE(Table1[[#This Row],[Column6]]," - ", Table1[[#This Row],[Column10]], " (", Table1[[#This Row],[Column1]],")") -> CALIFORNIA - SAN DIEGO INTL (SAN) | L36: 49.4 | M36: 48.4 | N36: 49 | O36: 50.7 | P36: none | Q36: none | R36: none | S36: none | T36: 1.54 | U36: 1.97 | V36: 2.28 | W36: 5.78 | X36: aka Lindbergh Field. For snowfall and precip stats only San Diego Lindbergh AP was listed.
A37: OAK | B37: 2017-09-14 | C37: AWP | D37: SFO | E37: CA | F37: CALIFORNIA | G37: ALAMEDA | H37: CA | I37: OAKLAND | J37: METROPOLITAN OAKLAND INTL | K37: =CONCATENATE(Table1[[#This Row],[Column6]]," - ", Table1[[#This Row],[Column10]], " (", Table1[[#This Row],[Column1]],")") -> CALIFORNIA - METROPOLITAN OAKLAND INTL (OAK) | L37: 42.4 | M37: 41.5 | N37: 41.7 | O37: 44.2 | P37: none | Q37: none | R37: none | S37: none | T37: 4.49 | U37: 4.72 | V37: 4.49 | W37: 11.6 | X37: For snowfall and precip stats only Oakland Museum was listed.
A38: SJC | B38: 2017-09-14 | C38: AWP | D38: SFO | E38: CA | F38: CALIFORNIA | G38: SANTA CLARA | H38: CA | I38: SAN JOSE | J38: NORMAN Y MINETA SAN JOSE INTL | K38: =CONCATENATE(Table1[[#This Row],[Column6]]," - ", Table1[[#This Row],[Column10]], " (", Table1[[#This Row],[Column1]],")") -> CALIFORNIA - NORMAN Y MINETA SAN JOSE INTL (SJC) | L38: 42.8 | M38: 41.9 | N38: 42 | O38: 44.7 | P38: none | Q38: none | R38: none | S38: none | T38: 2.13 | U38: 2.99 | V38: 3.31 | W38: =SUM(Table1[[#This Row],[Column19]:[Column21]]) -> 8.43 | X38: For winter temp no San Jose aiprort was listed. For snowfall and precip stats only San Jose was listed.
A39: SNA | B39: 2017-09-14 | C39: AWP | D39: LAX | E39: CA | F39: CALIFORNIA | G39: ORANGE | H39: CA | I39: SANTA ANA | J39: JOHN WAYNE AIRPORT-ORANGE COUNTY | K39: =CONCATENATE(Table1[[#This Row],[Column6]]," - ", Table1[[#This Row],[Column10]], " (", Table1[[#This Row],[Column1]],")") -> CALIFORNIA - JOHN WAYNE AIRPORT-ORANGE COUNTY (SNA) | L39: 47.2 | M39: 46.2 | N39: 47 | O39: 48.6 | P39: none | Q39: none | R39: none | S39: none | T39: 2.09 | U39: 2.83 | V39: 3.39 | W39: 7.94 | X39: For snowfall and precip stats only for Santa Ana fire station was listed.
A40: SMF | B40: 2017-09-14 | C40: AWP | D40: SFO | E40: CA | F40: CALIFORNIA | G40: SACRAMENTO | H40: CA | I40: SACRAMENTO | J40: SACRAMENTO INTL | K40: =CONCATENATE(Table1[[#This Row],[Column6]]," - ", Table1[[#This Row],[Column10]], " (", Table1[[#This Row],[Column1]],")") -> CALIFORNIA - SACRAMENTO INTL (SMF) | L40: 38.2 | M40: 37 | N40: 37.8 | O40: 39.9 | P40: none | Q40: none | R40: none | S40: none | T40: 3.27 | U40: 3.62 | V40: 3.46 | W40: 11.68 | X40: aka Sacramento Metropolitan Airport and used for winter temp stats. For snowfall and precip stats only Sacramento AP listed.
A41: ONT | B41: 2017-09-14 | C41: AWP | D41: LAX | E41: CA | F41: CALIFORNIA | G41: SAN BERNARDINO | H41: CA | I41: ONTARIO | J41: ONTARIO INTL | K41: =CONCATENATE(Table1[[#This Row],[Column6]]," - ", Table1[[#This Row],[Column10]], " (", Table1[[#This Row],[Column1]],")") -> CALIFORNIA - ONTARIO INTL (ONT) | L41: 43.9 | M41: 42.7 | N41: 43.8 | O41: 45.3 | P41: none | Q41: none | R41: none | S41: none | T41: 2.32 | U41: 3.31 | V41: 3.39 | W41: 9.02
A42: BUR | B42: 2017-09-14 | C42: AWP | D42: LAX | E42: CA | F42: CALIFORNIA | G42: LOS ANGELES | H42: CA | I42: BURBANK | J42: BOB HOPE | K42: =CONCATENATE(Table1[[#This Row],[Column6]]," - ", Table1[[#This Row],[Column10]], " (", Table1[[#This Row],[Column1]],")") -> CALIFORNIA - BOB HOPE (BUR) | L42: 42.3 | M42: 41.2 | N42: 41.9 | O42: 43.9 | P42: none | Q42: none | R42: none | S42: none | T42: 2.4 | U42: 3.54 | V42: 4.49 | W42: 10.41 | X42: aka Burbank Glendale Pasadena Airport and used for winter temps. For snowfall and precip stats only Burbank was listed.
A43: FAT | B43: 2017-09-14 | C43: AWP | D43: SFO | E43: CA | F43: CALIFORNIA | G43: FRESNO | H43: CA | I43: FRESNO | J43: FRESNO YOSEMITE INTL | K43: =CONCATENATE(Table1[[#This Row],[Column6]]," - ", Table1[[#This Row],[Column10]], " (", Table1[[#This Row],[Column1]],")") -> CALIFORNIA - FRESNO YOSEMITE INTL (FAT) | L43: 39.2 | M43: 38 | N43: 38.3 | O43: 41.5 | P43: none | Q43: none | R43: none | S43: none | T43: 2.01 | U43: 2.28 | V43: 2.01 | W43: 5.99 | X43: For snowfall and precip stats only Fresno was listed.
A44: LGB | B44: 2017-09-14 | C44: AWP | D44: LAX | E44: CA | F44: CALIFORNIA | G44: LOS ANGELES | H44: CA | I44: LONG BEACH | J44: LONG BEACH /DAUGHERTY FIELD/ | K44: =CONCATENATE(Table1[[#This Row],[Column6]]," - ", Table1[[#This Row],[Column10]], " (", Table1[[#This Row],[Column1]],")") -> CALIFORNIA - LONG BEACH /DAUGHERTY FIELD/ (LGB) | L44: 46.6 | M44: 45.8 | N44: 46.1 | O44: 48 | P44: none | Q44: none | R44: none | S44: none | T44: 1.97 | U44: 2.6 | V44: 3.07 | W44: 7.64
A45: PSP | B45: 2017-09-14 | C45: AWP | D45: LAX | E45: CA | F45: CALIFORNIA | G45: RIVERSIDE | H45: CA | I45: PALM SPRINGS | J45: PALM SPRINGS INTL | K45: =CONCATENATE(Table1[[#This Row],[Column6]]," - ", Table1[[#This Row],[Column10]], " (", Table1[[#This Row],[Column1]],")") -> CALIFORNIA - PALM SPRINGS INTL (PSP) | L45: 45.8 | M45: 44.1 | N45: 45.4 | O45: 48 | P45: none | Q45: none | R45: none | S45: none | T45: 0.71 | U45: 1.14 | V45: 1.14 | W45: 3.02 | X45: For winter temp and snowfall and percip stats only Palm Springs was found and used.
A46: SBA | B46: 2017-09-14 | C46: AWP | D46: LAX | E46: CA | F46: CALIFORNIA | G46: SANTA BARBARA | H46: CA | I46: SANTA BARBARA | J46: SANTA BARBARA MUNI | K46: =CONCATENATE(Table1[[#This Row],[Column6]]," - ", Table1[[#This Row],[Column10]], " (", Table1[[#This Row],[Column1]],")") -> CALIFORNIA - SANTA BARBARA MUNI (SBA) | L46: 41.5 | M46: 40.2 | N46: 40.7 | O46: 43.7 | P46: none | Q46: none | R46: none | S46: none | T46: 3.03 | U46: 4.37 | V46: 4.57 | W46: 10.4 | X46: For snowfall and precip only Santa Barbara was listed.
A47: SQL | B47: 2017-09-14 | C47: AWP | D47: SFO | E47: CA | F47: CALIFORNIA | G47: SAN MATEO | H47: CA | I47: SAN CARLOS | J47: SAN CARLOS | K47: =CONCATENATE(Table1[[#This Row],[Column6]]," - ", Table1[[#This Row],[Column10]], " (", Table1[[#This Row],[Column1]],")") -> CALIFORNIA - SAN CARLOS (SQL) | L47: 39 | M47: 38 | N47: 38.5 | O47: 40.6 | W47: 9.21 | X47: Airport not found.
A48: MHR | B48: 2017-09-14 | C48: AWP | D48: SFO | E48: CA | F48: CALIFORNIA | G48: SACRAMENTO | H48: CA | I48: SACRAMENTO | J48: SACRAMENTO MATHER | K48: =CONCATENATE(Table1[[#This Row],[Column6]]," - ", Table1[[#This Row],[Column10]], " (", Table1[[#This Row],[Column1]],")") -> CALIFORNIA - SACRAMENTO MATHER (MHR) | L48: 41.5 | M48: 40.4 | N48: 40.7 | O48: 43.7 | P48: none | Q48: none | R48: none | S48: 0 | T48: 3.27 | U48: 3.62 | V48: 3.46 | W48: 11.14 | X48: For winter temp and percip stats Mather not avail. Used Sacramento 5 ese.
A49: VNY | B49: 2017-09-14 | C49: AWP | D49: LAX | E49: CA | F49: CALIFORNIA | G49: LOS ANGELES | H49: CA | I49: VAN NUYS | J49: VAN NUYS | K49: =CONCATENATE(Table1[[#This Row],[Column6]]," - ", Table1[[#This Row],[Column10]], " (", Table1[[#This Row],[Column1]],")") -> CALIFORNIA - VAN NUYS (VNY) | L49: 44.6 | M49: 43.7 | N49: 44.9 | O49: 45.2 | P49: none | Q49: none | R49: none | S49: 0 | T49: 2.76 | U49: 3.98 | V49: 5.08 | W49: 7.27 | X49: For snowfall and precip stats only Los Angeles was listed.
A50: MRY | B50: 2017-09-14 | C50: AWP | D50: SFO | E50: CA | F50: CALIFORNIA | G50: MONTEREY | H50: CA | I50: MONTEREY | J50: MONTEREY RGNL | K50: =CONCATENATE(Table1[[#This Row],[Column6]]," - ", Table1[[#This Row],[Column10]], " (", Table1[[#This Row],[Column1]],")") -> CALIFORNIA - MONTEREY RGNL (MRY) | L50: 43.1 | M50: 42.3 | N50: 42.5 | O50: 44.7 | P50: none | Q50: none | R50: none | S50: 0 | T50: 3.43 | U50: 4.41 | V50: 3.94 | W50: 8.58 | X50: aka Monterey Peninsula and used for winter temps. For snowfall and percip stats only Montery listed.
A51: STS | B51: 2017-09-14 | C51: AWP | D51: SFO | E51: CA | F51: CALIFORNIA | G51: SONOMA | H51: CA | I51: SANTA ROSA | J51: CHARLES M SCHULZ - SONOMA COUNTY | K51: =CONCATENATE(Table1[[#This Row],[Column6]]," - ", Table1[[#This Row],[Column10]], " (", Table1[[#This Row],[Column1]],")") -> CALIFORNIA - CHARLES M SCHULZ - SONOMA COUNTY (STS) | L51: 37.3 | M51: 36.5 | N51: 36.6 | O51: 39.1 | P51: none | Q51: none | R51: none | S51: 0 | T51: 4.49 | U51: 6.26 | V51: 6.06 | W51: 20.48
A52: RDD | B52: 2017-09-14 | C52: AWP | D52: SFO | E52: CA | F52: CALIFORNIA | G52: SHASTA | H52: CA | I52: REDDING | J52: REDDING MUNI | K52: =CONCATENATE(Table1[[#This Row],[Column6]]," - ", Table1[[#This Row],[Column10]], " (", Table1[[#This Row],[Column1]],")") -> CALIFORNIA - REDDING MUNI (RDD) | L52: 37.3 | M52: 36.3 | N52: 36.5 | O52: 39.3 | P52: none | Q52: none | R52: none | S52: 0 | T52: 6.26 | U52: 5.94 | V52: 5.51 | W52: 17.74
A53: VIS | B53: 2017-09-14 | C53: AWP | D53: SFO | E53: CA | F53: CALIFORNIA | G53: TULARE | H53: CA | I53: VISALIA | J53: VISALIA MUNI | K53: =CONCATENATE(Table1[[#This Row],[Column6]]," - ", Table1[[#This Row],[Column10]], " (", Table1[[#This Row],[Column1]],")") -> CALIFORNIA - VISALIA MUNI (VIS) | L53: 39.4 | M53: 37.8 | N53: 38.7 | O53: 42.1 | P53: none | Q53: none | R53: none | S53: 0 | T53: 1.73 | U53: 1.93 | V53: 1.85 | W53: 5.5
A54: SMO | B54: 2017-09-14 | C54: AWP | D54: LAX | E54: CA | F54: CALIFORNIA | G54: LOS ANGELES | H54: CA | I54: SANTA MONICA | J54: SANTA MONICA MUNI | K54: =CONCATENATE(Table1[[#This Row],[Column6]]," - ", Table1[[#This Row],[Column10]], " (", Table1[[#This Row],[Column1]],")") -> CALIFORNIA - SANTA MONICA MUNI (SMO) | L54: 47.8 | M54: 46.9 | N54: 48.4 | O54: 48.2 | P54: none | Q54: none | R54: none | S54: 0 | T54: 1.85 | U54: 3.07 | V54: 3.31 | W54: 8.6
A55: DEN | B55: 2017-09-14 | C55: ANM | D55: DEN | E55: CO | F55: COLORADO | G55: DENVER | H55: CO | I55: DENVER | J55: DENVER INTL | K55: =CONCATENATE(Table1[[#This Row],[Column6]]," - ", Table1[[#This Row],[Column10]], " (", Table1[[#This Row],[Column1]],")") -> COLORADO - DENVER INTL (DEN) | L55: 17.8 | M55: 17.1 | N55: 17.4 | O55: 18.9 | P55: 9 | Q55: 7 | R55: 6 | S55: 55 | T55: 0.59 | U55: 0.47 | V55: 0.47 | W55: 1.13 | X55: For snowfall and precip stats only Denver Stapelton was listed.
A56: APA | B56: 2017-09-14 | C56: ANM | D56: DEN | E56: CO | F56: COLORADO | G56: ARAPAHOE | H56: CO | I56: DENVER | J56: CENTENNIAL | K56: =CONCATENATE(Table1[[#This Row],[Column6]]," - ", Table1[[#This Row],[Column10]], " (", Table1[[#This Row],[Column1]],")") -> COLORADO - CENTENNIAL (APA) | L56: 18.9 | M56: 17.2 | N56: 19 | O56: 20.5 | P56: none | Q56: none | R56: none | S56: none | T56: 0.31 | U56: 0.39 | V56: 0.35 | W56: 1.54 | X56: For snowfall and precip only Denver was listed.
A57: COS | B57: 2017-09-14 | C57: ANM | D57: DEN | E57: CO | F57: COLORADO | G57: EL PASO | H57: CO | I57: COLORADO SPRINGS | J57: CITY OF COLORADO SPRINGS MUNI | K57: =CONCATENATE(Table1[[#This Row],[Column6]]," - ", Table1[[#This Row],[Column10]], " (", Table1[[#This Row],[Column1]],")") -> COLORADO - CITY OF COLORADO SPRINGS MUNI (COS) | L57: 18.2 | M57: 17.5 | N57: 17.7 | O57: 19.5 | P57: 6 | Q57: 6 | R57: 5 | S57: 39 | T57: 0.35 | U57: 0.31 | V57: 0.35 | W57: 1
A58: ASE | B58: 2017-09-14 | C58: ANM | D58: DEN | E58: CO | F58: COLORADO | G58: PITKIN | H58: CO | I58: ASPEN | J58: ASPEN-PITKIN CO/SARDY FIELD | K58: =CONCATENATE(Table1[[#This Row],[Column6]]," - ", Table1[[#This Row],[Column10]], " (", Table1[[#This Row],[Column1]],")") -> COLORADO - ASPEN-PITKIN CO/SARDY FIELD (ASE) | L58: 8.1 | M58: 8 | N58: 6.9 | O58: 9.5 | P58: 29 | Q58: 27 | R58: 26 | S58: 179 | T58: 2.13 | U58: 1.69 | V58: 2.2 | W58: 3.38 | X58: For snowfall and precip stats only Aspen 1 sw was listed.
A59: GJT | B59: 2017-09-14 | C59: ANM | D59: DEN | E59: CO | F59: COLORADO | G59: MESA | H59: CO | I59: GRAND JUNCTION | J59: GRAND JUNCTION REGIONAL | K59: =CONCATENATE(Table1[[#This Row],[Column6]]," - ", Table1[[#This Row],[Column10]], " (", Table1[[#This Row],[Column1]],")") -> COLORADO - GRAND JUNCTION REGIONAL (GJT) | L59: 19.6 | M59: 18.5 | N59: 17 | O59: 23.7 | P59: 5 | Q59: 5 | R59: 3 | S59: 19 | T59: 0.59 | U59: 0.59 | V59: 0.55 | W59: 1.71 | X59: aka Walker Field
A60: EGE | B60: 2017-09-14 | C60: ANM | D60: DEN | E60: CO | F60: COLORADO | G60: EAGLE | H60: CO | I60: EAGLE | J60: EAGLE COUNTY RGNL | K60: =CONCATENATE(Table1[[#This Row],[Column6]]," - ", Table1[[#This Row],[Column10]], " (", Table1[[#This Row],[Column1]],")") -> COLORADO - EAGLE COUNTY RGNL (EGE) | L60: 13 | M60: 12.5 | N60: 10.1 | O60: 16.8 | P60: none | Q60: none | R60: none | S60: 0 | T60: 0.79 | U60: 0.75 | V60: 0.75 | W60: 1.77
A61: BDL | B61: 2017-09-14 | C61: ANE | D61: NONE | E61: CT | F61: CONNECTICUT | G61: HARTFORD | H61: CT | I61: WINDSOR LOCKS | J61: BRADLEY INTL | K61: =CONCATENATE(Table1[[#This Row],[Column6]]," - ", Table1[[#This Row],[Column10]], " (", Table1[[#This Row],[Column1]],")") -> CONNECTICUT - BRADLEY INTL (BDL) | L61: 20.7 | M61: 23.4 | N61: 17.7 | O61: 20.9 | P61: 7 | Q61: 12 | R61: 11 | S61: 39 | T61: 3.43 | U61: 3.23 | V61: 2.87 | W61: =SUM(Table1[[#This Row],[Column19]:[Column21]]) -> 9.53 | X61: For winter temps no airport found. For snowfall and precip stats only Windsor Locks found.
A62: DCA | B62: 2017-09-14 | C62: AEA | D62: DCA | E62: DC | F62: DIST. OF COLUMBIA | G62: ARLINGTON | H62: VA | I62: WASHINGTON | J62: RONALD REAGAN WASHINGTON NATIONAL | K62: =CONCATENATE(Table1[[#This Row],[Column6]]," - ", Table1[[#This Row],[Column10]], " (", Table1[[#This Row],[Column1]],")") -> DIST. OF COLUMBIA - RONALD REAGAN WASHINGTON NATIONAL (DCA) | L62: 30.6 | M62: 32.5 | N62: 28.6 | O62: 30.9 | P62: 2 | Q62: 6 | R62: 5 | S62: 15 | T62: 3.03 | U62: 2.8 | V62: 2.64 | W62: 8.48 | X62: Found in state of Virginia.
A63: IAD | B63: 2017-09-14 | C63: AEA | D63: DCA | E63: DC | F63: DIST. OF COLUMBIA | G63: LOUDOUN | H63: VA | I63: WASHINGTON | J63: WASHINGTON DULLES INTL | K63: =CONCATENATE(Table1[[#This Row],[Column6]]," - ", Table1[[#This Row],[Column10]], " (", Table1[[#This Row],[Column1]],")") -> DIST. OF COLUMBIA - WASHINGTON DULLES INTL (IAD) | L63: 25.7 | M63: 27.1 | N63: 23.9 | O63: 26 | W63: 8.38 | X63: Found temp stats in state of Virginia. Snowfall and percip stats were not found in Virginia or DC.
A64: MIA | B64: 2017-09-14 | C64: ASO | D64: ORL | E64: FL | F64: FLORIDA | G64: DADE | H64: FL | I64: MIAMI | J64: MIAMI INTL | K64: =CONCATENATE(Table1[[#This Row],[Column6]]," - ", Table1[[#This Row],[Column10]], " (", Table1[[#This Row],[Column1]],")") -> FLORIDA - MIAMI INTL (MIA) | L64: 61.7 | M64: 63 | N64: 59.9 | O64: 62.3 | P64: none | Q64: none | R64: none | S64: none | T64: 2.05 | U64: 1.61 | V64: 2.24 | W64: 5.91
A65: MCO | B65: 2017-09-14 | C65: ASO | D65: ORL | E65: FL | F65: FLORIDA | G65: ORANGE | H65: FL | I65: ORLANDO | J65: ORLANDO INTL | K65: =CONCATENATE(Table1[[#This Row],[Column6]]," - ", Table1[[#This Row],[Column10]], " (", Table1[[#This Row],[Column1]],")") -> FLORIDA - ORLANDO INTL (MCO) | L65: 51.2 | M65: 52.4 | N65: 49.2 | O65: 52.1 | P65: none | Q65: none | R65: none | S65: none | T65: 2.6 | U65: 2.36 | V65: 2.36 | W65: 7.31
A66: FLL | B66: 2017-09-14 | C66: ASO | D66: ORL | E66: FL | F66: FLORIDA | G66: BROWARD | H66: FL | I66: FORT LAUDERDALE | J66: FORT LAUDERDALE/HOLLYWOOD INTL | K66: =CONCATENATE(Table1[[#This Row],[Column6]]," - ", Table1[[#This Row],[Column10]], " (", Table1[[#This Row],[Column1]],")") -> FLORIDA - FORT LAUDERDALE/HOLLYWOOD INTL (FLL) | L66: 63.2 | M66: 64.1 | N66: 61.6 | O66: 64 | P66: none | Q66: none | R66: none | S66: none | T66: 2.4 | U66: 2.64 | V66: 3.23 | W66: 9.05 | X66: For snowfall and precip stats only Fort Lauderdale was listed.
A67: TPA | B67: 2017-09-14 | C67: ASO | D67: ORL | E67: FL | F67: FLORIDA | G67: HILLSBOROUGH | H67: FL | I67: TAMPA | J67: TAMPA INTL | K67: =CONCATENATE(Table1[[#This Row],[Column6]]," - ", Table1[[#This Row],[Column10]], " (", Table1[[#This Row],[Column1]],")") -> FLORIDA - TAMPA INTL (TPA) | L67: 53.4 | M67: 54.2 | N67: 51.6 | O67: 54.4 | P67: none | Q67: none | R67: none | S67: none | T67: 2.48 | U67: 2.24 | V67: 2.8 | W67: 7.51
A68: DAB | B68: 2017-09-14 | C68: ASO | D68: ORL | E68: FL | F68: FLORIDA | G68: VOLUSIA | H68: FL | I68: DAYTONA BEACH | J68: DAYTONA BEACH INTL | K68: =CONCATENATE(Table1[[#This Row],[Column6]]," - ", Table1[[#This Row],[Column10]], " (", Table1[[#This Row],[Column1]],")") -> FLORIDA - DAYTONA BEACH INTL (DAB) | L68: 49.3 | M68: 50.5 | N68: 47.3 | O68: 50.1 | P68: none | Q68: none | R68: none | S68: none | T68: 2.64 | U68: 2.76 | V68: 2.8 | W68: 8.15
A69: SFB | B69: 2017-09-14 | C69: ASO | D69: ORL | E69: FL | F69: FLORIDA | G69: SEMINOLE | H69: FL | I69: ORLANDO | J69: ORLANDO SANFORD INTL | K69: =CONCATENATE(Table1[[#This Row],[Column6]]," - ", Table1[[#This Row],[Column10]], " (", Table1[[#This Row],[Column1]],")") -> FLORIDA - ORLANDO SANFORD INTL (SFB) | L69: 50.7 | M69: 51.5 | N69: 49.1 | O69: 51.7 | P69: none | Q69: none | R69: none | S69: none | T69: 2.64 | U69: 2.76 | V69: 2.83 | W69: 7.87 | X69: For snowfall and precip stats only for Orlando was listed.
A70: PBI | B70: 2017-09-14 | C70: ASO | D70: ORL | E70: FL | F70: FLORIDA | G70: PALM BEACH | H70: FL | I70: WEST PALM BEACH | J70: PALM BEACH INTL | K70: =CONCATENATE(Table1[[#This Row],[Column6]]," - ", Table1[[#This Row],[Column10]], " (", Table1[[#This Row],[Column1]],")") -> FLORIDA - PALM BEACH INTL (PBI) | L70: 58.6 | M70: 60 | N70: 56.8 | O70: 59.1 | P70: none | Q70: none | R70: none | S70: none | T70: 3.39 | U70: 3.15 | V70: 2.83 | W70: 9.33
A71: JAX | B71: 2017-09-14 | C71: ASO | D71: ORL | E71: FL | F71: FLORIDA | G71: DUVAL | H71: FL | I71: JACKSONVILLE | J71: JACKSONVILLE INTL | K71: =CONCATENATE(Table1[[#This Row],[Column6]]," - ", Table1[[#This Row],[Column10]], " (", Table1[[#This Row],[Column1]],")") -> FLORIDA - JACKSONVILLE INTL (JAX) | L71: 43.3 | M71: 43.9 | N71: 41.4 | O71: 44.7 | P71: none | Q71: none | R71: none | S71: none | T71: 2.8 | U71: 3.31 | V71: 3.19 | W71: 9.29
A72: RSW | B72: 2017-09-14 | C72: ASO | D72: ORL | E72: FL | F72: FLORIDA | G72: LEE | H72: FL | I72: FORT MYERS | J72: SOUTHWEST FLORIDA INTL | K72: =CONCATENATE(Table1[[#This Row],[Column6]]," - ", Table1[[#This Row],[Column10]], " (", Table1[[#This Row],[Column1]],")") -> FLORIDA - SOUTHWEST FLORIDA INTL (RSW) | L72: 54.4 | M72: 55.6 | N72: 52.3 | O72: 55.3 | P72: none | Q72: none | R72: none | S72: none | T72: 1.69 | U72: 1.93 | V72: 2.17 | W72: 5.53 | X72: For snowfall and precip stats only Fort Meyers was listed.
A73: PNS | B73: 2017-09-14 | C73: ASO | D73: ORL | E73: FL | F73: FLORIDA | G73: ESCAMBIA | H73: FL | I73: PENSACOLA | J73: PENSACOLA INTL | K73: =CONCATENATE(Table1[[#This Row],[Column6]]," - ", Table1[[#This Row],[Column10]], " (", Table1[[#This Row],[Column1]],")") -> FLORIDA - PENSACOLA INTL (PNS) | L73: 44 | M73: 44.4 | N73: 42.2 | O73: 45.5 | P73: none | Q73: none | R73: none | S73: none | T73: 4.57 | U73: 4.65 | V73: 5.08 | W73: 14.24 | X73: aka Pensalcola Regional Airport and used for winter temps and snowfall and precip stats..
A74: EYW | B74: 2017-09-14 | C74: ASO | D74: ORL | E74: FL | F74: FLORIDA | G74: MONROE | H74: FL | I74: KEY WEST | J74: KEY WEST INTL | K74: =CONCATENATE(Table1[[#This Row],[Column6]]," - ", Table1[[#This Row],[Column10]], " (", Table1[[#This Row],[Column1]],")") -> FLORIDA - KEY WEST INTL (EYW) | L74: 65.7 | M74: 66.9 | N74: 64.2 | O74: 66 | P74: none | Q74: none | R74: none | S74: none | T74: 2.2 | U74: 2.05 | V74: 1.5 | W74: 5.75
A75: SRQ | B75: 2017-09-14 | C75: ASO | D75: ORL | E75: FL | F75: FLORIDA | G75: SARASOTA | H75: FL | I75: SARASOTA/BRADENTON | J75: SARASOTA/BRADENTON INTL | K75: =CONCATENATE(Table1[[#This Row],[Column6]]," - ", Table1[[#This Row],[Column10]], " (", Table1[[#This Row],[Column1]],")") -> FLORIDA - SARASOTA/BRADENTON INTL (SRQ) | L75: 53 | M75: 53.7 | N75: 51.8 | O75: 53.6 | P75: none | Q75: none | R75: none | S75: 1 | T75: 2.52 | U75: 2.48 | V75: 2.72 | W75: 7.72
A76: PIE | B76: 2017-09-14 | C76: ASO | D76: ORL | E76: FL | F76: FLORIDA | G76: PINELLAS | H76: FL | I76: ST PETERSBURG-CLEARWATER | J76: ST PETE-CLEARWATER INTL | K76: =CONCATENATE(Table1[[#This Row],[Column6]]," - ", Table1[[#This Row],[Column10]], " (", Table1[[#This Row],[Column1]],")") -> FLORIDA - ST PETE-CLEARWATER INTL (PIE) | L76: 54.1 | M76: 55.1 | N76: 52.3 | O76: 54.9 | P76: none | Q76: none | R76: none | S76: 0 | T76: 2.91 | U76: 2.91 | V76: 3.03 | W76: 8.89
A77: TLH | B77: 2017-09-14 | C77: ASO | D77: ORL | E77: FL | F77: FLORIDA | G77: LEON | H77: FL | I77: TALLAHASSEE | J77: TALLAHASSEE INTL | K77: =CONCATENATE(Table1[[#This Row],[Column6]]," - ", Table1[[#This Row],[Column10]], " (", Table1[[#This Row],[Column1]],")") -> FLORIDA - TALLAHASSEE INTL (TLH) | L77: 40.6 | M77: 41.1 | N77: 39 | O77: 41.9 | P77: none | Q77: none | R77: none | S77: 0 | T77: 3.9 | U77: 4.33 | V77: 4.84 | W77: 13.09 | X77: For winter temp and percip stats only Tallahassee Muni. Was listed
A78: ECP | B78: 2017-09-14 | C78: ASO | D78: ORL | E78: FL | F78: FLORIDA | G78: BAY | H78: FL | I78: PANAMA CITY | J78: NORTHWEST FLORIDA BEACHES INTL | K78: =CONCATENATE(Table1[[#This Row],[Column6]]," - ", Table1[[#This Row],[Column10]], " (", Table1[[#This Row],[Column1]],")") -> FLORIDA - NORTHWEST FLORIDA BEACHES INTL (ECP) | L78: 45.4 | M78: 45.5 | N78: 43.9 | O78: 46.9 | P78: none | Q78: none | R78: none | S78: none | T78: 4.02 | U78: 4.88 | V78: 5.12 | W78: 13.83 | X78: aka Panama City Bay County Airport and used for winter temp. For snowfall and percip stats only Panama city listed.
A79: APF | B79: 2017-09-14 | C79: ASO | D79: ORL | E79: FL | F79: FLORIDA | G79: COLLIER | H79: FL | I79: NAPLES | J79: NAPLES MUNI | K79: =CONCATENATE(Table1[[#This Row],[Column6]]," - ", Table1[[#This Row],[Column10]], " (", Table1[[#This Row],[Column1]],")") -> FLORIDA - NAPLES MUNI (APF) | L79: 56 | M79: 57 | N79: 54.2 | O79: 56.8 | P79: none | Q79: none | R79: none | S79: none | T79: 1.69 | U79: 2.05 | V79: 2.32 | W79: 5.4
A80: FXE | B80: 2017-09-14 | C80: ASO | D80: ORL | E80: FL | F80: FLORIDA | G80: BROWARD | H80: FL | I80: FORT LAUDERDALE | J80: FORT LAUDERDALE EXECUTIVE | K80: =CONCATENATE(Table1[[#This Row],[Column6]]," - ", Table1[[#This Row],[Column10]], " (", Table1[[#This Row],[Column1]],")") -> FLORIDA - FORT LAUDERDALE EXECUTIVE (FXE) | L80: 60 | M80: 61.6 | N80: 58 | O80: 60.3 | P80: none | Q80: none | R80: none | S80: 0 | T80: 2.4 | U80: 2.64 | V80: 3.23 | W80: 6.57
A81: ATL | B81: 2017-09-14 | C81: ASO | D81: ATL | E81: GA | F81: GEORGIA | G81: FULTON | H81: GA | I81: ATLANTA | J81: HARTSFIELD - JACKSON ATLANTA INTL | K81: =CONCATENATE(Table1[[#This Row],[Column6]]," - ", Table1[[#This Row],[Column10]], " (", Table1[[#This Row],[Column1]],")") -> GEORGIA - HARTSFIELD - JACKSON ATLANTA INTL (ATL) | L81: 36.1 | M81: 36.5 | N81: 34.3 | O81: 37.7 | P81: 0 | Q81: 1 | R81: 0 | S81: 2 | T81: 3.9 | U81: 4.21 | V81: 4.69 | W81: 12.77 | X81: For snowfall and precip stats only Fulton Co airport described as Hartsfield was listed.
A82: SAV | B82: 2017-09-14 | C82: ASO | D82: ATL | E82: GA | F82: GEORGIA | G82: CHATHAM | H82: GA | I82: SAVANNAH | J82: SAVANNAH/HILTON HEAD INTL | K82: =CONCATENATE(Table1[[#This Row],[Column6]]," - ", Table1[[#This Row],[Column10]], " (", Table1[[#This Row],[Column1]],")") -> GEORGIA - SAVANNAH/HILTON HEAD INTL (SAV) | L82: 40.3 | M82: 40.8 | N82: 38.6 | O82: 41.7 | P82: none | Q82: none | R82: none | S82: none | T82: 2.95 | U82: 3.7 | V82: 2.8 | W82: 9.43
A83: AGS | B83: 2017-09-14 | C83: ASO | D83: ATL | E83: GA | F83: GEORGIA | G83: RICHMOND | H83: GA | I83: AUGUSTA | J83: AUGUSTA RGNL AT BUSH FIELD | K83: =CONCATENATE(Table1[[#This Row],[Column6]]," - ", Table1[[#This Row],[Column10]], " (", Table1[[#This Row],[Column1]],")") -> GEORGIA - AUGUSTA RGNL AT BUSH FIELD (AGS) | L83: 34.3 | M83: 34.5 | N83: 32.8 | O83: 35.9 | P83: none | Q83: none | R83: none | S83: 0 | T83: 3.39 | U83: 3.9 | V83: 3.94 | W83: 11.22
A84: BOI | B84: 2017-09-14 | C84: ANM | D84: HLN | E84: ID | F84: IDAHO | G84: ADA | H84: ID | I84: BOISE | J84: BOISE AIR TERMINAL/GOWEN FLD | K84: =CONCATENATE(Table1[[#This Row],[Column6]]," - ", Table1[[#This Row],[Column10]], " (", Table1[[#This Row],[Column1]],")") -> IDAHO - BOISE AIR TERMINAL/GOWEN FLD (BOI) | L84: 25.6 | M84: 24 | N84: 24.7 | O84: 28.3 | P84: 7 | Q84: 5 | R84: 3 | S84: 19 | T84: 1.54 | U84: 1.22 | V84: 0.98 | W84: 3.78
A85: COE | B85: 2017-09-14 | C85: ANM | D85: HLN | E85: ID | F85: IDAHO | G85: KOOTENAI | H85: ID | I85: COEUR D'ALENE | J85: COEUR D'ALENE - PAPPY BOYINGTON FIELD | K85: =CONCATENATE(Table1[[#This Row],[Column6]]," - ", Table1[[#This Row],[Column10]], " (", Table1[[#This Row],[Column1]],")") -> IDAHO - COEUR D'ALENE - PAPPY BOYINGTON FIELD (COE) | L85: 25.7 | M85: 25.2 | N85: 25.4 | O85: 26.7 | W85: 8.83 | X85: For snowfall and precip stats airport not found.
A86: IDA | B86: 2017-09-14 | C86: ANM | D86: HLN | E86: ID | F86: IDAHO | G86: BONNEVILLE | H86: ID | I86: IDAHO FALLS | J86: IDAHO FALLS RGNL | K86: =CONCATENATE(Table1[[#This Row],[Column6]]," - ", Table1[[#This Row],[Column10]], " (", Table1[[#This Row],[Column1]],")") -> IDAHO - IDAHO FALLS RGNL (IDA) | L86: 12.9 | M86: 12.3 | N86: 11.7 | O86: 14.8 | P86: none | Q86: none | R86: none | S86: none | T86: 0.83 | U86: 0.83 | V86: 0.79 | W86: 2.22 | X86: Used Fanning Field as airportwas previously known as Fanning Field.
A87: ORD | B87: 2017-09-14 | C87: AGL | D87: CHI | E87: IL | F87: ILLINOIS | G87: COOK | H87: IL | I87: CHICAGO | J87: CHICAGO O'HARE INTL | K87: =CONCATENATE(Table1[[#This Row],[Column6]]," - ", Table1[[#This Row],[Column10]], " (", Table1[[#This Row],[Column1]],")") -> ILLINOIS - CHICAGO O'HARE INTL (ORD) | L87: 19.1 | M87: 20.7 | N87: 16.5 | O87: 20.1 | P87: 9 | Q87: 11 | R87: 9 | S87: 37 | T87: 2.24 | U87: 1.73 | V87: 1.77 | W87: 5.77
A88: MDW | B88: 2017-09-14 | C88: AGL | D88: CHI | E88: IL | F88: ILLINOIS | G88: COOK | H88: IL | I88: CHICAGO | J88: CHICAGO MIDWAY INTL | K88: =CONCATENATE(Table1[[#This Row],[Column6]]," - ", Table1[[#This Row],[Column10]], " (", Table1[[#This Row],[Column1]],")") -> ILLINOIS - CHICAGO MIDWAY INTL (MDW) | L88: 20.8 | M88: 22.7 | N88: 18.2 | O88: 21.7 | P88: none | Q88: none | R88: none | S88: none | T88: 2.56 | U88: 2.05 | V88: 1.93 | W88: 6.57 | X88: For snowfall and precip stats only Chicago was listed.
A89: PIA | B89: 2017-09-14 | C89: AGL | D89: CHI | E89: IL | F89: ILLINOIS | G89: PEORIA | H89: IL | I89: PEORIA | J89: GENERAL DOWNING - PEORIA INTL | K89: =CONCATENATE(Table1[[#This Row],[Column6]]," - ", Table1[[#This Row],[Column10]], " (", Table1[[#This Row],[Column1]],")") -> ILLINOIS - GENERAL DOWNING - PEORIA INTL (PIA) | L89: 19.7 | M89: 21 | N89: 17 | O89: 21.2 | P89: 7 | Q89: 7 | R89: 6 | S89: 25 | T89: 2.4 | U89: 1.77 | V89: 1.77 | W89: 5.99
A90: MLI | B90: 2017-09-14 | C90: AGL | D90: CHI | E90: IL | F90: ILLINOIS | G90: ROCK ISLAND | H90: IL | I90: MOLINE | J90: QUAD CITY INTL | K90: =CONCATENATE(Table1[[#This Row],[Column6]]," - ", Table1[[#This Row],[Column10]], " (", Table1[[#This Row],[Column1]],")") -> ILLINOIS - QUAD CITY INTL (MLI) | L90: 17 | M90: 18.6 | N90: 14.3 | O90: 18.3 | P90: 9 | Q90: 9 | R90: 7 | S90: 31 | T90: 2.17 | U90: 1.5 | V90: 1.61 | W90: 5.27
A91: PWK | B91: 2017-09-14 | C91: AGL | D91: CHI | E91: IL | F91: ILLINOIS | G91: COOK | H91: IL | I91: CHICAGO/PROSPECT HEIGHTS/WHEELING | J91: CHICAGO EXECUTIVE | K91: =CONCATENATE(Table1[[#This Row],[Column6]]," - ", Table1[[#This Row],[Column10]], " (", Table1[[#This Row],[Column1]],")") -> ILLINOIS - CHICAGO EXECUTIVE (PWK) | L91: 19.3 | M91: 20.9 | N91: 16.6 | O91: 20.4 | P91: 9 | Q91: 11 | R91: 9 | S91: 37 | T91: 2.24 | U91: 1.73 | V91: 1.77 | W91: 4.41 | X91: aka Palwaukee and used for winter temps. For snowfall and precip stats used Chicado O'Hare.
A92: RFD | B92: 2017-09-14 | C92: AGL | D92: CHI | E92: IL | F92: ILLINOIS | G92: WINNEBAGO | H92: IL | I92: CHICAGO/ROCKFORD | J92: CHICAGO/ROCKFORD INTL | K92: =CONCATENATE(Table1[[#This Row],[Column6]]," - ", Table1[[#This Row],[Column10]], " (", Table1[[#This Row],[Column1]],")") -> ILLINOIS - CHICAGO/ROCKFORD INTL (RFD) | L92: 16.3 | M92: 17.7 | N92: 13.5 | O92: 17.7 | P92: 11 | Q92: 10 | R92: 8 | S92: 37 | T92: 1.97 | U92: 1.38 | V92: 1.42 | W92: 4.76
A93: CPS | B93: 2017-09-14 | C93: AGL | D93: CHI | E93: IL | F93: ILLINOIS | G93: ST CLAIR | H93: IL | I93: CAHOKIA/ST LOUIS | J93: ST LOUIS DOWNTOWN | K93: =CONCATENATE(Table1[[#This Row],[Column6]]," - ", Table1[[#This Row],[Column10]], " (", Table1[[#This Row],[Column1]],")") -> ILLINOIS - ST LOUIS DOWNTOWN (CPS) | L93: 25.1 | M93: 26 | N93: 22.7 | O93: 26.7 | P93: none | Q93: none | R93: none | S93: none | T93: 2.95 | U93: 2.17 | V93: 2.48 | W93: 7.53
A94: IND | B94: 2017-09-14 | C94: AGL | D94: CHI | E94: IN | F94: INDIANA | G94: MARION | H94: IN | I94: INDIANAPOLIS | J94: INDIANAPOLIS INTL | K94: =CONCATENATE(Table1[[#This Row],[Column6]]," - ", Table1[[#This Row],[Column10]], " (", Table1[[#This Row],[Column1]],")") -> INDIANA - INDIANAPOLIS INTL (IND) | L94: 22.9 | M94: 24.4 | N94: 20.5 | O94: 23.9 | P94: 7 | Q94: 9 | R94: 7 | S94: 27 | T94: 3.19 | U94: 2.68 | V94: 2.32 | W94: 8.15 | X94: For snowfall and precip stats Indianapolis Eagle Creek Airpark used and was described as Indianapolis Int'l Airport.
A95: FWA | B95: 2017-09-14 | C95: AGL | D95: CHI | E95: IN | F95: INDIANA | G95: ALLEN | H95: IN | I95: FORT WAYNE | J95: FORT WAYNE INTL | K95: =CONCATENATE(Table1[[#This Row],[Column6]]," - ", Table1[[#This Row],[Column10]], " (", Table1[[#This Row],[Column1]],")") -> INDIANA - FORT WAYNE INTL (FWA) | L95: 19.9 | M95: 22.1 | N95: 17.4 | O95: 20.3 | P95: 9 | Q95: 10 | R95: 8 | S95: 34 | T95: 2.76 | U95: 2.24 | V95: 2.05 | W95: 7.07
A96: SBN | B96: 2017-09-14 | C96: AGL | D96: CHI | E96: IN | F96: INDIANA | G96: ST JOSEPH | H96: IN | I96: SOUTH BEND | J96: SOUTH BEND INTL | K96: =CONCATENATE(Table1[[#This Row],[Column6]]," - ", Table1[[#This Row],[Column10]], " (", Table1[[#This Row],[Column1]],")") -> INDIANA - SOUTH BEND INTL (SBN) | L96: 20.1 | M96: 22.4 | N96: 17.6 | O96: 20.5 | P96: 17 | Q96: 21 | R96: 15 | S96: 66 | T96: 2.6 | U96: 2.28 | V96: 1.97 | W96: 6.85
A97: EVV | B97: 2017-09-14 | C97: AGL | D97: CHI | E97: IN | F97: INDIANA | G97: VANDERBURGH | H97: IN | I97: EVANSVILLE | J97: EVANSVILLE RGNL | K97: =CONCATENATE(Table1[[#This Row],[Column6]]," - ", Table1[[#This Row],[Column10]], " (", Table1[[#This Row],[Column1]],")") -> INDIANA - EVANSVILLE RGNL (EVV) | L97: 26.1 | M97: 27.1 | N97: 24 | O97: 27.2 | P97: 3 | Q97: 3 | R97: 4 | S97: 11 | T97: 3.78 | U97: 3.11 | V97: 3.19 | W97: 10.03
A98: DSM | B98: 2017-09-14 | C98: ACE | D98: NONE | E98: IA | F98: IOWA | G98: POLK | H98: IA | I98: DES MOINES | J98: DES MOINES INTL | K98: =CONCATENATE(Table1[[#This Row],[Column6]]," - ", Table1[[#This Row],[Column10]], " (", Table1[[#This Row],[Column1]],")") -> IOWA - DES MOINES INTL (DSM) | L98: 17 | M98: 18 | N98: 14.3 | O98: 18.8 | P98: 9 | Q98: 8 | R98: 8 | S98: 35 | T98: 1.46 | U98: 1.02 | V98: 1.26 | W98: 3.7
A99: CID | B99: 2017-09-14 | C99: ACE | D99: NONE | E99: IA | F99: IOWA | G99: LINN | H99: IA | I99: CEDAR RAPIDS | J99: THE EASTERN IOWA | K99: =CONCATENATE(Table1[[#This Row],[Column6]]," - ", Table1[[#This Row],[Column10]], " (", Table1[[#This Row],[Column1]],")") -> IOWA - THE EASTERN IOWA (CID) | L99: 13.7 | M99: 17.8 | N99: 10.9 | O99: 15.6 | P99: 9 | Q99: 8 | R99: 7 | S99: 32 | T99: 1.61 | U99: 1.1 | V99: 1.22 | W99: 3.56 | X99: aka Cedar Rapids Municipal Airport and used for winter temps and snowfall and precip stats.
A100: ICT | B100: 2017-09-14 | C100: ACE | D100: NONE | E100: KS | F100: KANSAS | G100: SEDGWICK | H100: KS | I100: WICHITA | J100: WICHITA DWIGHT D EISENHOWER NATIONAL | K100: =CONCATENATE(Table1[[#This Row],[Column6]]," - ", Table1[[#This Row],[Column10]], " (", Table1[[#This Row],[Column1]],")") -> KANSAS - WICHITA DWIGHT D EISENHOWER NATIONAL (ICT) | L100: 24 | M100: 24.1 | N100: 21.9 | O100: 26.1 | W100: 3.21 | X100: For snowfall and precip stats airport not found.
A101: SLN | B101: 2017-09-14 | C101: ACE | D101: NONE | E101: KS | F101: KANSAS | G101: SALINE | H101: KS | I101: SALINA | J101: SALINA RGNL | K101: =CONCATENATE(Table1[[#This Row],[Column6]]," - ", Table1[[#This Row],[Column10]], " (", Table1[[#This Row],[Column1]],")") -> KANSAS - SALINA RGNL (SLN) | L101: 22.4 | M101: 22.3 | N101: 20.5 | O101: 24.6 | P101: none | Q101: none | R101: none | S101: none | T101: 0.94 | U101: 0.79 | V101: 1.06 | W101: 2.74 | X101: For snowfall and precip stats Salina was only listed.
A102: HYS | B102: 2017-09-14 | C102: ACE | D102: NONE | E102: KS | F102: KANSAS | G102: ELLIS | H102: KS | I102: HAYS | J102: HAYS RGNL | K102: =CONCATENATE(Table1[[#This Row],[Column6]]," - ", Table1[[#This Row],[Column10]], " (", Table1[[#This Row],[Column1]],")") -> KANSAS - HAYS RGNL (HYS) | L102: 22.8 | M102: 22.8 | N102: 21.2 | O102: 24.7 | W102: 1.93 | X102: Airport not found
A103: SDF | B103: 2017-09-14 | C103: ASO | D103: MEM | E103: KY | F103: KENTUCKY | G103: JEFFERSON | H103: KY | I103: LOUISVILLE | J103: LOUISVILLE INTL-STANDIFORD FIELD | K103: =CONCATENATE(Table1[[#This Row],[Column6]]," - ", Table1[[#This Row],[Column10]], " (", Table1[[#This Row],[Column1]],")") -> KENTUCKY - LOUISVILLE INTL-STANDIFORD FIELD (SDF) | L103: 28.9 | M103: 30 | N103: 26.8 | O103: 29.9 | P103: 3 | Q103: 4 | R103: 5 | S103: 13 | T103: 3.82 | U103: 3.23 | V103: 3.19 | W103: 10.25
A104: CVG | B104: 2017-09-14 | C104: ASO | D104: MEM | E104: KY | F104: KENTUCKY | G104: BOONE | H104: KY | I104: COVINGTON | J104: CINCINNATI/NORTHERN KENTUCKY INTL | K104: =CONCATENATE(Table1[[#This Row],[Column6]]," - ", Table1[[#This Row],[Column10]], " (", Table1[[#This Row],[Column1]],")") -> KENTUCKY - CINCINNATI/NORTHERN KENTUCKY INTL (CVG) | L104: 25.2 | M104: 26.6 | N104: 23 | O104: 26 | W104: 9.18 | X104: For snowfall and precip stats Covington/Cincinnati not found in Kentucky or Ohio.
A105: LEX | B105: 2017-09-14 | C105: ASO | D105: MEM | E105: KY | F105: KENTUCKY | G105: FAYETTE | H105: KY | I105: LEXINGTON | J105: BLUE GRASS | K105: =CONCATENATE(Table1[[#This Row],[Column6]]," - ", Table1[[#This Row],[Column10]], " (", Table1[[#This Row],[Column1]],")") -> KENTUCKY - BLUE GRASS (LEX) | L105: 27 | M105: 28 | N105: 24.9 | O105: 28.1 | P105: 3 | Q105: 4 | R105: 5 | S105: 13 | T105: 3.94 | U105: 3.19 | V105: 3.19 | W105: 10.33
A106: MSY | B106: 2017-09-14 | C106: ASW | D106: LNM | E106: LA | F106: LOUISIANA | G106: JEFFERSON | H106: LA | I106: NEW ORLEANS | J106: LOUIS ARMSTRONG NEW ORLEANS INTL | K106: =CONCATENATE(Table1[[#This Row],[Column6]]," - ", Table1[[#This Row],[Column10]], " (", Table1[[#This Row],[Column1]],")") -> LOUISIANA - LOUIS ARMSTRONG NEW ORLEANS INTL (MSY) | L106: 46.5 | M106: 46.9 | N106: 44.7 | O106: 48 | P106: none | Q106: none | R106: none | S106: none | T106: 5.28 | U106: 5.12 | V106: 5.28 | W106: 15.69 | X106: For winter temp only New Orleans Airport was listed. For snowfall and precip stats only New Orleans was listed.
A107: HUM | B107: 2017-09-14 | C107: ASW | D107: LNM | E107: LA | F107: LOUISIANA | G107: TERREBONNE | H107: LA | I107: HOUMA | J107: HOUMA-TERREBONNE | K107: =CONCATENATE(Table1[[#This Row],[Column6]]," - ", Table1[[#This Row],[Column10]], " (", Table1[[#This Row],[Column1]],")") -> LOUISIANA - HOUMA-TERREBONNE (HUM) | L107: 45.4 | M107: 45.4 | N107: 43.5 | O107: 53.5 | P107: none | Q107: none | R107: none | S107: none | T107: 4.13 | U107: 4.96 | V107: 4.76 | W107: 13.88 | X107: For snowfall and precip stats only Houma was listed.
A108: IYA | B108: 2017-09-14 | C108: ASW | D108: LNM | E108: LA | F108: LOUISIANA | G108: VERMILION | H108: LA | I108: ABBEVILLE | J108: ABBEVILLE CHRIS CRUSTA MEMORIAL | K108: =CONCATENATE(Table1[[#This Row],[Column6]]," - ", Table1[[#This Row],[Column10]], " (", Table1[[#This Row],[Column1]],")") -> LOUISIANA - ABBEVILLE CHRIS CRUSTA MEMORIAL (IYA) | L108: 44.5 | M108: 42.5 | N108: 40.7 | O108: 43.7 | W108: 15.7 | X108: Airport not found.
A109: BTR | B109: 2017-09-14 | C109: ASW | D109: LNM | E109: LA | F109: LOUISIANA | G109: EAST BATON ROUGE | H109: LA | I109: BATON ROUGE | J109: BATON ROUGE METROPOLITAN, RYAN FIELD | K109: =CONCATENATE(Table1[[#This Row],[Column6]]," - ", Table1[[#This Row],[Column10]], " (", Table1[[#This Row],[Column1]],")") -> LOUISIANA - BATON ROUGE METROPOLITAN, RYAN FIELD (BTR) | L109: 42.7 | M109: 42.7 | N109: 41.2 | O109: 44.5 | P109: none | Q109: none | R109: none | S109: none | T109: 5.59 | U109: 5.71 | V109: 5.04 | W109: 16.36
A110: LFT | B110: 2017-09-14 | C110: ASW | D110: LNM | E110: LA | F110: LOUISIANA | G110: LAFAYETTE | H110: LA | I110: LAFAYETTE | J110: LAFAYETTE RGNL/PAUL FOURNET FIELD | K110: =CONCATENATE(Table1[[#This Row],[Column6]]," - ", Table1[[#This Row],[Column10]], " (", Table1[[#This Row],[Column1]],")") -> LOUISIANA - LAFAYETTE RGNL/PAUL FOURNET FIELD (LFT) | L110: 44.5 | M110: 44.5 | N110: 42.9 | O110: 46.4 | P110: none | Q110: none | R110: none | S110: none | T110: 5.59 | U110: 5.67 | V110: 4.45 | W110: 15.7
A111: SHV | B111: 2017-09-14 | C111: ASW | D111: LNM | E111: LA | F111: LOUISIANA | G111: CADDO | H111: LA | I111: SHREVEPORT | J111: SHREVEPORT RGNL | K111: =CONCATENATE(Table1[[#This Row],[Column6]]," - ", Table1[[#This Row],[Column10]], " (", Table1[[#This Row],[Column1]],")") -> LOUISIANA - SHREVEPORT RGNL (SHV) | L111: 37.8 | M111: 37.7 | N111: 36.2 | O111: 39.7 | P111: none | Q111: none | R111: none | S111: 0 | T111: 4.76 | U111: 4.21 | V111: 4.76 | W111: 13.72
A112: LCH | B112: 2017-09-14 | C112: ASW | D112: LNM | E112: LA | F112: LOUISIANA | G112: CALCASIEU | H112: LA | I112: LAKE CHARLES | J112: LAKE CHARLES RGNL | K112: =CONCATENATE(Table1[[#This Row],[Column6]]," - ", Table1[[#This Row],[Column10]], " (", Table1[[#This Row],[Column1]],")") -> LOUISIANA - LAKE CHARLES RGNL (LCH) | L112: 43.9 | M112: 44.1 | N112: 42.3 | O112: 45.5 | P112: none | Q112: none | R112: none | S112: none | T112: 4.69 | U112: 5.24 | V112: 3.46 | W112: 13.37
A113: PWM | B113: 2017-09-14 | C113: ANE | D113: NONE | E113: ME | F113: MAINE | G113: CUMBERLAND | H113: ME | I113: PORTLAND | J113: PORTLAND INTL JETPORT | K113: =CONCATENATE(Table1[[#This Row],[Column6]]," - ", Table1[[#This Row],[Column10]], " (", Table1[[#This Row],[Column1]],")") -> MAINE - PORTLAND INTL JETPORT (PWM) | L113: 16.8 | M113: 20.4 | N113: 13.4 | O113: 16.4 | P113: 13 | Q113: 19 | R113: 12 | S113: 62 | T113: 4.02 | U113: 3.39 | V113: 3.27 | W113: 10.65
A114: LEW | B114: 2017-09-14 | C114: ANE | D114: NONE | E114: ME | F114: MAINE | G114: ANDROSCOGGIN | H114: ME | I114: AUBURN/LEWISTON | J114: AUBURN/LEWISTON MUNI | K114: =CONCATENATE(Table1[[#This Row],[Column6]]," - ", Table1[[#This Row],[Column10]], " (", Table1[[#This Row],[Column1]],")") -> MAINE - AUBURN/LEWISTON MUNI (LEW) | L114: 12 | M114: 17.2 | N114: 8.1 | O114: 10.6 | P114: none | Q114: none | R114: none | S114: 0 | T114: 4.13 | U114: 3.9 | V114: 2.99 | W114: 10.04 | X114: For snowfall and percip stats only Lewiston listed.
A115: BGR | B115: 2017-09-14 | C115: ANE | D115: NONE | E115: ME | F115: MAINE | G115: PENOBSCOT | H115: ME | I115: BANGOR | J115: BANGOR INTL | K115: =CONCATENATE(Table1[[#This Row],[Column6]]," - ", Table1[[#This Row],[Column10]], " (", Table1[[#This Row],[Column1]],")") -> MAINE - BANGOR INTL (BGR) | L115: 10.8 | M115: 15.5 | N115: 6.7 | O115: 10.2 | P115: 14 | Q115: 19 | R115: 15 | S115: 66 | T115: 3.46 | U115: 2.87 | V115: 2.52 | W115: 8.89
A116: RKD | B116: 2017-09-14 | C116: ANE | D116: NONE | E116: ME | F116: MAINE | G116: KNOX | H116: ME | I116: ROCKLAND | J116: KNOX COUNTY RGNL | K116: =CONCATENATE(Table1[[#This Row],[Column6]]," - ", Table1[[#This Row],[Column10]], " (", Table1[[#This Row],[Column1]],")") -> MAINE - KNOX COUNTY RGNL (RKD) | L116: 16.8 | M116: 20.4 | N116: 13.4 | O116: 16.4 | W116: 10.65 | X116: Airport not found
A117: BWI | B117: 2017-09-14 | C117: AEA | D117: DCA | E117: MD | F117: MARYLAND | G117: ANNE ARUNDEL | H117: MD | I117: BALTIMORE | J117: BALTIMORE/WASHINGTON INTL THURGOOD MARSHAL | K117: =CONCATENATE(Table1[[#This Row],[Column6]]," - ", Table1[[#This Row],[Column10]], " (", Table1[[#This Row],[Column1]],")") -> MARYLAND - BALTIMORE/WASHINGTON INTL THURGOOD MARSHAL (BWI) | L117: 26.4 | M117: 28.1 | N117: 24.4 | O117: 26.6 | P117: none | Q117: none | R117: none | S117: none | T117: 3.7 | U117: 3.46 | V117: 3.07 | W117: 9.32
A118: BOS | B118: 2017-09-14 | C118: ANE | D118: NONE | E118: MA | F118: MASSACHUSETTS | G118: SUFFOLK | H118: MA | I118: BOSTON | J118: GENERAL EDWARD LAWRENCE LOGAN INTL | K118: =CONCATENATE(Table1[[#This Row],[Column6]]," - ", Table1[[#This Row],[Column10]], " (", Table1[[#This Row],[Column1]],")") -> MASSACHUSETTS - GENERAL EDWARD LAWRENCE LOGAN INTL (BOS) | L118: 25.1 | M118: 28.2 | N118: 22.2 | O118: 24.7 | P118: 9 | Q118: 13 | R118: 11 | S118: 44 | T118: 3.78 | U118: 3.35 | V118: 3.27 | W118: 10.39
A119: ACK | B119: 2017-09-14 | C119: ANE | D119: NONE | E119: MA | F119: MASSACHUSETTS | G119: NANTUCKET | H119: MA | I119: NANTUCKET | J119: NANTUCKET MEMORIAL | K119: =CONCATENATE(Table1[[#This Row],[Column6]]," - ", Table1[[#This Row],[Column10]], " (", Table1[[#This Row],[Column1]],")") -> MASSACHUSETTS - NANTUCKET MEMORIAL (ACK) | L119: 27.5 | M119: 30.9 | N119: 25.1 | O119: 26.5 | P119: none | Q119: none | R119: none | S119: none | T119: 3.74 | U119: 4.13 | V119: 2.72 | W119: 10.13 | X119: For snowfall and precip stats only Nantucket was listed.
A120: HYA | B120: 2017-09-14 | C120: ANE | D120: NONE | E120: MA | F120: MASSACHUSETTS | G120: BARNSTABLE | H120: MA | I120: HYANNIS | J120: BARNSTABLE MUNI-BOARDMAN/POLANDO FIELD | K120: =CONCATENATE(Table1[[#This Row],[Column6]]," - ", Table1[[#This Row],[Column10]], " (", Table1[[#This Row],[Column1]],")") -> MASSACHUSETTS - BARNSTABLE MUNI-BOARDMAN/POLANDO FIELD (HYA) | L120: 24.7 | M120: 27.6 | N120: 22.2 | O120: 24.2 | P120: 4 | Q120: 4 | R120: 5 | S120: 15 | T120: 4.17 | U120: 3.66 | V120: 3.31 | W120: 11.83 | X120: For snowfall and precip stats only Hyannis was listed.
A121: BED | B121: 2017-09-14 | C121: ANE | D121: NONE | E121: MA | F121: MASSACHUSETTS | G121: MIDDLESEX | H121: MA | I121: BEDFORD | J121: LAURENCE G HANSCOM FLD | K121: =CONCATENATE(Table1[[#This Row],[Column6]]," - ", Table1[[#This Row],[Column10]], " (", Table1[[#This Row],[Column1]],")") -> MASSACHUSETTS - LAURENCE G HANSCOM FLD (BED) | L121: 20.9 | M121: 23.6 | N121: 18 | O121: 21 | P121: none | Q121: none | R121: none | S121: none | T121: 4.06 | U121: 4.25 | V121: 3.35 | W121: 10.16 | X121: For snowfall and precip stats only Bedford was listed.
A122: MVY | B122: 2017-09-14 | C122: ANE | D122: NONE | E122: MA | F122: MASSACHUSETTS | G122: DUKES | H122: MA | I122: VINEYARD HAVEN | J122: MARTHA'S VINEYARD | K122: =CONCATENATE(Table1[[#This Row],[Column6]]," - ", Table1[[#This Row],[Column10]], " (", Table1[[#This Row],[Column1]],")") -> MASSACHUSETTS - MARTHA'S VINEYARD (MVY) | L122: 23.9 | M122: 26.7 | N122: 21.9 | O122: 23 | P122: 4 | Q122: 7 | R122: 8 | S122: 23 | T122: 4.29 | U122: 3.86 | V122: 3.19 | W122: 10.41 | X122: For snowfall and precip stats only Edgartown was listed.
A123: ORE | B123: 2017-09-14 | C123: ANE | D123: NONE | E123: MA | F123: MASSACHUSETTS | G123: FRANKLIN | H123: MA | I123: ORANGE | J123: ORANGE MUNI | K123: =CONCATENATE(Table1[[#This Row],[Column6]]," - ", Table1[[#This Row],[Column10]], " (", Table1[[#This Row],[Column1]],")") -> MASSACHUSETTS - ORANGE MUNI (ORE) | L123: 13.9 | M123: 18.1 | N123: 10.6 | O123: 12.9 | P123: - | Q123: - | R123: - | S123: - | T123: 3.23 | U123: 2.72 | V123: 2.64 | W123: 8.58
A124: DTW | B124: 2017-09-14 | C124: AGL | D124: DET | E124: MI | F124: MICHIGAN | G124: WAYNE | H124: MI | I124: DETROIT | J124: DETROIT METROPOLITAN WAYNE COUNTY | K124: =CONCATENATE(Table1[[#This Row],[Column6]]," - ", Table1[[#This Row],[Column10]], " (", Table1[[#This Row],[Column1]],")") -> MICHIGAN - DETROIT METROPOLITAN WAYNE COUNTY (DTW) | L124: 21.4 | M124: 24.1 | N124: 19.1 | O124: 21 | P124: none | Q124: none | R124: none | S124: none | T124: 2.09 | U124: 2.05 | V124: 2.09 | W124: 6.44 | X124: For snowfall and precip stats only Detroit was listed.
A125: GRR | B125: 2017-09-14 | C125: AGL | D125: DET | E125: MI | F125: MICHIGAN | G125: KENT | H125: MI | I125: GRAND RAPIDS | J125: GERALD R FORD INTL | K125: =CONCATENATE(Table1[[#This Row],[Column6]]," - ", Table1[[#This Row],[Column10]], " (", Table1[[#This Row],[Column1]],")") -> MICHIGAN - GERALD R FORD INTL (GRR) | L125: 20.5 | M125: 23.5 | N125: 18.1 | O125: 19.9 | P125: 22 | Q125: 21 | R125: 15 | S125: 76 | T125: 2.52 | U125: 2.09 | V125: 1.77 | W125: 6.38
A126: TVC | B126: 2017-09-14 | C126: AGL | D126: DET | E126: MI | F126: MICHIGAN | G126: GRAND TRAVERSE | H126: MI | I126: TRAVERSE CITY | J126: CHERRY CAPITAL | K126: =CONCATENATE(Table1[[#This Row],[Column6]]," - ", Table1[[#This Row],[Column10]], " (", Table1[[#This Row],[Column1]],")") -> MICHIGAN - CHERRY CAPITAL (TVC) | L126: 17.2 | M126: 21 | N126: 15.2 | O126: 15 | P126: 27 | Q126: 33 | R126: 19 | S126: 102 | T126: 2.48 | U126: 2.83 | V126: 1.5 | W126: 6.81
A127: LAN | B127: 2017-09-14 | C127: AGL | D127: DET | E127: MI | F127: MICHIGAN | G127: CLINTON | H127: MI | I127: LANSING | J127: CAPITAL REGION INTL | K127: =CONCATENATE(Table1[[#This Row],[Column6]]," - ", Table1[[#This Row],[Column10]], " (", Table1[[#This Row],[Column1]],")") -> MICHIGAN - CAPITAL REGION INTL (LAN) | L127: 19.2 | M127: 22.3 | N127: 16.8 | O127: 18.5 | P127: 13 | Q127: 14 | R127: 12 | S127: 51 | T127: 1.85 | U127: 1.65 | V127: 1.46 | W127: 4.99
A128: 83D | B128: 2017-09-14 | C128: AGL | D128: DET | E128: MI | F128: MICHIGAN | G128: MACKINAC | H128: MI | I128: ST IGNACE | J128: MACKINAC COUNTY | K128: =CONCATENATE(Table1[[#This Row],[Column6]]," - ", Table1[[#This Row],[Column10]], " (", Table1[[#This Row],[Column1]],")") -> MICHIGAN - MACKINAC COUNTY (83D) | L128: =AVERAGE(Table1[[#This Row],[Column12]:[Column14]]) -> 17.06666667 | M128: 21 | N128: 15.2 | O128: 15 | W128: 5.03 | X128: Airport not found
A129: FNT | B129: 2017-09-14 | C129: AGL | D129: DET | E129: MI | F129: MICHIGAN | G129: GENESEE | H129: MI | I129: FLINT | J129: BISHOP INTL | K129: =CONCATENATE(Table1[[#This Row],[Column6]]," - ", Table1[[#This Row],[Column10]], " (", Table1[[#This Row],[Column1]],")") -> MICHIGAN - BISHOP INTL (FNT) | L129: 17.7 | M129: 20.8 | N129: 15.3 | O129: 16.9 | P129: 12 | Q129: 13 | R129: 11 | S129: 48 | T129: 1.93 | U129: 1.61 | V129: 1.5 | W129: 5.03
A130: CVX | B130: 2017-09-14 | C130: AGL | D130: DET | E130: MI | F130: MICHIGAN | G130: CHARLEVOIX | H130: MI | I130: CHARLEVOIX | J130: CHARLEVOIX MUNI | K130: =CONCATENATE(Table1[[#This Row],[Column6]]," - ", Table1[[#This Row],[Column10]], " (", Table1[[#This Row],[Column1]],")") -> MICHIGAN - CHARLEVOIX MUNI (CVX) | L130: 22.2 | M130: 26.3 | N130: 20.8 | O130: 19.2 | P130: 34 | Q130: 33 | R130: 22 | S130: 116 | T130: 2.6 | U130: 2.28 | V130: 1.65 | W130: 6.53
A131: MSP | B131: 2017-09-14 | C131: AGL | D131: DMA | E131: MN | F131: MINNESOTA | G131: HENNEPIN | H131: MN | I131: MINNEAPOLIS | J131: MINNEAPOLIS-ST PAUL INTL/WOLD-CHAMBERLAIN | K131: =CONCATENATE(Table1[[#This Row],[Column6]]," - ", Table1[[#This Row],[Column10]], " (", Table1[[#This Row],[Column1]],")") -> MINNESOTA - MINNEAPOLIS-ST PAUL INTL/WOLD-CHAMBERLAIN (MSP) | L131: 10.8 | M131: 12.3 | N131: 7.5 | O131: 12.8 | P131: 12 | Q131: 12 | R131: 8 | S131: 55 | T131: 1.14 | U131: 0.91 | V131: 0.79 | W131: 2.83
A132: RST | B132: 2017-09-14 | C132: AGL | D132: DMA | E132: MN | F132: MINNESOTA | G132: OLMSTED | H132: MN | I132: ROCHESTER | J132: ROCHESTER INTL | K132: =CONCATENATE(Table1[[#This Row],[Column6]]," - ", Table1[[#This Row],[Column10]], " (", Table1[[#This Row],[Column1]],")") -> MINNESOTA - ROCHESTER INTL (RST) | L132: 10.8 | M132: 12.2 | N132: 7.7 | O132: 12.4 | P132: 13 | Q132: 12 | R132: 9 | S132: 53 | T132: 1.22 | U132: 0.87 | V132: 0.83 | W132: 2.92
A133: JAN | B133: 2017-09-14 | C133: ASO | D133: JAN | E133: MS | F133: MISSISSIPPI | G133: RANKIN | H133: MS | I133: JACKSON | J133: JACKSON-MEDGAR WILEY EVERS INTL | K133: =CONCATENATE(Table1[[#This Row],[Column6]]," - ", Table1[[#This Row],[Column10]], " (", Table1[[#This Row],[Column1]],")") -> MISSISSIPPI - JACKSON-MEDGAR WILEY EVERS INTL (JAN) | L133: 37 | M133: 37.3 | N133: 35.3 | O133: 38.5 | P133: none | Q133: none | R133: none | S133: none | T133: 5.16 | U133: 4.96 | V133: 4.76 | W133: 14.88 | X133: aka Jackson Thompson and was used for snowfall and precip stats.
A134: TUP | B134: 2017-09-14 | C134: ASO | D134: JAN | E134: MS | F134: MISSISSIPPI | G134: LEE | H134: MS | I134: TUPELO | J134: TUPELO RGNL | K134: =CONCATENATE(Table1[[#This Row],[Column6]]," - ", Table1[[#This Row],[Column10]], " (", Table1[[#This Row],[Column1]],")") -> MISSISSIPPI - TUPELO RGNL (TUP) | L134: 33.7 | M134: 34.3 | N134: 31.7 | O134: 35.3 | P134: 0 | Q134: 1 | R134: 1 | S134: 2 | T134: 6.3 | U134: 4.49 | V134: 4.96 | W134: 15.72
A135: GPT | B135: 2017-09-14 | C135: ASO | D135: JAN | E135: MS | F135: MISSISSIPPI | G135: HARRISON | H135: MS | I135: GULFPORT | J135: GULFPORT-BILOXI INTL | K135: =CONCATENATE(Table1[[#This Row],[Column6]]," - ", Table1[[#This Row],[Column10]], " (", Table1[[#This Row],[Column1]],")") -> MISSISSIPPI - GULFPORT-BILOXI INTL (GPT) | L135: 43.1 | M135: 43.8 | N135: 41.4 | O135: 44.2 | P135: none | Q135: none | R135: none | S135: none | T135: 4.84 | U135: 6.5 | V135: 5.51 | W135: 15.32
A136: STL | B136: 2017-09-14 | C136: ACE | D136: NONE | E136: MO | F136: MISSOURI | G136: ST LOUIS | H136: MO | I136: ST LOUIS | J136: ST LOUIS LAMBERT INTL | K136: =CONCATENATE(Table1[[#This Row],[Column6]]," - ", Table1[[#This Row],[Column10]], " (", Table1[[#This Row],[Column1]],")") -> MISSOURI - ST LOUIS LAMBERT INTL (STL) | L136: 26 | M136: 26.9 | N136: 23.7 | O136: 27.6 | P136: 4 | Q136: 6 | R136: 4 | S136: 17 | T136: 2.83 | U136: 2.4 | V136: 2.24 | W136: 7.48 | X136: For snowfall and percip stats airport found under City of Bridgeton, MO.
A137: MCI | B137: 2017-09-14 | C137: ACE | D137: NONE | E137: MO | F137: MISSOURI | G137: PLATTE | H137: MO | I137: KANSAS CITY | J137: KANSAS CITY INTL | K137: =CONCATENATE(Table1[[#This Row],[Column6]]," - ", Table1[[#This Row],[Column10]], " (", Table1[[#This Row],[Column1]],")") -> MISSOURI - KANSAS CITY INTL (MCI) | L137: 22 | M137: 22.6 | N137: 19.6 | O137: 23.8 | P137: 4 | Q137: 4 | R137: 3 | S137: 12 | T137: 1.73 | U137: 1.14 | V137: 1.5 | W137: 4.06
A138: SGF | B138: 2017-09-14 | C138: ACE | D138: NONE | E138: MO | F138: MISSOURI | G138: GREENE | H138: MO | I138: SPRINGFIELD | J138: SPRINGFIELD-BRANSON NATIONAL | K138: =CONCATENATE(Table1[[#This Row],[Column6]]," - ", Table1[[#This Row],[Column10]], " (", Table1[[#This Row],[Column1]],")") -> MISSOURI - SPRINGFIELD-BRANSON NATIONAL (SGF) | L138: 24.5 | M138: 25 | N138: 26.1 | O138: 22.4 | P138: 5 | Q138: 5 | R138: 4 | S138: 17 | T138: 3.03 | U138: 2.48 | V138: 2.52 | W138: 8.03
A139: MKC | B139: 2017-09-14 | C139: ACE | D139: NONE | E139: MO | F139: MISSOURI | G139: CLAY | H139: MO | I139: KANSAS CITY | J139: CHARLES B WHEELER DOWNTOWN | K139: =CONCATENATE(Table1[[#This Row],[Column6]]," - ", Table1[[#This Row],[Column10]], " (", Table1[[#This Row],[Column1]],")") -> MISSOURI - CHARLES B WHEELER DOWNTOWN (MKC) | L139: 24.7 | M139: 25.6 | N139: 22.4 | O139: 26.3 | P139: 4 | Q139: 4 | R139: 3 | S139: 12 | T139: 1.73 | U139: 1.14 | V139: 1.5 | W139: 4.37
A140: SUS | B140: 2017-09-14 | C140: ACE | D140: NONE | E140: MO | F140: MISSOURI | G140: ST LOUIS | H140: MO | I140: ST LOUIS | J140: SPIRIT OF ST LOUIS | K140: =CONCATENATE(Table1[[#This Row],[Column6]]," - ", Table1[[#This Row],[Column10]], " (", Table1[[#This Row],[Column1]],")") -> MISSOURI - SPIRIT OF ST LOUIS (SUS) | L140: 24 | M140: 24.7 | N140: 21.8 | O140: 25.6 | P140: 2 | Q140: 3 | R140: 2 | S140: 7 | T140: 0 | U140: 2.05 | V140: 2.32 | W140: 7.28
A141: BIL | B141: 2017-09-14 | C141: ANM | D141: HLN | E141: MT | F141: MONTANA | G141: YELLOWSTONE | H141: MT | I141: BILLINGS | J141: BILLINGS LOGAN INTL | K141: =CONCATENATE(Table1[[#This Row],[Column6]]," - ", Table1[[#This Row],[Column10]], " (", Table1[[#This Row],[Column1]],")") -> MONTANA - BILLINGS LOGAN INTL (BIL) | L141: 18.7 | M141: 17.8 | N141: 17.8 | O141: 20.6 | P141: 8 | Q141: 8 | R141: 6 | S141: 54 | T141: 0.51 | U141: 0.47 | V141: 0.47 | W141: 1.46 | X141: For snowdall and precip stats only Billings Water Plant was listed.
A142: BZN | B142: 2017-09-14 | C142: ANM | D142: HLN | E142: MT | F142: MONTANA | G142: GALLATIN | H142: MT | I142: BOZEMAN | J142: BOZEMAN YELLOWSTONE INTL | K142: =CONCATENATE(Table1[[#This Row],[Column6]]," - ", Table1[[#This Row],[Column10]], " (", Table1[[#This Row],[Column1]],")") -> MONTANA - BOZEMAN YELLOWSTONE INTL (BZN) | L142: 11.7 | M142: 9.3 | N142: 11.1 | O142: 14.9 | P142: 11 | Q142: 9 | R142: 6 | S142: 50 | T142: 0.55 | U142: 0.55 | V142: 0.55 | W142: 1.43 | X142: aka Bozeman Gallatin field and used for winter temperatures. For snowfall and precip stats only Bozeman Montana St Univ was listed.
A143: GTF | B143: 2017-09-14 | C143: ANM | D143: HLN | E143: MT | F143: MONTANA | G143: CASCADE | H143: MT | I143: GREAT FALLS | J143: GREAT FALLS INTL | K143: =CONCATENATE(Table1[[#This Row],[Column6]]," - ", Table1[[#This Row],[Column10]], " (", Table1[[#This Row],[Column1]],")") -> MONTANA - GREAT FALLS INTL (GTF) | L143: 15.4 | M143: 14.9 | N143: 14.9 | O143: 16.4 | P143: 9 | Q143: 9 | R143: 8 | S143: 63 | T143: 0.55 | U143: 0.51 | V143: 0.47 | W143: 1.53
A144: MSO | B144: 2017-09-14 | C144: ANM | D144: HLN | E144: MT | F144: MONTANA | G144: MISSOULA | H144: MT | I144: MISSOULA | J144: MISSOULA INTL | K144: =CONCATENATE(Table1[[#This Row],[Column6]]," - ", Table1[[#This Row],[Column10]], " (", Table1[[#This Row],[Column1]],")") -> MONTANA - MISSOULA INTL (MSO) | L144: 18.7 | M144: 16.7 | N144: 18.3 | O144: 21.2 | P144: 11 | Q144: 8 | R144: 6 | S144: 37 | T144: 1.02 | U144: 0.87 | V144: 0.71 | W144: 2.59
A145: GPI | B145: 2017-09-14 | C145: ANM | D145: HLN | E145: MT | F145: MONTANA | G145: FLATHEAD | H145: MT | I145: KALISPELL | J145: GLACIER PARK INTL | K145: =CONCATENATE(Table1[[#This Row],[Column6]]," - ", Table1[[#This Row],[Column10]], " (", Table1[[#This Row],[Column1]],")") -> MONTANA - GLACIER PARK INTL (GPI) | L145: 16.7 | M145: 15.8 | N145: 16.4 | O145: 18.2 | P145: 16 | Q145: 13 | R145: 8 | S145: 55 | T145: 1.57 | U145: 1.34 | V145: 0.98 | W145: 3.86
A146: GSN | B146: 2017-09-14 | C146: AWP | D146: HNL | E146: CQ | F146: N MARIANA ISLANDS | G146: NORTHERN MARIANA IS | H146: MP | I146: SAIPAN ISLAND | J146: FRANCISCO C ADA/SAIPAN INTL | K146: =CONCATENATE(Table1[[#This Row],[Column6]]," - ", Table1[[#This Row],[Column10]], " (", Table1[[#This Row],[Column1]],")") -> N MARIANA ISLANDS - FRANCISCO C ADA/SAIPAN INTL (GSN) | X146: Airport not found. | Z146: =ISBLANK(Table1[[#This Row],[Column22]]) -> TRUE
A147: OMA | B147: 2017-09-14 | C147: ACE | D147: NONE | E147: NE | F147: NEBRASKA | G147: DOUGLAS | H147: NE | I147: OMAHA | J147: EPPLEY AIRFIELD | K147: =CONCATENATE(Table1[[#This Row],[Column6]]," - ", Table1[[#This Row],[Column10]], " (", Table1[[#This Row],[Column1]],")") -> NEBRASKA - EPPLEY AIRFIELD (OMA) | L147: 16.1 | M147: 16.7 | N147: 13.6 | O147: 18.1 | P147: 6 | Q147: 6 | R147: 6 | S147: 26 | T147: 1.02 | U147: 0.71 | V147: 0.87 | W147: 2.61
A148: LNK | B148: 2017-09-14 | C148: ACE | D148: NONE | E148: NE | F148: NEBRASKA | G148: LANCASTER | H148: NE | I148: LINCOLN | J148: LINCOLN | K148: =CONCATENATE(Table1[[#This Row],[Column6]]," - ", Table1[[#This Row],[Column10]], " (", Table1[[#This Row],[Column1]],")") -> NEBRASKA - LINCOLN (LNK) | L148: 16 | M148: 16.4 | N148: 13.8 | O148: 18 | P148: 6 | Q148: 5 | R148: 6 | S148: 26 | T148: 0.94 | U148: 0.63 | V148: 0.79 | W148: 2.36
A149: LBF | B149: 2017-09-14 | C149: ACE | D149: NONE | E149: NE | F149: NEBRASKA | G149: LINCOLN | H149: NE | I149: NORTH PLATTE | J149: NORTH PLATTE RGNL AIRPORT LEE BIRD FIELD | K149: =CONCATENATE(Table1[[#This Row],[Column6]]," - ", Table1[[#This Row],[Column10]], " (", Table1[[#This Row],[Column1]],")") -> NEBRASKA - NORTH PLATTE RGNL AIRPORT LEE BIRD FIELD (LBF) | L149: 12.5 | M149: 11.6 | N149: 11.1 | O149: 15 | P149: 5 | Q149: 5 | R149: 5 | S149: 30 | T149: 0.39 | U149: 0.31 | V149: 0.51 | W149: 1.25
A150: LAS | B150: 2017-09-14 | C150: AWP | D150: PHX | E150: NV | F150: NEVADA | G150: CLARK | H150: NV | I150: LAS VEGAS | J150: MC CARRAN INTL | K150: =CONCATENATE(Table1[[#This Row],[Column6]]," - ", Table1[[#This Row],[Column10]], " (", Table1[[#This Row],[Column1]],")") -> NEVADA - MC CARRAN INTL (LAS) | L150: 40.4 | M150: 38.7 | N150: 39.4 | O150: 43.4 | P150: none | Q150: none | R150: none | S150: none | T150: 0.51 | U150: 0.55 | V150: 0.75 | W150: 1.8 | X150: For snowfall and precip stats only Las Vegas was listed.
A151: BVU | B151: 2017-09-14 | C151: AWP | D151: PHX | E151: NV | F151: NEVADA | G151: CLARK | H151: NV | I151: BOULDER CITY | J151: BOULDER CITY MUNI | K151: =CONCATENATE(Table1[[#This Row],[Column6]]," - ", Table1[[#This Row],[Column10]], " (", Table1[[#This Row],[Column1]],")") -> NEVADA - BOULDER CITY MUNI (BVU) | L151: 40.4 | M151: 38.7 | N151: 39.4 | O151: 43.4 | P151: none | Q151: none | R151: none | S151: none | T151: 0.47 | U151: 0.75 | V151: 0.79 | W151: =SUM(Table1[[#This Row],[Column19]:[Column21]]) -> 2.01 | X151: For winter temps no airport found. For snowfall and precip stats only Boulder City, NV was listed.
A152: RNO | B152: 2017-09-14 | C152: AWP | D152: PHX | E152: NV | F152: NEVADA | G152: WASHOE | H152: NV | I152: RENO | J152: RENO/TAHOE INTL | K152: =CONCATENATE(Table1[[#This Row],[Column6]]," - ", Table1[[#This Row],[Column10]], " (", Table1[[#This Row],[Column1]],")") -> NEVADA - RENO/TAHOE INTL (RNO) | L152: 26.4 | M152: 25 | N152: 25.4 | O152: 28.9 | P152: 5 | Q152: 6 | R152: 5 | S152: 22 | T152: 1.02 | U152: 1.02 | V152: 1.02 | W152: 3.08 | X152: For snowfall and precip stats only Reno Cannon Intl AP was listed.
A153: VGT | B153: 2017-09-14 | C153: AWP | D153: PHX | E153: NV | F153: NEVADA | G153: CLARK | H153: NV | I153: LAS VEGAS | J153: NORTH LAS VEGAS | K153: =CONCATENATE(Table1[[#This Row],[Column6]]," - ", Table1[[#This Row],[Column10]], " (", Table1[[#This Row],[Column1]],")") -> NEVADA - NORTH LAS VEGAS (VGT) | L153: 37.6 | M153: 35.8 | N153: 36.8 | O153: 40.3 | P153: none | Q153: none | R153: none | S153: 0 | T153: 0.59 | U153: 0.55 | V153: 0.79 | W153: 1.92
A154: MHT | B154: 2017-09-14 | C154: ANE | D154: NONE | E154: NH | F154: NEW HAMPSHIRE | G154: HILLSBOROUGH | H154: NH | I154: MANCHESTER | J154: MANCHESTER | K154: =CONCATENATE(Table1[[#This Row],[Column6]]," - ", Table1[[#This Row],[Column10]], " (", Table1[[#This Row],[Column1]],")") -> NEW HAMPSHIRE - MANCHESTER (MHT) | L154: 19.1 | M154: 22.5 | N154: 15.7 | O154: 19 | P154: none | Q154: none | R154: none | S154: none | T154: 3.27 | U154: 2.72 | V154: 2.72 | W154: 9.08 | X154: For snowfall and precip stats only Manchester Massabesic Lake was listed.
A155: EWR | B155: 2017-09-14 | C155: AEA | D155: NYC | E155: NJ | F155: NEW JERSEY | G155: ESSEX | H155: NJ | I155: NEWARK | J155: NEWARK LIBERTY INTL | K155: =CONCATENATE(Table1[[#This Row],[Column6]]," - ", Table1[[#This Row],[Column10]], " (", Table1[[#This Row],[Column1]],")") -> NEW JERSEY - NEWARK LIBERTY INTL (EWR) | L155: 27 | M155: 29.6 | N155: 24.5 | O155: 26.9 | P155: 5 | Q155: 8 | R155: 9 | S155: 28 | T155: 3.82 | U155: 3.54 | V155: 2.87 | W155: 10.23
A156: TEB | B156: 2017-09-14 | C156: AEA | D156: NYC | E156: NJ | F156: NEW JERSEY | G156: BERGEN | H156: NJ | I156: TETERBORO | J156: TETERBORO | K156: =CONCATENATE(Table1[[#This Row],[Column6]]," - ", Table1[[#This Row],[Column10]], " (", Table1[[#This Row],[Column1]],")") -> NEW JERSEY - TETERBORO (TEB) | L156: 26 | M156: 28.9 | N156: 23.6 | O156: 25.6 | P156: none | Q156: none | R156: none | S156: none | T156: 3.78 | U156: 3.43 | V156: 2.95 | W156: 10.11
A157: ACY | B157: 2017-09-14 | C157: AEA | D157: HAR | E157: NJ | F157: NEW JERSEY | G157: ATLANTIC | H157: NJ | I157: ATLANTIC CITY | J157: ATLANTIC CITY INTL | K157: =CONCATENATE(Table1[[#This Row],[Column6]]," - ", Table1[[#This Row],[Column10]], " (", Table1[[#This Row],[Column1]],")") -> NEW JERSEY - ATLANTIC CITY INTL (ACY) | L157: 26.4 | M157: 28.4 | N157: 24.5 | O157: 26.4 | P157: none | Q157: none | R157: none | S157: none | T157: 3.19 | U157: 3.43 | V157: 2.87 | W157: 9.78
A158: MMU | B158: 2017-09-14 | C158: AEA | D158: HAR | E158: NJ | F158: NEW JERSEY | G158: MORRIS | H158: NJ | I158: MORRISTOWN | J158: MORRISTOWN MUNI | K158: =CONCATENATE(Table1[[#This Row],[Column6]]," - ", Table1[[#This Row],[Column10]], " (", Table1[[#This Row],[Column1]],")") -> NEW JERSEY - MORRISTOWN MUNI (MMU) | L158: 27 | M158: 29.6 | N158: 24.5 | O158: 26.9 | W158: 10.23 | X158: Airport not found
A159: ABQ | B159: 2017-09-14 | C159: ASW | D159: LNM | E159: NM | F159: NEW MEXICO | G159: BERNALILLO | H159: NM | I159: ALBUQUERQUE | J159: ALBUQUERQUE INTL SUNPORT | K159: =CONCATENATE(Table1[[#This Row],[Column6]]," - ", Table1[[#This Row],[Column10]], " (", Table1[[#This Row],[Column1]],")") -> NEW MEXICO - ALBUQUERQUE INTL SUNPORT (ABQ) | L159: 27.5 | M159: 26.5 | N159: 26.1 | O159: 30.3 | P159: 3 | Q159: 2 | R159: 2 | S159: 10 | T159: 0.51 | U159: 0.39 | V159: 0.47 | W159: 1.36
A160: JFK | B160: 2017-09-14 | C160: AEA | D160: NYC | E160: NY | F160: NEW YORK | G160: QUEENS | H160: NY | I160: NEW YORK | J160: JOHN F KENNEDY INTL | K160: =CONCATENATE(Table1[[#This Row],[Column6]]," - ", Table1[[#This Row],[Column10]], " (", Table1[[#This Row],[Column1]],")") -> NEW YORK - JOHN F KENNEDY INTL (JFK) | L160: 28.6 | M160: 31.5 | N160: 26.3 | O160: 28.1 | P160: 5 | Q160: 6 | R160: 8 | S160: 24 | T160: 3.39 | U160: 3.15 | V160: 2.6 | W160: 9.14
A161: LGA | B161: 2017-09-14 | C161: AEA | D161: NYC | E161: NY | F161: NEW YORK | G161: QUEENS | H161: NY | I161: NEW YORK | J161: LAGUARDIA | K161: =CONCATENATE(Table1[[#This Row],[Column6]]," - ", Table1[[#This Row],[Column10]], " (", Table1[[#This Row],[Column1]],")") -> NEW YORK - LAGUARDIA (LGA) | L161: 29.1 | M161: 32.1 | N161: 26.6 | O161: 28.5 | P161: 5 | Q161: 7 | R161: 9 | S161: 26 | T161: 3.54 | U161: 3.19 | V161: 2.76 | W161: 9.49
A162: BUF | B162: 2017-09-14 | C162: AEA | D162: NYC | E162: NY | F162: NEW YORK | G162: ERIE | H162: NY | I162: BUFFALO | J162: BUFFALO NIAGARA INTL | K162: =CONCATENATE(Table1[[#This Row],[Column6]]," - ", Table1[[#This Row],[Column10]], " (", Table1[[#This Row],[Column1]],")") -> NEW YORK - BUFFALO NIAGARA INTL (BUF) | L162: 20.7 | M162: 24.1 | N162: 18.5 | O162: 19.2 | P162: 27 | Q162: 25 | R162: 17 | S162: 94 | T162: 3.9 | U162: 3.19 | V162: 2.48 | W162: 9.56
A163: ALB | B163: 2017-09-14 | C163: AEA | D163: NYC | E163: NY | F163: NEW YORK | G163: ALBANY | H163: NY | I163: ALBANY | J163: ALBANY INTL | K163: =CONCATENATE(Table1[[#This Row],[Column6]]," - ", Table1[[#This Row],[Column10]], " (", Table1[[#This Row],[Column1]],")") -> NEW YORK - ALBANY INTL (ALB) | L163: 17.7 | M163: 21.2 | N163: 14.5 | O163: 17.3 | P163: 14 | Q163: 18 | R163: 12 | S163: 59 | T163: 2.91 | U163: 2.6 | V163: 2.2 | W163: 7.72
A164: ROC | B164: 2017-09-14 | C164: AEA | D164: NYC | E164: NY | F164: NEW YORK | G164: MONROE | H164: NY | I164: ROCHESTER | J164: GREATER ROCHESTER INTL | K164: =CONCATENATE(Table1[[#This Row],[Column6]]," - ", Table1[[#This Row],[Column10]], " (", Table1[[#This Row],[Column1]],")") -> NEW YORK - GREATER ROCHESTER INTL (ROC) | L164: 20 | M164: 23.5 | N164: 17.6 | O164: 18.6 | P164: 22 | Q164: 28 | R164: 22 | S164: 99 | T164: 2.64 | U164: 2.4 | V164: 1.97 | W164: 6.99 | X164: For snowfall and precip stats only Rochester Monroe Co AP was listed.
A165: SYR | B165: 2017-09-14 | C165: AEA | D165: NYC | E165: NY | F165: NEW YORK | G165: ONONDAGA | H165: NY | I165: SYRACUSE | J165: SYRACUSE HANCOCK INTL | K165: =CONCATENATE(Table1[[#This Row],[Column6]]," - ", Table1[[#This Row],[Column10]], " (", Table1[[#This Row],[Column1]],")") -> NEW YORK - SYRACUSE HANCOCK INTL (SYR) | L165: 18.6 | M165: 22.4 | N165: 15.7 | O165: 17.6 | P165: none | Q165: none | R165: none | S165: none | T165: 3.74 | U165: 3.15 | V165: 3.54 | W165: 7.79 | X165: For snowfall and precip stats only Syracuse was listed.
A166: HPN | B166: 2017-09-14 | C166: AEA | D166: NYC | E166: NY | F166: NEW YORK | G166: WESTCHESTER | H166: NY | I166: WHITE PLAINS | J166: WESTCHESTER COUNTY | K166: =CONCATENATE(Table1[[#This Row],[Column6]]," - ", Table1[[#This Row],[Column10]], " (", Table1[[#This Row],[Column1]],")") -> NEW YORK - WESTCHESTER COUNTY (HPN) | L166: 23.6 | M166: 26.8 | N166: 21.1 | O166: 22.9 | W166: 11.09 | X166: For snowfall and precip stats airport not found.
A167: ISP | B167: 2017-09-14 | C167: AEA | D167: NYC | E167: NY | F167: NEW YORK | G167: SUFFOLK | H167: NY | I167: NEW YORK | J167: LONG ISLAND MAC ARTHUR | K167: =CONCATENATE(Table1[[#This Row],[Column6]]," - ", Table1[[#This Row],[Column10]], " (", Table1[[#This Row],[Column1]],")") -> NEW YORK - LONG ISLAND MAC ARTHUR (ISP) | L167: 25.6 | M167: 28.2 | N167: 23.3 | O167: 25.2 | P167: 5 | Q167: 7 | R167: 7 | S167: 25 | T167: 4.13 | U167: 4.25 | V167: 3.35 | W167: 10.96 | X167: aka Islip Li MacArthur Airport and used for winter temps. Islip used for snowfall and percip stats.
A168: SWF | B168: 2017-09-14 | C168: AEA | D168: NYC | E168: NY | F168: NEW YORK | G168: ORANGE | H168: NY | I168: NEW YORK | J168: STEWART INTL | K168: =CONCATENATE(Table1[[#This Row],[Column6]]," - ", Table1[[#This Row],[Column10]], " (", Table1[[#This Row],[Column1]],")") -> NEW YORK - STEWART INTL (SWF) | L168: 29.4 | M168: 32.2 | N168: 27 | O168: 29 | P168: 5 | Q168: 6 | R168: 8 | S168: 24 | T168: 3.39 | U168: 3.15 | V168: 2.6 | W168: 9.99 | X168: For snowfall and precip stats used JFK Intl.
A169: FRG | B169: 2017-09-14 | C169: AEA | D169: NYC | E169: NY | F169: NEW YORK | G169: SUFFOLK | H169: NY | I169: FARMINGDALE | J169: REPUBLIC | K169: =CONCATENATE(Table1[[#This Row],[Column6]]," - ", Table1[[#This Row],[Column10]], " (", Table1[[#This Row],[Column1]],")") -> NEW YORK - REPUBLIC (FRG) | L169: 26 | M169: 29.3 | N169: 23.5 | O169: 25.1 | P169: none | Q169: none | R169: none | S169: none | T169: 3.5 | U169: 3.27 | V169: 2.44 | W169: 9.23
A170: CLT | B170: 2017-09-14 | C170: ASO | D170: MEM | E170: NC | F170: NORTH CAROLINA | G170: MECKLENBURG | H170: NC | I170: CHARLOTTE | J170: CHARLOTTE/DOUGLAS INTL | K170: =CONCATENATE(Table1[[#This Row],[Column6]]," - ", Table1[[#This Row],[Column10]], " (", Table1[[#This Row],[Column1]],")") -> NORTH CAROLINA - CHARLOTTE/DOUGLAS INTL (CLT) | L170: 31.4 | M170: 31.9 | N170: 29.6 | O170: 32.7 | P170: 0 | Q170: 2 | R170: 1 | S170: 4 | T170: 3.27 | U170: 3.43 | V170: 3.31 | W170: 9.98
A171: RDU | B171: 2017-09-14 | C171: ASO | D171: MEM | E171: NC | F171: NORTH CAROLINA | G171: WAKE | H171: NC | I171: RALEIGH/DURHAM | J171: RALEIGH-DURHAM INTL | K171: =CONCATENATE(Table1[[#This Row],[Column6]]," - ", Table1[[#This Row],[Column10]], " (", Table1[[#This Row],[Column1]],")") -> NORTH CAROLINA - RALEIGH-DURHAM INTL (RDU) | L171: 32.7 | M171: 33.3 | N171: 31 | O171: 33.8 | P171: 1 | Q171: 2 | R171: 1 | S171: 4 | T171: 3.31 | U171: 3.86 | V171: 3.31 | W171: 9.8
A172: GSO | B172: 2017-09-14 | C172: ASO | D172: MEM | E172: NC | F172: NORTH CAROLINA | G172: GUILFORD | H172: NC | I172: GREENSBORO | J172: PIEDMONT TRIAD INTL | K172: =CONCATENATE(Table1[[#This Row],[Column6]]," - ", Table1[[#This Row],[Column10]], " (", Table1[[#This Row],[Column1]],")") -> NORTH CAROLINA - PIEDMONT TRIAD INTL (GSO) | L172: 31.2 | M172: 32 | N172: 29.5 | O172: 32.4 | P172: 0 | Q172: 3 | R172: 2 | S172: 6 | T172: 3.07 | U172: 3.07 | V172: 2.95 | W172: 9 | X172: For winter temps only Greensboro Airport listed. For snowfall and precip stats only Greensboro Regional AP listed.
A173: AVL | B173: 2017-09-14 | C173: ASO | D173: MEM | E173: NC | F173: NORTH CAROLINA | G173: BUNCOMBE | H173: NC | I173: ASHEVILLE | J173: ASHEVILLE RGNL | K173: =CONCATENATE(Table1[[#This Row],[Column6]]," - ", Table1[[#This Row],[Column10]], " (", Table1[[#This Row],[Column1]],")") -> NORTH CAROLINA - ASHEVILLE RGNL (AVL) | L173: 28.5 | M173: 29.3 | N173: 26.7 | O173: 29.7 | P173: 3 | Q173: 4 | R173: 3 | S173: 13 | T173: 2.76 | U173: 2.87 | V173: 3.23 | W173: 11.02
A174: ILM | B174: 2017-09-14 | C174: ASO | D174: MEM | E174: NC | F174: NORTH CAROLINA | G174: NEW HANOVER | H174: NC | I174: WILMINGTON | J174: WILMINGTON INTL | K174: =CONCATENATE(Table1[[#This Row],[Column6]]," - ", Table1[[#This Row],[Column10]], " (", Table1[[#This Row],[Column1]],")") -> NORTH CAROLINA - WILMINGTON INTL (ILM) | L174: 37.1 | M174: 37.8 | N174: 35.6 | O174: 37.9 | P174: 1 | Q174: 0 | R174: 0 | S174: 1 | T174: 3.62 | U174: 3.78 | V174: 3.62 | W174: 11
A175: PGV | B175: 2017-09-14 | C175: ASO | D175: MEM | E175: NC | F175: NORTH CAROLINA | G175: PITT | H175: NC | I175: GREENVILLE | J175: PITT-GREENVILLE | K175: =CONCATENATE(Table1[[#This Row],[Column6]]," - ", Table1[[#This Row],[Column10]], " (", Table1[[#This Row],[Column1]],")") -> NORTH CAROLINA - PITT-GREENVILLE (PGV) | L175: 33.4 | M175: 34 | N175: 32.1 | O175: 34.3 | P175: 1 | Q175: 2 | R175: 1 | S175: 4 | T175: 3.27 | U175: 3.86 | V175: 3.35 | W175: 10.46
A176: FAY | B176: 2017-09-14 | C176: ASO | D176: MEM | E176: NC | F176: NORTH CAROLINA | G176: CUMBERLAND | H176: NC | I176: FAYETTEVILLE | J176: FAYETTEVILLE RGNL/GRANNIS FIELD | K176: =CONCATENATE(Table1[[#This Row],[Column6]]," - ", Table1[[#This Row],[Column10]], " (", Table1[[#This Row],[Column1]],")") -> NORTH CAROLINA - FAYETTEVILLE RGNL/GRANNIS FIELD (FAY) | L176: 34.6 | M176: 35.1 | N176: 33.2 | O176: 35.4 | P176: none | Q176: none | R176: none | S176: none | T176: 2.95 | U176: 3.62 | V176: 3.15 | W176: 8.71
A177: MQI | B177: 2017-09-14 | C177: ASO | D177: MEM | E177: NC | F177: NORTH CAROLINA | G177: DARE | H177: NC | I177: MANTEO | J177: DARE COUNTY RGNL | K177: =CONCATENATE(Table1[[#This Row],[Column6]]," - ", Table1[[#This Row],[Column10]], " (", Table1[[#This Row],[Column1]],")") -> NORTH CAROLINA - DARE COUNTY RGNL (MQI) | L177: =AVERAGE(Table1[[#This Row],[Column12]:[Column14]]) -> 34.56666667 | M177: 40.1 | N177: 36 | O177: 27.6 | W177: 11.17 | X177: Airport not found
A178: GFK | B178: 2017-09-14 | C178: AGL | D178: DMA | E178: ND | F178: NORTH DAKOTA | G178: GRAND FORKS | H178: ND | I178: GRAND FORKS | J178: GRAND FORKS INTL | K178: =CONCATENATE(Table1[[#This Row],[Column6]]," - ", Table1[[#This Row],[Column10]], " (", Table1[[#This Row],[Column1]],")") -> NORTH DAKOTA - GRAND FORKS INTL (GFK) | L178: 0.5 | M178: 2.6 | N178: -3.1 | O178: 2.1 | P178: 11 | Q178: 11 | R178: 7 | S178: 49 | T178: 0.59 | U178: 0.55 | V178: 0.51 | W178: 1.68
A179: FAR | B179: 2017-09-14 | C179: AGL | D179: DMA | E179: ND | F179: NORTH DAKOTA | G179: CASS | H179: ND | I179: FARGO | J179: HECTOR INTL | K179: =CONCATENATE(Table1[[#This Row],[Column6]]," - ", Table1[[#This Row],[Column10]], " (", Table1[[#This Row],[Column1]],")") -> NORTH DAKOTA - HECTOR INTL (FAR) | L179: 3.8 | M179: 5.9 | N179: 0.1 | O179: 5.6 | P179: 11 | Q179: 11 | R179: 7 | S179: 50 | T179: 0.83 | U179: 0.71 | V179: 0.59 | W179: 2.14
A180: BIS | B180: 2017-09-14 | C180: AGL | D180: DMA | E180: ND | F180: NORTH DAKOTA | G180: BURLEIGH | H180: ND | I180: BISMARCK | J180: BISMARCK MUNI | K180: =CONCATENATE(Table1[[#This Row],[Column6]]," - ", Table1[[#This Row],[Column10]], " (", Table1[[#This Row],[Column1]],")") -> NORTH DAKOTA - BISMARCK MUNI (BIS) | L180: 5.3 | M180: 6.1 | N180: 2.2 | O180: 7.9 | P180: 9 | Q180: 9 | R180: 8 | S180: 50 | T180: 0.47 | U180: 0.43 | V180: 0.51 | W180: 1.43
A181: CLE | B181: 2017-09-14 | C181: AGL | D181: DET | E181: OH | F181: OHIO | G181: CUYAHOGA | H181: OH | I181: CLEVELAND | J181: CLEVELAND-HOPKINS INTL | K181: =CONCATENATE(Table1[[#This Row],[Column6]]," - ", Table1[[#This Row],[Column10]], " (", Table1[[#This Row],[Column1]],")") -> OHIO - CLEVELAND-HOPKINS INTL (CLE) | L181: 23.9 | M181: 26.4 | N181: 21.7 | O181: 23.6 | P181: 14 | Q181: 19 | R181: 15 | S181: 68 | T181: 3.11 | U181: 2.72 | V181: 2.32 | W181: 8.16 | X181: For snowfall and precip stats only Cleveland WSFO AP was listed.
A182: CMH | B182: 2017-09-14 | C182: AGL | D182: DET | E182: OH | F182: OHIO | G182: FRANKLIN | H182: OH | I182: COLUMBUS | J182: JOHN GLENN COLUMBUS INTL | K182: =CONCATENATE(Table1[[#This Row],[Column6]]," - ", Table1[[#This Row],[Column10]], " (", Table1[[#This Row],[Column1]],")") -> OHIO - JOHN GLENN COLUMBUS INTL (CMH) | L182: =AVERAGE(Table1[[#This Row],[Column12]:[Column14]]) -> 22.83333333 | M182: 24.8 | N182: 20.8 | O182: 22.9 | P182: none | Q182: none | R182: none | S182: none | T182: 7.4 | U182: 9.65 | V182: 6.97 | W182: =SUM(Table1[[#This Row],[Column19]:[Column21]]) -> 24.02 | X182: For winter temp no Columbus John Glenn aiprort was listed, nor another name found. For snowfall and precip stats only Columbus was listed.
A183: DAY | B183: 2017-09-14 | C183: AGL | D183: DET | E183: OH | F183: OHIO | G183: MONTGOMERY | H183: OH | I183: DAYTON | J183: JAMES M COX DAYTON INTL | K183: =CONCATENATE(Table1[[#This Row],[Column6]]," - ", Table1[[#This Row],[Column10]], " (", Table1[[#This Row],[Column1]],")") -> OHIO - JAMES M COX DAYTON INTL (DAY) | L183: 22.5 | M183: 24.3 | N183: 20.3 | O183: 23.1 | P183: 5 | Q183: 8 | R183: 6 | S183: 25 | T183: 3.15 | U183: 2.83 | V183: 2.2 | W183: 8.07 | X183: For snowfall and precip stats only Dayton MCD was listed.
A184: CAK | B184: 2017-09-14 | C184: AGL | D184: DET | E184: OH | F184: OHIO | G184: SUMMIT | H184: OH | I184: AKRON | J184: AKRON-CANTON RGNL | K184: =CONCATENATE(Table1[[#This Row],[Column6]]," - ", Table1[[#This Row],[Column10]], " (", Table1[[#This Row],[Column1]],")") -> OHIO - AKRON-CANTON RGNL (CAK) | L184: 21.4 | M184: 23.9 | N184: 19.1 | O184: 21.3 | P184: none | Q184: none | R184: none | S184: none | T184: 2.83 | U184: 2.01 | V184: 2.01 | W184: 7.76 | X184: For snowfall and precip only Akron was listed.
A185: TDZ | B185: 2017-09-14 | C185: AGL | D185: DET | E185: OH | F185: OHIO | G185: WOOD | H185: OH | I185: TOLEDO | J185: TOLEDO EXECUTIVE | K185: =CONCATENATE(Table1[[#This Row],[Column6]]," - ", Table1[[#This Row],[Column10]], " (", Table1[[#This Row],[Column1]],")") -> OHIO - TOLEDO EXECUTIVE (TDZ) | L185: 21.2 | M185: 23.3 | N185: 18.9 | O185: 21.5 | P185: none | Q185: none | R185: none | S185: none | T185: 2.44 | U185: 2.01 | V185: 1.97 | W185: 6.43 | X185: aka Metcalf field and was used for winter temps and snowfall and precip stats.
A186: LCK | B186: 2017-09-14 | C186: AGL | D186: DET | E186: OH | F186: OHIO | G186: FRANKLIN | H186: OH | I186: COLUMBUS | J186: RICKENBACKER INTL | K186: =CONCATENATE(Table1[[#This Row],[Column6]]," - ", Table1[[#This Row],[Column10]], " (", Table1[[#This Row],[Column1]],")") -> OHIO - RICKENBACKER INTL (LCK) | L186: 22.8 | M186: 24.8 | N186: 20.8 | O186: 22.9 | W186: 8.6 | X186: Airport not found
A187: LUK | B187: 2017-09-14 | C187: AGL | D187: DET | E187: OH | F187: OHIO | G187: HAMILTON | H187: OH | I187: CINCINNATI | J187: CINCINNATI MUNI AIRPORT LUNKEN FIELD | K187: =CONCATENATE(Table1[[#This Row],[Column6]]," - ", Table1[[#This Row],[Column10]], " (", Table1[[#This Row],[Column1]],")") -> OHIO - CINCINNATI MUNI AIRPORT LUNKEN FIELD (LUK) | L187: 24.4 | M187: 25.9 | N187: 22.4 | O187: 24.9 | P187: none | Q187: none | R187: none | S187: none | T187: 3.11 | U187: 2.87 | V187: 2.64 | W187: 8.51 | X187: For snowfall and precip stats only Cincinnati listed.
A188: HAO | B188: 2017-09-14 | C188: AGL | D188: DET | E188: OH | F188: OHIO | G188: BUTLER | H188: OH | I188: HAMILTON | J188: BUTLER CO RGNL-HOGAN FIELD | K188: =CONCATENATE(Table1[[#This Row],[Column6]]," - ", Table1[[#This Row],[Column10]], " (", Table1[[#This Row],[Column1]],")") -> OHIO - BUTLER CO RGNL-HOGAN FIELD (HAO) | L188: 22.8 | M188: 24 | N188: 21 | O188: 23.4 | P188: none | Q188: none | R188: none | S188: none | T188: 3.46 | U188: 3.07 | V188: 2.72 | W188: 8.7 | X188: For snowfall and precip stats used Fairfield.
A189: BKL | B189: 2017-09-14 | C189: AGL | D189: DET | E189: OH | F189: OHIO | G189: CUYAHOGA | H189: OH | I189: CLEVELAND | J189: BURKE LAKEFRONT | K189: =CONCATENATE(Table1[[#This Row],[Column6]]," - ", Table1[[#This Row],[Column10]], " (", Table1[[#This Row],[Column1]],")") -> OHIO - BURKE LAKEFRONT (BKL) | L189: 26.3 | M189: 29.2 | N189: 23.4 | O189: 26.1 | P189: 14 | Q189: 19 | R189: 15 | S189: 68 | T189: 3.11 | U189: 2.72 | V189: 2.32 | W189: 6.16
A190: OSU | B190: 2017-09-14 | C190: AGL | D190: DET | E190: OH | F190: OHIO | G190: FRANKLIN | H190: OH | I190: COLUMBUS | J190: OHIO STATE UNIVERSITY | K190: =CONCATENATE(Table1[[#This Row],[Column6]]," - ", Table1[[#This Row],[Column10]], " (", Table1[[#This Row],[Column1]],")") -> OHIO - OHIO STATE UNIVERSITY (OSU) | L190: 22.8 | M190: 24.8 | N190: 20.8 | O190: 22.9 | P190: - | Q190: - | R190: - | S190: - | T190: 7.4 | U190: 9.65 | V190: 6.97 | W190: 7.31
A191: PCW | B191: 2017-09-14 | C191: AGL | D191: DET | E191: OH | F191: OHIO | G191: OTTAWA | H191: OH | I191: PORT CLINTON | J191: ERIE-OTTAWA INTL | K191: =CONCATENATE(Table1[[#This Row],[Column6]]," - ", Table1[[#This Row],[Column10]], " (", Table1[[#This Row],[Column1]],")") -> OHIO - ERIE-OTTAWA INTL (PCW) | L191: =AVERAGE(Table1[[#This Row],[Column12]:[Column14]]) -> 23.68 | M191: 26.2 | N191: 21.3 | O191: 23.54 | W191: 8.7 | X191: Airport not found
A192: OKC | B192: 2017-09-14 | C192: ASW | D192: AOK | E192: OK | F192: OKLAHOMA | G192: OKLAHOMA | H192: OK | I192: OKLAHOMA CITY | J192: WILL ROGERS WORLD | K192: =CONCATENATE(Table1[[#This Row],[Column6]]," - ", Table1[[#This Row],[Column10]], " (", Table1[[#This Row],[Column1]],")") -> OKLAHOMA - WILL ROGERS WORLD (OKC) | L192: 30.7 | M192: 30.6 | N192: 28.8 | O192: 32.8 | P192: 2 | Q192: 3 | R192: 2 | S192: 8 | T192: 1.89 | U192: 1.38 | V192: 1.57 | W192: 4.85
A193: TUL | B193: 2017-09-14 | C193: ASW | D193: AOK | E193: OK | F193: OKLAHOMA | G193: TULSA | H193: OK | I193: TULSA | J193: TULSA INTL | K193: =CONCATENATE(Table1[[#This Row],[Column6]]," - ", Table1[[#This Row],[Column10]], " (", Table1[[#This Row],[Column1]],")") -> OKLAHOMA - TULSA INTL (TUL) | L193: 29.4 | M193: 29.6 | N193: 27.5 | O193: 31.3 | P193: 2 | Q193: 3 | R193: 2 | S193: 10 | T193: 2.48 | U193: 1.65 | V193: 1.85 | W193: 6
A194: PDX | B194: 2017-09-14 | C194: ANM | D194: SEA | E194: OR | F194: OREGON | G194: MULTNOMAH | H194: OR | I194: PORTLAND | J194: PORTLAND INTL | K194: =CONCATENATE(Table1[[#This Row],[Column6]]," - ", Table1[[#This Row],[Column10]], " (", Table1[[#This Row],[Column1]],")") -> OREGON - PORTLAND INTL (PDX) | L194: 35.8 | M194: 35.2 | N194: 35.8 | O194: 36.3 | P194: 1 | Q194: 1 | R194: 2 | S194: 4 | T194: 5.47 | U194: 4.88 | V194: 3.66 | W194: 14.03 | X194: For snowfall and precip stats only Portland KGW TV was listed.
A195: MFR | B195: 2017-09-14 | C195: ANM | D195: SEA | E195: OR | F195: OREGON | G195: JACKSON | H195: OR | I195: MEDFORD | J195: ROGUE VALLEY INTL - MEDFORD | K195: =CONCATENATE(Table1[[#This Row],[Column6]]," - ", Table1[[#This Row],[Column10]], " (", Table1[[#This Row],[Column1]],")") -> OREGON - ROGUE VALLEY INTL - MEDFORD (MFR) | L195: 33.2 | M195: 32.7 | N195: 32.8 | O195: 34.1 | P195: 1 | Q195: 1 | R195: 1 | S195: 3 | T195: 3.27 | U195: 2.76 | V195: 2.32 | W195: 7.93
A196: EUG | B196: 2017-09-14 | C196: ANM | D196: SEA | E196: OR | F196: OREGON | G196: LANE | H196: OR | I196: EUGENE | J196: MAHLON SWEET FIELD | K196: =CONCATENATE(Table1[[#This Row],[Column6]]," - ", Table1[[#This Row],[Column10]], " (", Table1[[#This Row],[Column1]],")") -> OREGON - MAHLON SWEET FIELD (EUG) | L196: 34.3 | M196: 33.8 | N196: 34.2 | O196: 34.8 | P196: 2 | Q196: 1 | R196: 2 | S196: 5 | T196: 7.83 | U196: 6.85 | V196: 5.43 | W196: 20.13
A197: RDM | B197: 2017-09-14 | C197: ANM | D197: SEA | E197: OR | F197: OREGON | G197: DESCHUTES | H197: OR | I197: REDMOND | J197: ROBERTS FIELD | K197: =CONCATENATE(Table1[[#This Row],[Column6]]," - ", Table1[[#This Row],[Column10]], " (", Table1[[#This Row],[Column1]],")") -> OREGON - ROBERTS FIELD (RDM) | L197: 22.5 | M197: 20.7 | N197: 23.1 | O197: 23.7 | P197: 5 | Q197: 4 | R197: 3 | S197: 15 | T197: 1.14 | U197: 0.98 | V197: 0.67 | W197: 2.78
A198: PHL | B198: 2017-09-14 | C198: AEA | D198: HAR | E198: PA | F198: PENNSYLVANIA | G198: PHILADELPHIA | H198: PA | I198: PHILADELPHIA | J198: PHILADELPHIA INTL | K198: =CONCATENATE(Table1[[#This Row],[Column6]]," - ", Table1[[#This Row],[Column10]], " (", Table1[[#This Row],[Column1]],")") -> PENNSYLVANIA - PHILADELPHIA INTL (PHL) | L198: 27.8 | M198: 30.1 | N198: 25.6 | O198: 27.7 | P198: 3 | Q198: 7 | R198: 9 | S198: 23 | T198: 3.54 | U198: 3.03 | V198: 2.64 | W198: 9.24
A199: PIT | B199: 2017-09-14 | C199: AEA | D199: HAR | E199: PA | F199: PENNSYLVANIA | G199: ALLEGHENY | H199: PA | I199: PITTSBURGH | J199: PITTSBURGH INTL | K199: =CONCATENATE(Table1[[#This Row],[Column6]]," - ", Table1[[#This Row],[Column10]], " (", Table1[[#This Row],[Column1]],")") -> PENNSYLVANIA - PITTSBURGH INTL (PIT) | L199: 24.1 | M199: 26.4 | N199: 21.8 | O199: 24 | P199: none | Q199: none | R199: none | S199: none | T199: 2.72 | U199: 2.87 | V199: 2.24 | W199: 8.33 | X199: aka Pittsburgh Allegheny County Airport and used for winter temp stats. For snowfall and precip stats only Pittsburgh Emsworth L/D Ohio Rvr was listed.
A200: MDT | B200: 2017-09-14 | C200: AEA | D200: HAR | E200: PA | F200: PENNSYLVANIA | G200: DAUPHIN | H200: PA | I200: HARRISBURG | J200: HARRISBURG INTL | K200: =CONCATENATE(Table1[[#This Row],[Column6]]," - ", Table1[[#This Row],[Column10]], " (", Table1[[#This Row],[Column1]],")") -> PENNSYLVANIA - HARRISBURG INTL (MDT) | L200: 24.9 | M200: 27 | N200: 23 | O200: 24.8 | P200: none | Q200: none | R200: none | S200: none | T200: 3.23 | U200: 3.19 | V200: 2.87 | W200: 8.83 | X200: aka Harrisburg Capital City AP and used for winter temp. For snowfall and precipitation only Harrisburg was listed.
... 59 more rows

Sheet SRP - Guidance (hidden)
A1: Forced Air Efficiency Ranking
A3: Likely Fluid Reduction | B3: Benefit Ranking | C3: Description
A4: min | B4: max
A5: 0 | B5: 0 | C5: none | D5: Benefit not applicable.
B6: 0.05 | C6: Low | D6: Minimal benefit may not justify added cost.
A7: 0.05 | B7: 0.15 | C7: Medium | D7: May provide benefit.
A8: 0.15 | C8: High | D8: Should consider forced air/fluid technology but need to consider site specific conditions and cost. Please see Fact Sheet 5 Forced Air/Fluid deicing for additional information.
A10: Blend To Temperature Efficiency Ranking | C10: Description
A11: min | B11: max
A12: 0 | B12: 0 | C12: noone | D12: Benefit not applicable.
B13: 0.05 | C13: Low | D13: Minimal benefit may not justify added cost.
A14: 0.05 | B14: 0.15 | C14: Medium | D14: May provide benefit.
A15: 0.15 | C15: High | D15: Should consider blend-to-temperature technology but need to consider site specific conditions and cost. Please see Fact Sheet 4 Blending to Temperature for additional information.
A18: What is the general level of ramp congestion? | C18: High | D18: Consider implementing Truck-Based Blend To Temperature Systems. Refer to Fact Sheet 4.
C19: Medium | D19: Evaluate ramp area for viability of stationary blend to temperature systems. Consider water availability, electric and space for storage tanks. Refer to Fact Sheet 4.
C20: Low | D20: Evaluate ramp area for viability of stationary blend to temperature systems. Consider water availability, electric and space for storage tanks. Refer to Fact Sheet 4.
A21: Is there a common area where a stationary blend to temperature system could be installed which is convenient to carrier operations? | B21: User provided. | C21: Yes | D21: Determine if air carrier(s) could utilize space without impacting operations.
C22: No | D22: Consider truck-based blend to temperature systems or locating stationary systems closer to carrier operations. Please see Fact Sheet 4 Blending to Temperature for additional information.
A24: Do the air carriers or FBOs currently utilize any of the following technologies:
A25: Proactive Anti-Icing | C25: Yes
C26: No | D26: ACRP Report 14: Fact Sheet 3
A27: Physical Removal of Snow | C27: Yes
C28: No | D28: ACRP Report 14: Fact Sheet 7
A29: Hangared Parking | C29: Yes
C30: No | D30: ACRP Report 14: Fact Sheet 8
A31: Hot Water Deicing | C31: Yes
C32: No | D32: ACRP Report 14: Fact Sheet 9
A33: Enclosed bucket deicing | C33: Yes
C34: No | D34: ACRP Report 14: Fact Sheet 10
A35: Enhanced Weather Forecasting | C35: Yes
C36: No | D36: ACRP Report 14: Fact Sheet 11
A37: Holdover Time Determinations System | C37: Yes
C38: No | D38: ACRP Report 14: Fact Sheet 12
A39: Reduced aircraft Operations | C39: Yes
C40: No | D40: ACRP Report 14: Fact Sheet 14

Sheet SRP - BTT Matrix (hidden)
C3: A_Temp
A4: A_Fluid min | C4: -100 | D4: 15 | E4: 20 | F4: 25 | G4: 30
A5: A_Fluid max | C5: 15 | D5: 20 | E5: 25 | F5: 30 | G5: 35
A6: A_Fluid | C6: 10-15 | D6: 15-20 | E6: 20-25 | F6: 25-30 | G6: 30-35
A7: Fluid Mix | B7: Fluid Con | C7: 43 | D7: 40 | E7: 36 | F7: 32.5 | G7: 30
A8: 55:45 | B8: 55 | C8: =($B8-C$7)/$B8 -> 0.2181818182 | D8: =($B8-D$7)/$B8 -> 0.2727272727 | E8: =($B8-E$7)/$B8 -> 0.3454545455 | F8: =($B8-F$7)/$B8 -> 0.4090909091 | G8: =($B8-G$7)/$B8 -> 0.4545454545
A9: 50:50 | B9: 50 | C9: =($B9-C$7)/$B9 -> 0.14 | D9: 0.2 | E9: 0.28 | F9: 0.35 | G9: 0.4
A10: 45:55 | B10: 45 | C10: 0.04444444444 | D10: 0.1111111111 | E10: 0.2 | F10: 0.2777777778 | G10: 0.3333333333
A11: 40:60 | B11: 40 | D11: 0 | E11: 0.1 | F11: 0.1875 | G11: 0.25
A12: 35:65 | B12: 35 | F12: 0.07142857143 | G12: 0.1428571429
A13: 30:70 | B13: 30 | G13: 0

Sheet Storage - Climate Matrix (hidden)
D1: Vegetation
D2: Low | E2: Medium | F2: High
B3: Temperature | C3: Above 32°F | D3: Medium Effect | E3: Effective | F3: Very Effective
C4: At least 20°F but less than 32°F | D4: Less Effective | E4: Medium Effect | F4: Effective
C5: At least 0°F but less than 20°F | D5: Low Effect | E5: Less Effective | F5: Medium Effect
C6: Less than 0°F | D6: Not Effective | E6: Low Effect | F6: Less Effective

Sheet CS - Questions
C3: Collection Systems
C9: Topic | H9: Guidance
C11: Background Information
D12: This page assesses the applicable best management practices for the collection of applied deicer fluid. If an airport conducts deicing in different areas of the facility, it is recommended that a separate run of the tool be done for each distinct area, as some topics are dependent on available area.
C16: Assumptions
D17: Glycol Recovery Vehicles (GRV) are able to service twelve gates per vehicle. This number may be changed by the user based on local conditions.
D18: The number of personnel needed for GRV operations is equal to the number of GRVs (one operator each) plus one additional person to provide coordination.
C20: General Question
D21: Should practices that maximize collection efficiency be given extra weight in the ranking of collection practices based on organizational objectives to collect as much spent aircraft deicing fluid as possible?
C23: BMPs Currently in Use
D24: If there are BMPs currently in use at the facility, which is the predominant collection technology being used? Leave blank if not applicable.
D25: What is the capture efficiency (glycol collected/glycol applied, with amounts as 100% glycol) of the selected BMP for the deicing fluids applied in the relevant location?
D26: What percentage of the aircraft deicing fluids are applied in the relevant location?
D27: Can the percentage of aircraft deicing application done at the relevant location increased?
C29: Centralized Deicing Facilities (CDF)
D30: What is your combined peak hourly air carrier and corporate aircraft departure rate (aircraft/hr) during deicing events in the area under evalution?
D31: Estimated size of deicing pad required is calcPadSize (calculated from previous question, assuming all aircraft are deiced at pads). Is an aggregate area of this size available on the airfield for construction of a deicing pad consistent with the guidance provided in Fact Sheet 21?
D32: Are there one or more areas of existing pavement that can be retrofitted for this purpose?
D33: Are operations currently restricted by a lack of open gates, limited deicing space or other bottlenecks created by deicing at gates or airfield areas in close proximity to runways?
D34: Is a glycol recovery rate of 40%-65% desirable due to recycling needs?
D35: Are the primary local air carriers accepting of a centralized deicing location?
C37: Apron Collection Systems
D38: Does most aircraft deicing occur in an area where stormwater drainage could be isolated?
D39: Can most deicing be relocated to occur within an area where stormwater drainage could be isolated?
D40: What percentage of aircraft deicing would take place within the confines of the isolated drainage area?
D41: Is aircraft deicing conducted routinely (i.e., almost every day) during the winter?
D42: Are personnel available to operate diversion valves during deicing events in addition to their current duties?
C44: Glycol Collection Vehicles
D45: Is collection of aircraft deicing runoff at higher concentrations and/or smaller volumes desirable to support recycling, reduce storage, or other reasons? (This is often the case for frequent defosting events, see Fact Sheet 23 for additional information)
D46: Is increased vehicular traffic around deicing locations acceptable?
D47: Can catch basins and storm sewer inlets in aircraft deicing locations be blocked to prevent deicing runoff from entering the storm sewer? (See Fact Sheet 33 for guidance.)
D48: How many aircraft total deicing positions would potentially be serviced by Glycol Recovery Vehicles (GRVs)?
D49: How many positions will each individual GRV be able to serve? | F49: 12
D50: Can calcPersonnelSize personnel be assigned or hired to support GRV operations without conflicting with existing operations?
C52: Block-and-pump Systems
D53: Is most deicing conducted within areas where the storm sewers are primarily collecting runoff just from those areas?
D54: Are the storm sewers serving the deicing areas in good physical condition (i.e., the pipes and joints are in good shape and don't leak)?
D55: Can the storm sewer drainage system be repaired to prevent or minimize leaks?
D56: Can the storm sewers draining the deicing area(s) be isolated using valves or other temporary blocks?
C58: Airfield Drainage Planning/Design/Retrofit
D59: Is there a planned airfield improvement project that could include areas where aircraft are currently deiced or an area where a central deicing facility might be constructed?
C61: Deicer-laden Snow Management
D62: Do snow plowing operations around aircraft deicing areas collect significant amounts of snow containing aircraft deicers?
D63: Does runoff from melting snow containing aircraft deicers contribute to deicers in stormwater discharges?

Sheet CS - Compatibility (hidden)
C1: Collection BMPs
C2: Centralized Deicing Facilities | D2: Apron Collection Systems* | E2: Glycol Collection Vehicles | F2: Block-and-pump systems* | G2: Deicer-laden Snow Management
A3: Collection | B3: Centralized Deicing Facilities | C3: N/A | D3: û | E3: ü | F3: ü | G3: ü
B4: Apron Collection Systems | C4: û | D4: N/A | E4: ü | F4: ü | G4: ü
B5: Glycol Collection Vehicles | C5: ü | D5: ü | E5: N/A | F5: ü | G5: ü
B6: Block-and-pump systems | C6: ü | D6: ü | E6: ü | F6: N/A | G6: ü
B7: Airfield Drainage Planning/Design/Retrofit | C7: ü | D7: ü | E7: ü | F7: ü | G7: ü
B8: Deicer-laden Snow Management | C8: ü | D8: ü | E8: ü | F8: ü | G8: N/A
A9: Storage | B9: Portable Tanks | C9: û | D9: û | E9: ü | F9: ü | G9: û
B10: Modular Tanks | C10: ü | D10: ü | E10: ü | F10: ü | G10: ü
B11: Ponds/Basins | C11: ü | D11: ü | E11: û | F11: ü | G11: ü
B12: Above Ground Permanent Tanks | C12: ü | D12: ü | E12: ü | F12: ü | G12: û
B13: Below Ground Permanent Tanks | C13: ü | D13: ü | E13: ü | F13: ü | G13: û
B14: Manual Diversion Valves | C14: ü | D14: ü | E14: û | F14: ü | G14: ü
B15: Automated Diversion Valves without Real-Time Monitoring | C15: ü | D15: ü | E15: û | F15: ü | G15: ü
B16: Automated Diversion Valves with Real Time Monitoring | C16: ü | D16: ü | E16: û | F16: ü | G16: û
B17: Real-Time Monitoring Technology | C17: ü | D17: ü | E17: û | F17: ü | G17: û
B18: Catch Basin Inserts/Valves | C18: û | D18: û | E18: ü | F18: û | G18: ü
A19: Comments
A20: Notes: A checkmark indicates that technologies could be used in conjunction while an X indicates that, although simultaneous use could be achieved at a location, the techonologies would be either redundent or incompatible. *This collection techonology appears highly modular and could be used in conjunction with virtually any storage system, at least on a temporary basis.

Sheet CS - Guidance (hidden)
A1: Topic | B1: Q No. | C1: Question | D1: Source of Information | E1: Response / Value | F1: Action/Guidance | G1: Calculations | H1: Comments (not shown in tool)
A2: Centralized Deicing Facilities | B2: 1 | C2: What is your peak hourly aircraft departure rate? | D2: User Provided | E2: Numeric | F2: Calculate preliminary deicing pad size and proceed to question 2 | G2: Calculate ()peak hour departures*.25) round up to nearest aircraft)*2 = acres required. | H2: Assumption of 15 minutes (.25 hours) to deice an aircraft. Peak hour aircraft is divided into how many aircraft fit into that 15 minute window and then multiplied by 2 acres to determine necessary space.
B3: 2 | C3: Estimated size of deicing pad required is calcPadSize (calculated from previous question, assuming all aircraft are deiced at pads). Is an aggregate area of this size available on the airfield for construction of a deicing pad consistent with the guidance provided in Fact Sheet 21? | D3: User Provided | E3: No | F3: Proceed to question 3
E4: Yes | F4: Proceed to question 4
B5: 3 | C5: Are there one or more areas of existing pavement that can be retrofitted for this purpose? | D5: User Provided | E5: No | F5: A centralized decing facility is not applicable.
E6: Yes | F6: Proceed to question 4
B7: 4 | C7: Are operations currently restricted by a lack of open gates, limited deicing space or other bottlenecks created by deicing at the gates? | D7: User Provided | E7: Yes | F7: Proceed to question 6
E8: No | F8: Proceed to question 5
B9: 5 | C9: Is a glycol recovery rate of 40%-65% needed to meet compliance requirements or other objectives? | E9: Yes | F9: Proceed to question 6
E10: No | F10: If a capture rate of great than 40% is not required and funding for capital investment is limited other BMPs may offer a lower capture rate at a lower initial investment.
B11: 6 | C11: Are the primary air carriers accepting of the concept of a centralized deicing location? | D11: User Provided | E11: No | F11: A centralized decing facility is not applicable. | H11: This can limit their operational flexibility.
E12: Yes | F12: A centralized decing facility is potentially applicable. Please see Fact Sheet 21 Centralized Deicing Facilities for additional information. | G12: Calculate 50% of deicing fluids applied are captured, with 75% of precipitation | H12: Range is reported consistently as 40-65%, this is the mid range rounded down.
A14: Apron Collection Systems | B14: 1 | C14: Does most aircraft deicing take place in one or more drainage areas that either are or could be hydraulically isolated? Please see Fact Sheet 22 for more information if desired. | D14: User provided | E14: No | F14: Proceed to question 2
E15: Yes | F15: Proceed to question 3
B16: 2 | C16: Can most deicing be relocated to occur within one or more drainage areas that could be hydraulically isolated? | D16: User provided | E16: Yes | F16: Proceed to question 3
E17: No | F17: Proceed to question 3
B18: 3 | C18: What percentage of aircraft deicing would take place within the confines of the drainage area(s) that could be isolated? | D18: User provided | E18: Numeric | F18: Proceed to question 4 | G18: Total deicing fluids applied multiplied by this percentage
E19: None | F19: An apron collection system is not applicable.
B20: 4 | C20: Is aircraft deicing conducted routinely (i.e., almost every day) during the winter? | E20: Yes | F20: Apron collection systems are potentially applicable. Please see Fact Sheet 22 Apron Collection Systems for additional information. Due to the high amount of deicing activity, apron collection systems may benefit from automated diversion valves and/or real-time monitoring to reduce personnel workload and increase glycol capture rate. Please see Fact Sheets 31 Manual and Automated Diversion Valves and 32 Online Monitoring Technology for additional information. | G20: 35% of remaining total deicing fluids applied are captured, with 75% of precipitation
E21: No | F21: Proceed to question 5
B22: 5 | C22: Are personnel available to operate diversion valves during deicing events in addition to their current duties? | E22: Yes | F22: An apron collection system is potentially applicable. Please see Fact Sheet 22 Apron Collection Systems for additional information. If personnel are available to operate diversion valves the lower capital cost of manual diversion valves without real time monitoring may be beneficial compared to automated systems. Please see Fact Sheets 31 Manual and Automated Diversion Valves and 32 Online Monitoring Technology for additional information. | G22: Deleted percentages and instead changed narrative to reflect variation due to automatic/manual and real time monitoring.
E23: No | F23: An apron collection system is potentially applicable. Please see Fact Sheet 22 Apron Collection Systems for additional information. Automated diversion valves, with or without real time monitoring will be less demanding on personnel if employees are not able to tend to manual valves during deicing events. Please see Fact Sheets 31 Manual and Automated Diversion Valves and 32 Online Monitoring Technology for additional information.
A28: Glycol Collection Vehicles | B28: 1 | C28: Is collection of aircraft deicing runoff at higher concentrations and/or smaller volumes desirable to support recycling, reduce storage or other reasons? (This is often the case for frequent defrosting events, see Fact Sheet 23 for additional information and examples.) | E28: Yes | F28: Proceed to question 2
E29: No | F29: Glycol collection vehicles are not applicable.
B30: 2 | C30: Is increased vehicular traffic around aircraft deicing locations acceptable? | D30: User provided | E30: Yes | F30: Proceed to question 3
E31: No | F31: Glycol collection vehicles are not applicable.
B32: 3 | C32: Can catch basins and storm sewer inlets in aircraft deicing locations be blocked to prevent deicing runoff from entering the storm sewer? (See Fact Sheet 33 for guidance.) | D32: User provided. | E32: Yes | F32: Proceed to question 4 | G32: 35% capture rate from total fluid capture at 15% concentration
E33: No | F33: Proceed to question 4 | G33: 20% capture rate from total fluid capture at 15% concentration
B34: 4 | C34: How many aircraft deicing positions would potentially be serviced by GRVs? | E34: User Input | F34: Proceed to question 5 | G34: Default of 8 deicing positions served per GRV though allow user input to change this to reflect specific conditions.
B35: 5 | C35: How many gates will each GRV be able to serve? (Default to 8) | E35: User Input | F35: Proceed to question 6
B36: 6 | C36: Can calcPersonnelSize personnel be assigned or hired to support GRV operations without conflicting with existing operations? | E36: Yes | F36: Glycol collection vehicles are potentially applicable. Please see Fact Sheet 23 Glycol Collection Vehicles for additional information. | G36: Personnel equal to GRV number plus 1 to represent vehicle operators and 1 coordinator or support staff. | H36: Fact sheet 23 implies 1 person per vehicles with a overall supervisor to increase efficiency.
E37: No | F37: Glycol collection vehicles are not applicable due to the insufficient number of personnel to support operations.
A40: Block-and-pump systems | B40: 1 | C40: Is most aircraft deicing conducted within areas where the storm sewers in close proximity are primarily collecting runoff from those areas? | D40: User provided | E40: Yes | F40: Proceed to question 2 | H40: This method is usually used as a interim collection BMP and available information on collection performance is limited
E41: No | F41: Block and pump systems are not applicable. If the storm sewer system is permeable, collection rates will likely not be sufficient for this technology.
B42: 2 | C42: Are the close-proximity storm sewers in good physical condition (i.e., the pipes and joints are in good shape and don't leak)? | D42: User provided | E42: Yes | F42: Proceed to question 4
E43: No | F43: Proceed to question 3
E44: Unknown | F44: Block and pump systems use existing storm drainage for temporary storage of deicing laden stormwater. Therefore leaking systems will have a negative impact on the effectiveness of this system. Please investigate the condition of your storm system using Fact Sheet 24 as a reference.
B45: 3 | C45: Can the storm sewer drainage system be repaired to prevent or minimize leaks? | E45: Yes | F45: Proceed to question 4
E46: No | F46: Block and pump systems are not applicable. If the storm sewer system is permeable, collection rates will likely not be sufficient for this technology.
B47: 4 | C47: Can the storm sewers draining the deicing area(s) be isolated using valves or other temporary blocks? | E47: Yes | F47: Block and pump systems are potentially applicable. Please see Fact Sheet 24 Block-and-Pump Systems for additional information. Valves for the system can be either manually operated or automated (i.e., motorized). Manual valves are often easier to install and less expensive, but require personnel at the valve location to operate. Please see Fact Sheet 31 Manual and Automated Diversion Valves and 32 Online Monitoring Technology for more information.
E48: No | F48: Block and pump systems are not applicable. Due to additional stormwater collection by the storm sewers, the resulting fluid may be too dilute to allow block and pump systems to be effective.
A52: The following BMPS will not be included in the tool but commended as an additional practice.
A53: Airfield Drainage Planning/Design/Retrofit | B53: 1 | C53: Is there a planned airfield improvement project that could include areas where aircraft are currently deiced or an area where a central deicing facility might be constructed? | D53: User provided | E53: Yes | F53: A feasibility study should be recommended as part of the planning effort for the project. Please see Fact Sheet 25 Airfield Planning Drainiage/Design/Retrofit for additional information. | H53: This BMP would be suggested due to its versatility if an upcoming project is anticipated.
E54: No | F54: This strategy may be potentially applicable during future projects. During that time a feasibility study should be recommended as part of the planning effort for the project. Please see Fact Sheet 25 Airfield Planning Drainiage/Design/Retrofit for additional information.
A65: Deicer-laden Snow Management | B65: 1 | C65: Do snow plowing operations around aircraft deicing areas collect significant amounts of snow containing aircraft deicers? | D65: User provided | E65: Yes | F65: Deicer-laden snow management is potentially applicable. Please see Fact Sheet 26 Deicer-laden Snow Management for additional information.
E66: No | F66: Deicer-laden snow management is not applicable. Please see Fact Sheet 26 Deicer-laden Snow Management for additional information.
E67: Not sure | F67: Deicer-laden snow management is potentially applicable and should be further investigated if the presence of deicers in snow piles may have an impact on regulatory compliance. Please see Fact Sheet 26 Deicer-laden Snow Management for additional information.
B68: 2 | C68: Does the runoff from melting snow containing aircraft deicers present a regulatory compliance problem? | D68: User provided | E68: Yes | F68: Deicer-laden snow management is potentially applicable. Please see Fact Sheet 26 Deicer-laden Snow Management for additional information.
E69: No | F69: Utilizing deicer-laden snow management may assist in capturing additional aircraft deicers. Please see Fact Sheet 26 Deicer-laden Snow Management for additional information.
A76: Existing BMPS
C77: What is the capture efficiency of the selected BMP for the deicing fluids applied at the location? | E77: meets expectations from fact sheets | F77: proceed
E78: does not meet expectations | F78: Investigate opportunities to optimize BMP operation.
C80: what percentage of the aircraft deicing fluids are applied at the location? | E80: score and percentage acceptable | F80: proceed
E81: 1 | F81: If increased collection performance is sought, consider alternative collection BMPs recommended by the tool and investigate opportunities to improve management of deicer-laden snow and/or use of pavement deicers with reduced environmental impacts.
E82: else
C84: can the percentage of aircraft deicing fluids applied at the location be increased? | E84: yes | F84: Investigate expansion of BMP implementation.
E85: no | F85: Run tool for unserved area with no existing BMPs.

Sheet TRD - Questions
C3: Treatment, Recovery, and Disposal
C9: Topic | H9: Guidance
C11: Background Information
D12: This page assesses the applicable best management practices for treatment, recovery, and disposal of deicer fluid. Some topics have dependencies on responses given earlier in this tool, so before proceeding be sure to have completed the Deicer Use questions on this tool's Start page.
C16: General Questions
D17: Should glycol recycling be given extra weight in the ranking of applicable treatment, recovery, and disposal technologies based on organization objectives to promote recycling?
D18: Would the airport consider an on-site treatment system for deicer-laden stormwater?
D19: How much space, in acres, is available for siting of an on-site treatment or glycol recovery system at a single location?
D20: What are the height restrictions in the space that is available for on-site treatment or glycol recovery facility?
D21: Do wildlife attractant concerns prohibit having open water in the area for on-site storage?
D22: What is the most restrictive discharge limit at the airport's most restrictive surface discharge outfall (mg/L)? If concentration-based limits don’t apply, at what concentration would deicing runoff need to be collected to meet load limits or other requirements related to deicers in stormwater discharges? If the concentration or load at which runoff would need to be collected has not been determined, select the range of values that reflects the range of concentrations typically measured in discharges during deicing events.
C24: Publically-Owned Treatment Works (POTW)
D25: POTWs are off-site owned by public entities that use biological treatment processes to treat sanitary sewage, industrial wastewater, and airport deicer-impacted stormwater. See Fact Sheet 34 for more information.
D26: Does the airport have sanitary sewer service or is the airport located in an area with sanitary sewer service?
D27: Has the airport determined if the local POTW is willing or able to take collected deicer-laden stormwater?
D28: Is the POTW able to take collected deicer-laden stormwater from the airport?
D29: Do you have information about how much deicer-laden stormwater the local POTW can take in terms of load and/or volume?
D30: Do airport discharges to the sanitary sewer have a volumetric limit, wet weather discharge restriction, load limit, or slug load restriction?
C32: Glycol Recovery
D33: Glycol recovery systems utilize physical processes to separate glycol from stormwater and recover it for reuse. Glycol recovery can be employed on-site at the airport, off-site at a vendor’s facility, or in combination. See Fact Sheet 41 for more information.
D34: Is the airport willing to consider transporting collected runoff off-site for glycol recovery?
D35: Preliminary evaluation of this BMP is based on answers to the General Questions on this page, and Deicer Use questions on the Start page.
C39: Passive Facultative Treatment (PFT)
D40: PFT systems use bacteria fixed to soil particles or an in-ground engineered substrate to degrade deicers. Aeration is passive. This category includes in-situ (soil-based) treatment, irrigation-based land application, subsurface flow wetlands, and reed bed wetland technologies. See Fact Sheet 39 for more information.
D41: Average minimum winter air temperature (°F) | F41: =avgTempInput -> 
D42: Evaluation of this BMP is based on answers to the General Questions on this page and Deicer Use questions on the Start page.
C44: Aerated Lagoon
D45: Aerated lagoon systems utilize aerobic bacteria suspended in the water contained in basin to degrade deicers. Mechanical aeration systems deliver oxygen for use by microorganisms. See Fact Sheet 115 for more information.
D46: Evaluation of this BMP is based on answers to the General Questions on this page and Deicer Use questions on the Start page.
C48: Activated Sludge
D49: Activated sludge systems utilized aerobic bacteria suspended in the water in an aerated tank or basin to degrade deicers. Variations on activated sludge include extended aeration activated sludge and sequencing batch reactor technologies. See Fact Sheet 38 for more information.
D50: Evaluation of this BMP is based on answers to the General Questions on this page and Deicer Use questions on the Start page.
C52: Aerated Gravel Bed (AGB)
D53: AGB systems use aerobic bacteria attached to gravel surfaces to degrade deicers. Aeration is provided to promote biological degradation. See Fact Sheet 36 for more information.
D54: Evaluation of this BMP is based on answers to the General Questions on this page and Deicer Use questions on the Start page.
C56: Moving Bed Bio-Reactor (MBBR)
D57: MBBR systems utilize aerobic bacteria fixed to a substrate (typically plastic media) suspended in the water in an aerated tank to degrade deicers. See Fact Sheet 37 for more information.
D58: Evaluation of this BMP is based on answers to the General Questions on this page and Deicer Use questions on the Start page.
C60: Anaerobic Fluidized Bed Reactor (AFBR)
D61: AFBR systems utilize anaerobic bacteria affixed to a fluidized substrate (typically granular activated carbon) in a vertical reactor tank to degrade deicers. One of the products of this degradation is methane, which can be used in heating the influent water to enhance treatment. See Fact Sheet 35 for more information.
D62: Evaluation of this BMP is based on answers to the General Questions on this page and Deicer Use questions on the Start page.

Sheet TRD - Guidance (afbr) (hidden)
A1: AFBR
A2: Topic | C2: Question | D2: Source of Information | E2: Response / Value | F2: Action/Guidance | G2: Comments (not shown in tool)
A3: Dependency on Deicer Use | B3: 1 | C3: On average, how much aircraft deicer is applied at the airport annually? | D3: Tool Calculation Output from Deicer Use Input Qs | E3: < 40,000 gallons PG | F3: AFBR is not applicable. The amount of deicer likely to be available for capture based on the deicer used entered is not enough load to support the anaerobic biology for the typical minimum unit process size. | G3: Based on minimum deicer use for an on-site actively managed treatment operation (ISLIP - 43,500 gallons glycol) (ACRP Report 99)
E4: > 40,000 gallons PG | F4: Go to question 2.
A6: Willingness to Implement | B6: 2 | C6: Would the airport consider an on-site treatment system for deicer-laden stormwater? | D6: User Input | E6: Yes | F6: Go to question 3.
E7: No | F7: AFBR is not applicable. AFBR is typically implemented on-site and the user indicated that the airport was not interested in considering an on-site treatment system. AFBR is not recommended unless no off-site treatment, recovery, or disposal options are identified.
A9: Compatibility with Available Space | B9: 3 | C9: How much space is available for siting of an on-site treatment or glycol recovery system at a single location? | D9: User Input/General Drop Down QGD1 | E9: > 1 acres | F9: Go to question 4.
E10: .5 acres < x < 1 acres
E11: .25 acres < x < .5 acres | F11: AFBR is not applicable. An AFBR requires are least half an acre of space and is not suitable for the size identified for on-site treatment or glycol recovery.
E12: <.25 acres
A14: Compatibility with Height Restrictions | B14: 4 | C14: What are the height restrictions in the space that is available for on-site storage, treatment, or glycol recovery technologies? | D14: User Input/General Drop Down QGD3 | E14: >35 feet or no restriction | F14: Go to question 5. | G14: AFBR reactors are over 35 feet, but design often includes sinking them a few feet (PDX building elevation is 36'10").
E15: 20 feet < x < 35 feet | F15: AFBR is not applicable. AFBR reactors are typically 30 ft tall, and although they can be sunk into the ground, it is liekely that the height of the building housing the reactors will not be within the height restrictions for the available space.
E16: 12 feet < x < 20 feet
E17: < 12 feet
A19: Compatibility with discharge limitations | B19: 5 | C19: What is the most restrictive discharge limit at the airport's most restrictive surface discharge outfall? | D19: User Input/General Drop Down QGD2 | E19: >17,000 mg/L COD, >9,000 mg/L BOD, >10,000 mg/L PG, >1% PG, >19,000 mg/L EG | F19: An AFBR is potentially applicable. | G19: AFBR minimum influent is 2,700 mg/L COD (ACRP Report 99) so collected concentrations would match influent characteristics
E20: 10,000 < x < 17,000 mg/L COD, 5,400 < x < 9,000 mg/L BOD, 5,900 < x < 10,000 mg/L PG, 7,800 < x < 19,000 mg/L EG
E21: 8,000 < x < 10,000 mg/L COD, 4,300 < x < 5,400 mg/L BOD, 4,700 < x < 5,900 mg/L PG, 6,200 < x < 7,800 mg/L EG
E22: 3,400 < x < 8,000 mg/L COD, 1,800 < x < 4,300 mg/L BOD, 2,000 < x < 4,700 mg/L PG, 2,600 < x < 6,200 mg/L EG
E23: 2,700 < x < 3,400 mg/L COD, 1,400 < x < 1,800 mg/L BOD, 1,600 < x < 2,000 mg/L PG, 2,100 < x < 2,600 mg/L EG
E24: 100 < x < 2,700 mg/L COD, 54 < x < 1,400 mg/L BOD, 60 < x < 1,600 mg/L PG, 78 < x < 2,100 mg/L EG | F24: Go to question 6.
E25: 40 < x < 100 mg/L COD, 21 < x < 54 mg/L BOD, 24 < x < 60 mg/L PG, 31 < x < 78 mg/L EG
E26: 30 < x < 40 mg/L COD, 16 < x < 21 mg/L BOD, 18 < x < 24 mg/L PG, 23 < x < 31 mg/L EG | F26: Go to question 6. If AFBR is recommended, note that effluent may need additional polishing treatment or discharge to POTW. | G26: AFBR treatment system effluent would likely need to be sent off-site, effluent could be as high as < 40 mg/L COD
E27: < 30 mg/L COD, < 16 mg/L BOD, < 18 mg/L PG, < 23 mg/L EG
A29: Compatibility with other practices | B29: 6 | C29: Which Collection Practices are included in this option? | D29: Prior Tool Steps | E29: Glycol Collection Vehicles | F29: AFBR is potentially applicable.
E30: Centralized Deicing Facilities
E31: Block and Pump
E32: Apron Collection | F32: AFBR is potentially applicable. A site specific study should be conducted to identify expected collection concentrations. Implementation would be most successful if paired with online monitoring and segregration of stormwater by concentration.
E33: Airfield Drainage Planning
E34: Deicer-Laden Snow Management

Sheet TRD - Guidance (mbbr) (hidden)
A1: MBBR
A2: Topic | C2: Question | D2: Source of Information | E2: Response / Value | F2: Action/guidance | G2: Comments (not shown in tool)
A3: Dependency on Deicer Use | B3: 1 | C3: On average, how much aircraft deicer is applied at the airport annually? | D3: Tool Calculation Output from Deicer Use Input Qs | E3: < 40,000 gallons PG | F3: MBBR is not applicable. Deicer use reported is less than the typical minimum for existing on-site actively management treatment systems, but could possibly be feasible if other options for treatment, recovery, and disposal are unavailable. | G3: Based on minimum deicer use for an on-site actively managed treatment operation (ISLIP - 43,500 gallons glycol) (ACRP Report 99)
E4: > 40,000 gallons PG | F4: Go to question 2.
A6: Willingness to Implement | B6: 2 | C6: Would the airport consider an on-site treatment system for deicer-laden stormwater? | D6: User Input | E6: Yes | F6: Go to question 3.
E7: No | F7: MBBR is not applicable. An MBBR would likely be implemented on-site and the user indicated that the airport was not interested in considering an on-site treatment system. MBBR technology is not recommended unless no off-site treatment, recovery, or disposal options are identified.
A9: Hazardous Wildlife | B9: 3 | C9: Do wildlife attractant concerns prohibit an airport from having open water in the space available for on-site storage, treatment, or glycol recovery technologies? | D9: User Input | E9: No | F9: Go to question 4.
E10: Yes | F10: MBBR is not applicable. MBBR typically includes an open water suface, and the user indicated that there were wildlife attractant concerns at the site.
A12: Compatibility with Available Space | B12: 4 | C12: How much space is available for siting of an on-site treatment or glycol recovery system at a single location? | D12: User Input/General Drop Down QGD1 | E12: > 1 acres | F12: Go to question 5.
E13: .5 acres < x < 1 acres | F13: MBBR is not applicable. An MBBR requires over an acre of space and is not suitable for the site size identified as available for on-site treatment or glycol recovery.
E14: .25 acres < x < .5 acres
E15: <.25 acres
A17: Compatibility with Height Restrictions | B17: 5 | C17: What are the height restrictions in the space that is available for on-site storage, treatment, or glycol recovery technologies? | D17: User Input/General Drop Down QGD3 | E17: >35 feet or no restriction | F17: Go to question 6. | G17: Need building to house treatment system.
E18: 20 feet < x < 35 feet
E19: 12 feet < x < 20 feet
E20: < 12 feet | F20: MBBR is not applicab.e. An MBBR installation typically includes a building that houses the nutrient systems and solids processing equipment. It is likely that the height of the building will the taller than the height restrictions for the available site.
A22: Compatibility with discharge limitations | B22: 6 | C22: What is the most restrictive discharge limit at the airport's most restrictive surface discharge outfall? | D22: User Input/General Drop Down QGD2 | E22: >17,000 mg/L COD, >9,000 mg/L BOD, >10,000 mg/L PG, >1% PG, >19,000 mg/L EG | F22: MBBR is not applicable. Influent concentrations for typical MBBR installations are <.2% PG (ACRP Report 99). Since the most restrictive discharge limit is greater than this typical concentrations, it is unlikely that the collected runoff would be of higher concentrations than the typical design influent concentration for MBBR technology. | G22: MBBR at Oslo influent is <.2% PG (ACRP Report 99) It is unlikely that the airport would collect runoff at concentrations lower than the effluent limit. If the effluent limit is higher than the design influent concentration for the technology it is unlikely that this is the best technology given the effluent limit.
E23: 10,000 < x < 17,000 mg/L COD, 5,400 < x < 9,000 mg/L BOD, 5,900 < x < 10,000 mg/L PG, 7,800 < x < 19,000 mg/L EG
E24: 8,000 < x < 10,000 mg/L COD, 4,300 < x < 5,400 mg/L BOD, 4,700 < x < 5,900 mg/L PG, 6,200 < x < 7,800 mg/L EG
E25: 3,400 < x < 8,000 mg/L COD, 1,800 < x < 4,300 mg/L BOD, 2,000 < x < 4,700 mg/L PG, 2,600 < x < 6,200 mg/L EG
E26: 2,700 < x < 3,400 mg/L COD, 1,400 < x < 1,800 mg/L BOD, 1,600 < x < 2,000 mg/L PG, 2,100 < x < 2,600 mg/L EG | F26: Go to question 7.
E27: 100 < x < 2,700 mg/L COD, 54 < x < 1,400 mg/L BOD, 60 < x < 1,600 mg/L PG, 78 < x < 2,100 mg/L EG
E28: 40 < x < 100 mg/L COD, 21 < x < 54 mg/L BOD, 24 < x < 60 mg/L PG, 31 < x < 78 mg/L EG
E29: 30 < x < 40 mg/L COD, 16 < x < 21 mg/L BOD, 18 < x < 24 mg/L PG, 23 < x < 31 mg/L EG
E30: < 30 mg/L COD, < 16 mg/L BOD, < 18 mg/L PG, < 23 mg/L EG | F30: Go to question 7. | G30: If MBBR is recommended, add note that effluent may need further polishing or off-site disposal.
A32: Compatibility with other practices | B32: 7 | C32: Which Collection Practices are included in this option? | D32: Prior Tool Steps | E32: Glycol Collection Vehicles | F32: MBBR is not applicable. MBBR technology is best suited for low-concentration, high volume flow. The collection technologies identifed as possible BMPs are designed for mid- to high-concentration, lower-volume flows. | G32: This technology is best suited for low-concentration, high-volume flows. These collection technologies are designed for mid to high-concentration, lower-volume flows.
E33: Centralized Deicing Facilities
E34: Block and Pump
E35: Apron Collection
E36: Airfield Drainage Planning | F36: MBBR is potentially applicable.
E37: Deicer-Laden Snow Management

Sheet TRD - Guidance (agb) (hidden)
A1: AGB
A2: Topic | C2: Question | D2: Source of Information | E2: Response / Value | F2: Action/Guidance | G2: Comments (not shown in tool)
A3: Dependency on Deicer Use | B3: 1 | C3: On average, how much aircraft deicer is applied at the airport annually? | D3: Tool Calculation Output from Deicer Use Input Qs | E3: < 40,000 gallons PG | F3: AGB is not applicable. Deicer use reported is less than the typical minimum for existing on-site actively managed treatement systems, but could possibly be feasible if other options for treatment, recovery, and disposal are unavailable. | G3: Based on minimum deicer use for an on-site actively managed treatment operation (ISLIP - 43,500 gallons glycol) (ACRP Report 99)
E4: > 40,000 gallons PG | F4: Go to question 2.
A6: Willingness to Implement | B6: 2 | C6: Would the airport consider an on-site treatment system for deicer-laden stormwater? | D6: User Input | E6: Yes | F6: Go to question 3.
E7: No | F7: AGB is not applicable. An AGB is typically implemented on-site and the user indicated that the airport was not interested in considering an on-site treatment system. AGB technology is not recommended unless no off-site treatment, recovery or disposal options are identified.
A9: Compatibility with Available Space | B9: 3a | C9: How much space is needed for an AGB? | D9: Tool Calculation Output | E9: See equations on Start-Guidance tab to calculate BOD load applied | F9: Calculate the total amount of BOD load applied from the amount of deicers applied that the user enters using the equations in the Start Guidance (deicer) tab.
E10: # of acres required for AGB = ((BOD load applied/120)*(1-.5)*(25.4)*(1+.3)*(1/43560) | F10: Perform this calculation to determine the size of the site that would be required to implement the AGB. (((BOD applied (lbs)/days of operation) * (1-BOD lost%) / pounds BOD treated per square foot of treatment)*(1+% of area needed for storage))*acres/sq feet
B11: 3b | C11: How much space is available for siting of an on-site treatment or glycol recovery system at a single location? | D11: User Input/General Drop Down QGD1 | E11: IF # of acres available > # of acres required for AGB. | F11: Go to question 4
E12: IF # of acres available < # of acres required for AGB. | F12: AGB is not applicable. The amount of deicer likely to be available for capture based on the deicer use enetered would require an AGB larger than the size site identified as availabe for on-site treatment or glycol recovery.
A14: Compatibility with Height Restrictions | B14: 4 | C14: What are the height restrictions in the space that is available for on-site storage, treatment, or glycol recovery technologies? | D14: User Input/General Drop Down QGD3 | E14: >35 feet or no restriction | F14: Go to question 5. | G14: Need building to house nutrient system and monitoring instruments
E15: 20 feet < x < 35 feet
E16: 12 feet < x < 20 feet
E17: < 12 feet | F17: AGB is not applicable. An AGB installation typically includes a building that houses the nutrient system and monitoring equipment. It is likely that the height of the building will be taller than the height restrictions for the available site.
A19: Compatibility with other practices | B19: 5 | C19: Which Collection Practices are included in this option? | D19: Prior Tool Steps | E19: Glycol Collection Vehicles | F19: AGB is not applicable. While possible to use AGB to treat runoff captured with GRVs it is best for low concentrate/high volume streams, not high concentrate/low volume like what is collected from GRV.
E20: Centralized Deicing Facilities | F20: If Question 1, deicer use was between 40,000 and 80,000 gallons PG, then go to question 6. Otherwise, do not include AGB in recommended options. | G20: If they use a pad and apply enough deicer to generate high concentrations, an AGB is likely not the ideal treatment solution.
E21: Block and Pump | F21: Go to question 6.
E22: Apron Collection
E23: Airfield Drainage Planning
E24: Deicer-Laden Snow Management
A26: Compatibility with discharge limitations | B26: 6 | C26: What is the most restrictive discharge limit at the airport's most restrictive surface discharge outfall? | D26: User Input/General Drop Down QGD2 | E26: >17,000 mg/L COD, >9,000 mg/L BOD, >10,000 mg/L PG, >1% PG, >19,000 mg/L EG | F26: Influent concentrations for typical AGB installations are <10,000 mg/L COD. Since the most restrictive discharge limit is greater than the typical influent concentration for an AGB, it is likely that collected runoff would be of higher concentrations than the typical design influent concentration for AGB technology. For this reason an AGB is likely not applicable. | G26: AGB is not applicable. Typical AGB influent is <10,000 mg/L COD (ACRP Report 99) If the limit is above 10,000 mg/L COD there would be no reason to collect below 10,000 mg/L COD leading to an influent stream that is more concentrated than is typical for an AGB.
E27: 10,000 < x < 17,000 mg/L COD, 5,400 < x < 9,000 mg/L BOD, 5,900 < x < 10,000 mg/L PG, 7,800 < x < 19,000 mg/L EG
E28: 8,000 < x < 10,000 mg/L COD, 4,300 < x < 5,400 mg/L BOD, 4,700 < x < 5,900 mg/L PG, 6,200 < x < 7,800 mg/L EG | F28: An AGB is potentially applicable.
E29: 3,400 < x < 8,000 mg/L COD, 1,800 < x < 4,300 mg/L BOD, 2,000 < x < 4,700 mg/L PG, 2,600 < x < 6,200 mg/L EG
E30: 2,700 < x < 3,400 mg/L COD, 1,400 < x < 1,800 mg/L BOD, 1,600 < x < 2,000 mg/L PG, 2,100 < x < 2,600 mg/L EG
E31: 100 < x < 2,700 mg/L COD, 54 < x < 1,400 mg/L BOD, 60 < x < 1,600 mg/L PG, 78 < x < 2,100 mg/L EG
E32: 40 < x < 100 mg/L COD, 21 < x < 54 mg/L BOD, 24 < x < 60 mg/L PG, 31 < x < 78 mg/L EG | F32: An AGB is potentially applicable. AGB effluent concentrations may be as high as 100 mg/L COD. Effluent from the AGB may need to be further processed with additional polishing treatment or dischraged to the POTW. | G32: AGB effluent would likely need to be sent off-site, effluent could be as high as 100 mg/L COD (ACRP Report 99)
E33: 30 < x < 40 mg/L COD, 16 < x < 21 mg/L BOD, 18 < x < 24 mg/L PG, 23 < x < 31 mg/L EG
E34: < 30 mg/L COD, < 16 mg/L BOD, < 18 mg/L PG, < 23 mg/L EG

Sheet TRD - Guidance (as) (hidden)
A1: Activated Sludge
A2: Topic | C2: Question | D2: Source of Information | E2: Response / Value | F2: Action/Guidance | G2: Comments (not shown in tool)
A3: Dependency on Deicer Use | B3: 1 | C3: On average, how much aircraft deicer is applied at the airport annually? | D3: Tool Calculation Output from Deicer Use Input Qs | E3: < 40,000 gallons PG | F3: Activated sludge is not applicable. Deicer use reported is less than the typical minimum for existing on-site actively managed treatment systems, but could possibly be feasible if other options for treatment, disposal, or recovery are unavailable.
E4: > 40,000 gallons PG | F4: Go to question 2.
A6: Willingness to Implement | B6: 2 | C6: Would the airport consider an on-site treatment system for deicer-laden stormwater? | D6: User Input | E6: Yes | F6: Go to question 3.
E7: No | F7: Activated sludge is not applicable. An activated sludge system not associated with POTW discharge is typically implemented on-site and the user indicated that the airport was not interested in considering an on-site treatment system. This technology is not recommended unless no off-site treatment, recovery or disposal options are identified.
A9: Hazardous Wildlife | B9: 3 | C9: Do wildlife attractant concerns prohibit an airport from having open water in the space available for on-site storage, treatment, or glycol recovery technologies? | D9: User Input | E9: No | F9: Go to question 4.
E10: Yes | F10: Activated sludge is likely not applicable. An activated sludge system typically includes an open water surface, but may be applicable if special measures are taken to address wildife attraction. Coordination with wildlife biologists and other environmental personnel should be completed to determine if these options are possible given the wildlife concerns.
A12: Compatibility with Available Space | B12: 4 | C12: How much space is available for siting of an on-site treatment or glycol recovery system at a single location? | D12: User Input/General Drop Down QGD1 | E12: > 1 acres | F12: Go to question 5.
E13: .5 acres < x < 1 acres | F13: This BMP is not applicable due to available space restrictions.
E14: .25 acres < x < .5 acres
E15: <.25 acres
A17: Compatibility with Height Restrictions | B17: 5 | C17: What are the height restrictions in the space that is available for on-site storage, treatment, or glycol recovery technologies? | D17: User Input/General Drop Down QGD3 | E17: >35 feet or no restriction | F17: Go to question 6.
E18: 20 feet < x < 35 feet
E19: 10 feet < x < 20 feet
E20: < 10 feet | F20: Activated sludge is not applicable. An activated sludge installation typically includes a building that houses solids handling equipment. It is likely that the height of the building will be taller than the height restrictions for the available site.
A22: Compatibility with other practices | B22: 7 | C22: Which Collection Practices are included in this option? | D22: Prior Tool Steps | E22: Glycol Collection Vehicles | F22: Activated sludge is not applicable. Activated sludge is best suited for influent concentrations less than 10,000 mg/L COD. Glycol collection vehicles are designed for mid to high-concentration, lower-volume flows.
E23: Centralized Deicing Facilities | F23: go to next question
E24: Block and Pump
E25: Apron Collection
E26: Airfield Drainage Planning
E27: Deicer-Laden Snow Management
A29: Compatibility with discharge limitations | B29: 6 | C29: What is the most restrictive discharge limit at the airport's most restrictive surface discharge outfall? | D29: User Input/General Drop Down QGD2 | E29: >17,000 mg/L COD, >9,000 mg/L BOD, >10,000 mg/L PG, >1% PG, >19,000 mg/L EG | F29: Activated sludge is not applicable. Influent concentrations for typical activated sludge installations are <10,000 mg/L COD. Since the most restrictive discharge limit is greater than the typical influent concentration for an activated sludge, it is likely that collected runoff would be of higher concentrations than the typical design influent concentration for activated sludge technology. | G29: Activated Sludge influent is typically < 10,000 mg/L COD (ACRP Report 99)
E30: 10,000 < x < 17,000 mg/L COD, 5,400 < x < 9,000 mg/L BOD, 5,900 < x < 10,000 mg/L PG, 7,800 < x < 19,000 mg/L EG
E31: 8,000 < x < 10,000 mg/L COD, 4,300 < x < 5,400 mg/L BOD, 4,700 < x < 5,900 mg/L PG, 6,200 < x < 7,800 mg/L EG | F31: Activated sludge is potentially applicable.
E32: 3,400 < x < 8,000 mg/L COD, 1,800 < x < 4,300 mg/L BOD, 2,000 < x < 4,700 mg/L PG, 2,600 < x < 6,200 mg/L EG
E33: 2,700 < x < 3,400 mg/L COD, 1,400 < x < 1,800 mg/L BOD, 1,600 < x < 2,000 mg/L PG, 2,100 < x < 2,600 mg/L EG
E34: 100 < x < 2,700 mg/L COD, 54 < x < 1,400 mg/L BOD, 60 < x < 1,600 mg/L PG, 78 < x < 2,100 mg/L EG
E35: 40 < x < 100 mg/L COD, 21 < x < 54 mg/L BOD, 24 < x < 60 mg/L PG, 31 < x < 78 mg/L EG
E36: 30 < x < 40 mg/L COD, 16 < x < 21 mg/L BOD, 18 < x < 24 mg/L PG, 23 < x < 31 mg/L EG
E37: < 30 mg/L COD, < 16 mg/L BOD, < 18 mg/L PG, < 23 mg/L EG | F37: Activated sludge is potentially applicable. Activated sludge effluent concentrations may be as high as 30 mg/L COD. Effluent from the activated sludge system may need to be further processed with additional polishing treatment or dischraged to the POTW.

Sheet TRD - Guidance (al) (hidden)
A1: Aerated Lagoon
A2: Topic | C2: Question | D2: Source of Information | E2: Response / Value | F2: Action/Guidance | G2: Comments (not shown in tool)
A3: Willingness to Implement | B3: 1 | C3: Would the airport consider an on-site treatment system for deicer-laden stormwater? | D3: User Input | E3: Yes | F3: Go to question 2.
E4: No | F4: Aerated lagoon is not applicable. An aerated lagoon is typically implemented on-site and the user indicated that the airport was not interested in considering an on-site treatment system. Aerated lagoon technology is not recommended unless no off-site treatment, recovery or disposal options are identified.
A6: Dependency on Available Space | B6: 2 | C6: How much space is available for siting of an on-site treatment or glycol recovery system at a single location? | D6: User Input/General Drop Down QGD1 | E6: > 1 acres | F6: Go to question 3. | G6: >1 acre, majority of footprint is the water surface of the lagoon (ACRP Report 99)
E7: < 1 acre | F7: Aerated lagoon is not applicable. An actively managed aerated lagoon typically requires over an acre of space and is not suitable for the size site identified as availabe for on-site treatment or glycol recovery.
A11: Dependency on Height Restrictions | B11: 3 | C11: What are the height restrictions in the space that is available for on-site storage, treatment, or glycol recovery technologies? | D11: User Input/General Drop Down QGD3 | E11: >35 feet or no restriction | F11: Go to question 4. | G11: Need building to house nutrient system and monitoring instruments (ACRP Report 99)
E12: 20 feet < x < 35 feet
E13: 12 feet < x < 20 feet
E14: < 12 feet | F14: Aerated lagoon is not applicable. An aerated lagoon installation typically includes a building that houses the nutrient system and monitoring equipment. It is likely that the height of the building will be taller than the height restrictions for the available site.
A16: Hazardous Wildlife | B16: 4 | C16: Do wildlife attractant concerns prohibit an airport from having open water in the space available for on-site storage, treatment, or glycol recovery technologies? | D16: User Input | E16: No | F16: Go to question 5. | G16: Technology includes an open water surface
E17: Yes | F17: Aerated lagoon is likely not applicable. An aerated lagoon includes an open water surface, but may be applicable if special measures are taken to address the potential risk of wildlife attraction. Coordination with wildlife biologists and other environmental personnel should be completed to determine if these options are possible given the wildlife concerns.
A19: Dependency on Deicer Use | B19: 5 | C19: On average, how much aircraft deicer is applied at the airport annually? | D19: Tool Calculation Output from Deicer Use Input Qs | E19: < 40,000 gallons PG | F19: Go to question 7. | G19: Potentially viable and cost effective for airports that apply minimal deicer.
E20: 40,000 < x < 95,000 gallons PG | F20: Go to question 6. | G20: Potentially viable and cost effective if the discharge limits are not too stringent.
E21: > 95,000 gallons PG | F21: Aerated lagoon technology is not applicable. The amount of deicer likely to be available for capture based on the deicer use entered is more than the typical maximum deicer use for aerated lagoon installations that discharge to surface waters.
A23: Compatibility with discharge limitations | B23: 6 | C23: What is the most restrictive discharge limit at the airport's most restrictive surface discharge outfall? | D23: User Input/General Drop Down QGD2 | E23: >17,000 mg/L COD, >9,000 mg/L BOD, >10,000 mg/L PG, >1% PG, >19,000 mg/L EG | F23: Aerated lagoon is not applicable. Influent concentrations for typical aerated lagoon installations are <8,000 mg/L COD. Since the most restrictive discharge limit is greater than the typical influent concentration for an aerated lagoon, it is likely that collected runoff would be of higher concentrations than the typical design influent concentration for aerated lagoon technology. | G23: Aerated Lagoon Influent is typically < 8,000 mg/L COD. (ACRP Report 99).
E24: 10,000 < x < 17,000 mg/L COD, 5,400 < x < 9,000 mg/L BOD, 5,900 < x < 10,000 mg/L PG, 7,800 < x < 19,000 mg/L EG
E25: 8,000 < x < 10,000 mg/L COD, 4,300 < x < 5,400 mg/L BOD, 4,700 < x < 5,900 mg/L PG, 6,200 < x < 7,800 mg/L EG
E26: 3,400 < x < 8,000 mg/L COD, 1,800 < x < 4,300 mg/L BOD, 2,000 < x < 4,700 mg/L PG, 2,600 < x < 6,200 mg/L EG | F26: Go to question 7.
E27: 2,700 < x < 3,400 mg/L COD, 1,400 < x < 1,800 mg/L BOD, 1,600 < x < 2,000 mg/L PG, 2,100 < x < 2,600 mg/L EG
E28: 100 < x < 2,700 mg/L COD, 54 < x < 1,400 mg/L BOD, 60 < x < 1,600 mg/L PG, 78 < x < 2,100 mg/L EG
E29: 40 < x < 100 mg/L COD, 21 < x < 54 mg/L BOD, 24 < x < 60 mg/L PG, 31 < x < 78 mg/L EG | F29: Aerated Lagoon effluent could be as high as 100 mg/L COD. Effluent from the aerated lagoon may need to be further processed with additional polishing treatment or dischraged to the POTW. For this reason an aerated lagoon is likely not applicable. | G29: Aerated Lagoon effluent would likely need to be sent off-site, effluent could be as high as 100 mg/L COD. No point in implementing aerated lagoon if effluent would still need to be treated.
E30: 30 < x < 40 mg/L COD, 16 < x < 21 mg/L BOD, 18 < x < 24 mg/L PG, 23 < x < 31 mg/L EG
E31: < 30 mg/L COD, < 16 mg/L BOD, < 18 mg/L PG, < 23 mg/L EG
A33: Compatibility with other practices | B33: 7 | C33: Which Collection Practices are included in this option? | D33: Prior Tool Steps | E33: Glycol Collection Vehicles | F33: Aerated lagoon is not applicable. This technology is best suited for low concentration flows.
E34: Centralized Deicing Facilities
E35: Block and Pump
E36: Apron Collection | F36: An aerated lagoon is potentiallly applicable. Please see Fact Sheet 115 Aerated Lagoons for additional information. A site-specific study is recommended to determine if aerated lagoon could be used to meet effluent limits. NOTE: some small airports in arid climates have had success with use of evaporation basins for disposal of collected deicing runoff.
E37: Airfield Drainage Planning
E38: Deicer-Laden Snow Management

Sheet TRD - Guidance (pft) (hidden)
A1: PFT
A2: Topic | C2: Question | D2: Source of Information | E2: Response / Value | F2: Action/Guidance | G2: Comments (not shown in tool)
A3: Dependency on Deicer Use | B3: 1 | C3: On average, how much aircraft deicer is applied at the airport annually? | D3: Tool Calculation Output from Deicer Use Input Qs | E3: < 80,000 gallons PG | F3: This BMP is potentially applicable. Go to question 5. | G3: Based on maximum deicer use reported for ELG questionnaire where PFT is the only treatment method used. (Dead Horse AK 78,900 gallons glycol)
E4: > 80,000 gallons PG | F4: Go to question 2. | G4: PFT could be used for airports that apply more deicer. In these cases the technology is often employed for collection of runway and taxiway areas, or dilute fraction from aircraft deicing areas. (ACRP Report 99)
A6: Willingness to Implement | B6: 2 | C6: Would the airport consider an on-site treatment system for deicer-laden stormwater? | D6: User Input | E6: Yes | F6: Go to question 3.
E7: No | F7: PFT is not applicable. PFT is typically implemented on-site and the user indicated that the airport was not interested in considering an on-site treatment system. PFT is not recommended unless no off-site treatement, recovery, or disposal options are identfied.
A9: Compatibility with Available Space | B9: 3 | C9: How much space is available for siting of an on-site treatment or glycol recovery system at a single location? | D9: User Input/General Drop Down QGD1 | E9: > 1 acres | F9: Go to question 4. | G9: ACRP Report 99 (>1 acre)
E10: .5 acres < x < 1 acres | F10: PFT is not applicable. PFT typically requires over an acre of space and is not suitable for the size site identified as available for on-site treatment or glycol recovery.
E11: .25 acres < x < .5 acres
E12: <.25 acres
A14: Compatibility with discharge limitations | B14: 4 | C14: What is the most restrictive discharge limit at the airport's most restrictive surface discharge outfall? | D14: User Input/General Drop Down QGD2 | E14: >17,000 mg/L COD, >9,000 mg/L BOD, >10,000 mg/L PG, >1% PG, >19,000 mg/L EG | F14: PFT is not applicable. It is unlikely that airfield deicing and fugitive deicers are causing permit limit exceedances for these discharge limitations and PFT is likely to be ineffective for primary deicing area treatment for airports applying more than 80,000 gallons PG. | G14: It is unlikely that airfield deicing and fugitive deicers are causing permit limit exceedances for these discharge limitations and PFT is likely to be ineffective for primary deicing area treatment for airports applying more than 80,000 gallons PG.
E15: 10,000 < x < 17,000 mg/L COD, 5,400 < x < 9,000 mg/L BOD, 5,900 < x < 10,000 mg/L PG, 7,800 < x < 19,000 mg/L EG
E16: 8,000 < x < 10,000 mg/L COD, 4,300 < x < 5,400 mg/L BOD, 4,700 < x < 5,900 mg/L PG, 6,200 < x < 7,800 mg/L EG
E17: 3,400 < x < 8,000 mg/L COD, 1,800 < x < 4,300 mg/L BOD, 2,000 < x < 4,700 mg/L PG, 2,600 < x < 6,200 mg/L EG
E18: 2,700 < x < 3,400 mg/L COD, 1,400 < x < 1,800 mg/L BOD, 1,600 < x < 2,000 mg/L PG, 2,100 < x < 2,600 mg/L EG
E19: 100 < x < 2,700 mg/L COD, 54 < x < 1,400 mg/L BOD, 60 < x < 1,600 mg/L PG, 78 < x < 2,100 mg/L EG
E20: 40 < x < 100 mg/L COD, 21 < x < 54 mg/L BOD, 24 < x < 60 mg/L PG, 31 < x < 78 mg/L EG | F20: PFT is potentially applicable if collection of stormwater from aircraft deicing areas still results in permit exceedances. Go to question 5. | G20: Possible that airfield deicing and fugitive deicers are causing permit limit exceedances at these discharge limitations, PFT might provide value if used with another technology for aircraft deicing areas.
E21: 30 < x < 40 mg/L COD, 16 < x < 21 mg/L BOD, 18 < x < 24 mg/L PG, 23 < x < 31 mg/L EG
E22: < 30 mg/L COD, < 16 mg/L BOD, < 18 mg/L PG, < 23 mg/L EG
A24: Dependency on Temperature | B24: 5 | C24: What is average minimum winter air temperature? | D24: weather data | E24: < 32 degrees F | F24: PFT is potentially applicable. Please see Fact Sheet 39 Passive Facultative Treatment for additional information. Treatment rates are significantly lower in cold weather and that a site-specific study should be conducted to determine if on-site storage during the winter and treatment during other seasons may be necessary.
E25: > 32 degrees F | F25: Go to question 6.
A27: Hazardous Wildlife Attractants | B27: 6 | C27: Can the airport have open water in the space available for on-site storage, treatment, or glycol recovery technologies? | D27: User Input | E27: Yes | F27: PFT is potentially applicable. Please see Fact Sheet 39 Passive Facultative Treatment for additional information.
E28: No | F28: PFT is potentially applicable. Please see Fact Sheet 39 Passive Facultative Treatment for additional information. Some PFT technologies include open water, which may not be compatible with the site.
F30: NOTE: Some small airports in arid climates have had success with use of evaporation basins for disposal of collected deicing runoff.

Sheet TRD - Guidance (general) (hidden)
A1: General Drop Down Questions
A2: TOPIC | C2: USER QUESTION | D2: DROP DOWN ANSWERS | E2: SOURCE/NOTES
A3: Space Availability | B3: GD1 | C3: How much space is available for siting of an on-site treatment or glycol recovery system at a single location? | D3: data entry | E3: Assuming the question of storage that is typically associated with treatment will be asked as part of the storage logic.
J4: pond area limits
J5: < 1 acre
J6: 1 - 5 acres
J7: > 5 acres
A8: Effluent Limits | B8: GD2 | C8: What is the most restrictive discharge limit at the airport's most restrictive surface discharge outfall? | D8: No limits
D9: >17,000 COD, >9,000 BOD, >10,000 PG, >1% PG, >19,000 EG | E9: 1% PG is minimum for glycol recovery to be cost effective (ACRP Report 99)
D10: 10,000-17,000 COD, 5,400-9,000 BOD, 5,900-10,000 PG, 7,800-19,000 EG | E10: Activated Sludge and AGB influent are typically < 10,000 mg/L COD (ACRP Report 99)
D11: 8,000-10,000 COD, 4,300-5,400 BOD, 4,700-5,900 PG, 6,200-7,800 EG | E11: Aerated Lagoon Influent is typically < 8,000 mg/L COD. (ACRP Report 99).
D12: 3,400-8,000 COD, 1,800-4,300 BOD, 2,000-4,700 PG, 2,600-6,200 EG | E12: MBBR at Oslo sends <.2% PG to MBBR
D13: 2,700-3,400 COD, 1,400-1,800 BOD, 1,600-2,000 PG, 2,100-2,600 EG | E13: AFBR minimum influent is 2,700 mg/L COD (ACRP Report 99)
D14: 100-2,700 COD, 54-1,400 BOD, 60-1,600 PG, 78-2,100 EG | E14: Assumed that fugitive and airfield deicing could cause exceedances if limits are less than 100, and PFT could be used for these discharges.
D15: 40-100 COD, 21-54 BOD, 24-60 PG, 31-78 EG | E15: AGB and Aerated Lagoon effluent would likely need to be sent off-site, effluent could be as high as 100 mg/L COD
D16: 30-40 COD, 16-21 BOD, 18-24 PG, 23-31 EG | E16: AFBR treatment system effluent would likely need to be sent off-site, effluent could be as high as < 40 mg/L COD
D17: < 30 COD, < 16 BOD, < 18 PG, < 23 EG | E17: treatment system effluent would likely need to be sent off-site, effluent from activated sludge is 10-30 mg/L (ACRP Report 99)
C18: * See Deicer Use Input tab for COD/BOD/ PG/EG conversion factors
A20: Height Restrictions | B20: GD3 | C20: What are the height restrictions in the space that is available for on-site storage, treatment, or glycol recovery technologies? | D20: > 35 feet or no restriction | E20: Based on ACRP Report 99. Less than 10 ft typically associated with low-level biological treatment technologies that might include low buildings/shelters for housing nutrient system and monitoring instruments. AFBR reactors are over 35 feet, but fit in 20 - 35 category as base usually set below grade. Glycol recovery technology vary (distillation column 20-30 feet, MVR 16-22 feet, RO 12-16 feet).
D21: 20 feet - 35 feet
D22: 10 feet - 20 feet
D23: < 10 feet

Sheet TRD - Guidance (POTW) (hidden)
A1: POTW
A2: Topic | C2: Question | D2: Source of Information | E2: Response / Value | F2: Action/Guidance | G2: Comments (not shown in tool)
A3: Sanitary Sewer Accessibility | B3: 1 | C3: Does the airport have sanitary sewer service or is the airport located in an area with sanitary sewer service? | D3: User Provided | E3: No | F3: POTW discharge is not applicable. Sanitary sewer service is not available for airport discharges.
E4: Yes | F4: Go to question 2.
A6: Communication with POTW | B6: 2 | C6: Has the airport determined if the local POTW is willing or able to take collected deicer-laden stormwater? | D6: User Provided | E6: No | F6: POTW discharge is potentially applicable. The airport should initiate discussions with the local POTW to determine if POTW disposal is potentially feasible. Please see Fact Sheet 34 POTW Discharge for additional information.
E7: Yes | F7: Go to question 3.
A9: POTW Willingness to Accept Discharges | B9: 3 | C9: Is the POTW able to take collected deicer-laden stormwater from the airport? | D9: User Provided | E9: No | F9: POTW discharge is not applicable. The local POTW is unable to accommodate airport discharges of colllected stormwater containing deicers.
E10: Yes | F10: Go to question 4.
A12: Knowledge of POTW Limits | B12: 4 | C12: Do you have information about how much deicer-laden stormwater the local POTW can take in terms of load and/or volume? | D12: User Provided | E12: No | F12: POTW discharge is potentially applicable. The airport should initiate discussions with local POTW to determine the POTW's capacity to handle airport deicing discharges to determine if the POTW can be used as the sole means of treatment/discharge/recovery or if POTW discharge would need to be implemented with another technology. Please see Fact Sheet 34 POTW Discharge for additional information.
E13: Yes | F13: Go to question 5.
A15: Compatibility with Discharge Limits | B15: 5 | C15: Do airport discharges to the sanitary sewer have a volumetric limit, wet weather discharge restriction, load limit, or slug load restrictuion? | D15: User Provided | E15: No | F15: POTW discharge is potentially applicable. Please see Fact Sheet 34 POTW Discharge for additional information.
E16: Yes | F16: POTW discharge is potentially applicable. Further study should be conducted to determine if the POTW can be used as the sole means of treatment/discharge/recovery or if POTW discharge would need to be implemented with another technology. Please see Fact Sheet 34 POTW Discharge for additional information.

Sheet TRD - Guidance (gr) (hidden)
A1: Glycol Recovery
A2: Topic | C2: Question | D2: Source of Information | E2: Response / Value | F2: Action/Guidance | G2: Comments (not shown in tool)
C3: Is recycling desired | D3: user input on start page | E3: yes | F3: proceed
E4: no | F4: Glycol recovery is not applicable due to indication that recycling is not an organizational priority.
B6: 1 | C6: Are propylene-glycol or ethylene-glycol based aircraft deicing/anti-icing chemicals used at the airport? | D6: User Input/Deicer Use Input QDU1 | E6: propylene-glycol based aircraft deicing/anti-icing chemicals | F6: Go to Question 2
E7: ethylene-glycol based aircraft deicing/anti-icing chemicals
E8: propylene-glycol and ethylene-glycol based aircraft deicing/anti-icing chemicals | F8: Glycol recovery is not applicable. There is no market for mixed-stream glycols, and glycol recovery technologies do not separate EG from PG.
A10: Compatibility with collection practices | B10: 2 | C10: Which Collection Practices are included in this option? | D10: Prior Tool Steps | E10: Glycol Collection Vehicles | F10: Go to question 3
E11: Centralized Deicing Facilities
E12: Block and Pump
E13: Apron Collection | F13: Glycol recovery is not applicable. Glycol recovery is best suited for high-concentration flows >1% PG. These collection technologies are designed for low to mid-concentration flows.
E14: Airfield Drainage Planning
E15: Deicer-Laden Snow Management
A17: Compatibility with source reduction practices | B17: 3 | C17: Which Source Reduction Practices are included in this option? | D17: Prior Tool Steps | E17: Blending to Temperature Forced Air/Hybrid Deicing | F17: The use of BTT or Forced Air/Hybrid Deicing as a source reduction practice may reduce the concentration of deicing chemicals in stormwater collected, reducing the cost effectiveness of glycol recovery technologies. A site-specific study should be conducted prior to implementing BTT or Forced Air/Hybrid Deicing with glycol recovery technologies.
E18: Anything else | F18: Go to question 4.
A20: Compatibility with discharge limitations | B20: 4 | C20: What is the most restrictive discharge limit at the airport's most restrictive surface discharge outfall? | D20: User Input/General Drop Down QGD2 | E20: >17,000 mg/L COD, >9,000 mg/L BOD, >10,000 mg/L PG, >1% PG, >19,000 mg/L EG | F20: Go to question 5. | G20: 1% PG is minimum for glycol recovery to be cost effective (ACRP Report 99). A limit above 1% means that an airport could collect at 1% and not need any other collection or disposal method.
E21: 10,000 < x < 17,000 mg/L COD, 5,400 < x < 9,000 mg/L BOD, 5,900 < x < 10,000 mg/L PG, 7,800 < x < 19,000 mg/L EG | F21: Go to question 5. If subsequent questions lead to recommendation of glycol recovery, indicate a note "A site specific study should be conducted to determine if collection of concentrations needed for glycol recovery will be sufficient to meet discharge limits, or if additional treatment or disposal technologies will need to be implemented in addition to glycol recovery for stormwater collected a lower concentrations." | G21: For discharge limits less than 1% PG the airport may need to employ a treatment/disposal method in addition to glycol recovery to meet the limit. Whether or not a second treatment/disposal practice is used really depends on the amount of dilution between the collection point and outfall, and is beyond the scope of this tool to determine. A note indicating that a site specific study should be conducted is included for airports with limits below 1%.
E22: 8,000 < x < 10,000 mg/L COD, 4,300 < x < 5,400 mg/L BOD, 4,700 < x < 5,900 mg/L PG, 6,200 < x < 7,800 mg/L EG
E23: 3,400 < x < 8,000 mg/L COD, 1,800 < x < 4,300 mg/L BOD, 2,000 < x < 4,700 mg/L PG, 2,600 < x < 6,200 mg/L EG
E24: 2,700 < x < 3,400 mg/L COD, 1,400 < x < 1,800 mg/L BOD, 1,600 < x < 2,000 mg/L PG, 2,100 < x < 2,600 mg/L EG
E25: 100 < x < 2,700 mg/L COD, 54 < x < 1,400 mg/L BOD, 60 < x < 1,600 mg/L PG, 78 < x < 2,100 mg/L EG
E26: 40 < x < 100 mg/L COD, 21 < x < 54 mg/L BOD, 24 < x < 60 mg/L PG, 31 < x < 78 mg/L EG
E27: 30 < x < 40 mg/L COD, 16 < x < 21 mg/L BOD, 18 < x < 24 mg/L PG, 23 < x < 31 mg/L EG
E28: < 30 mg/L COD, < 16 mg/L BOD, < 18 mg/L PG, < 23 mg/L EG
A30: Willingness to Implement Off-site | B30: 5 | C30: Is the airport willing to consider transporting collected runoff off-site for glycol recovery? | D30: User Input | E30: Yes | F30: Off-site recovery may be applicable. Please see Fact Sheet 41 Glycol Recovery for additional information. A glycol recovery vendor should be contacted to identify a disposal location and determine if this is an economically viable option.
E31: yes, 50,000 - 100000 | F31: Typical off-site glycol recovery operations require average annual usage of at least 100,000 gallons of pure glycol to be economically viable. If the airport is situated near a recycling vendor or another airport that conducts glycol recovery, it may be possible to implement off-site glycol recovery with annual usage of less than 100,000 gallons glycol.
E32: No | F32: Off-site glycol recovery is not applicable. The user indicated that the airport was not interested in considering off-site glycol recovery.
A34: Dependency on Deicer Use | B34: 6 | C34: On average, how much aircraft deicer is applied at the airport annually? | D34: Tool Calculation Output from Deicer Use Input Qs | E34: > 125,000 gallons PG | F34: On-site glycol recovery is not applicable. Typical on-site glycol recovery operations require average annual usage of at least 125,000 gallons of pure glycol to be economically viable. If the airport is situated near another airport that collects stormwater runoff containing deicers, that would be willing to supplement the influent load, on-site glycol recovery may be feasible. | G34: Based on minimum deicer use reported for Acrp Report 99 for an on-site recycling (PWM - 128,0200 gallons glycol)
E35: <125,000 gallons PG | F35: Go to question 7
A37: Willingness to Implement On-site | B37: 7 | C37: Is the airport willing to operate glycol recovery technologies onsite? | D37: User Input | E37: Yes | F37: Off-site glycol recovery is potentially applicable. Please see Fact Sheet 41 Glycol Recovery for additional information.
E38: No | F38: On-site glycol recovery is not applicable. The user indicated that the airport was not interested in considering an on-site treatment system. On-site glycol recovery is not recommended unless no off-site treatment, recovery or disposal options are identified.
A40: Compatibility with Available Space | B40: 8 | C40: How much space is available for siting of an on-site treatment or glycol recovery system at a single location? | D40: User Input/General Drop Down QGD1 | E40: > 1 acres | F40: Go to question 9.
E41: .5 acres < x < 1 acres
E42: .25 acres < x < .5 acres | F42: On-site glycol recovery is not applicable. The building that houses the glycol recovery equipment is less than .25 acres, but space would also be needed for on-site storage. Minimum space needed is likely more like a half acre for implementation.
E43: <.25 acres
A45: Compatibility with Height Restrictions | B45: 9 | C45: What are the height restrictions in the space that is available for on-site storage, treatment, or glycol recovery technologies? | D45: User Input/General Drop Down QGD3 | E45: >35 feet or no restriction | F45: On-site glycol recovery is potentially applicable. Please see Fact Sheet 41 Glycol Recovery for additional information. Distillation columns may be 20-30 feet tall and may not be a feasible unit process for glycol recovery given the height restrictions.
E46: 20 feet < x < 35 feet
E47: 12 feet < x < 20 feet | F47: On-site glycol recovery is not applicable. Glycol recovery includes some combination of the following unit processes; MVR units, which are 16-22 feet tall, reverse osmosis equipment, which is 12-16 feet tall, and a distillation column, which may be 20-30 feet tall. It is likely that the height of the glycol recovery equipment will be taller than the height restrictions for the available site. | G47: (distillation column 20-30 feet, MVR 16-22 feet, RO 12-16 feet).
E48: < 12 feet

Sheet Storage - Questions
C3: Storage
C9: Topic | H9: Guidance
C11: Background Information
D12: This page assesses the applicable best management practices for the storage of collected deicer fluid. Some topics have dependencies on responses given earlier in the tool, so before proceeding be sure to have completed the deicer use questions on the Start page, as well as the questions asked on the Collection Systems and Treatment, Recovery, and Disposal pages. The optional storage calculator requires that the user provide an estimate of storage volume based on site specific drainage.
C17: Storage Area Calculator (optional)
D18: Below is an optional calculator for estimating the area necessary for different storage options based on the volume of storage required. Default values are provided as parameters to the calculation, and the user should verify that these values are reasonable for their facility. If a parameter value is not reasonable, the user can enter an alternative value that better represents site-specific conditions. A 25% safety factor is included in the calculations. Ultimately the user should employ site-specific knowledge and insights in making the final determination of whether a storage option is feasible in terms of space requirements.
D19: Volume of storage required (gallons)
D20: Ponds/Basins depth (ft) | F20: 10
D21: Below ground permanent tanks depth (ft) | F21: 15
D22: Above ground permanent tanks height (ft) | F22: 30
D23: Portable tanks
D24: Tanks length (ft) | F24: 43
D25: Tank width (ft) | F25: 8
D26: Buffer (ft) (side and back) | F26: 2
D27: Buffer (ft) (front) | F27: 5
D28: Modular tanks height (ft) (rectangular shape) | F28: 6
D29: Recommended area for Portable Tanks (acres) | F29: =ROUNDUP(1.25*storageRequiredVolumeInput/21000,0)*((portableTanksLengthInput+portableTanksSideBackBufferInput+portableTanksFrontBufferInput)*(portableTanksWidthInput+portableTanksSideBackBufferInput+portableTanksSideBackBufferInput))/(43560) -> 0 | H29: These values are ballpark estimations only. A site-specific evaluation for more accurate analysis is recommended.
D30: Recommended area for Modular Tanks (acres) | F30: =(storageRequiredVolumeInput * 1.25) / (7.48 * modularTanksHeightInput* 43560) -> 0
D31: Recommended area for Ponds/Basins (acres) | F31: =storageRequiredVolumeInput*1.25/(7.48*pondsDepthInput*43560) -> 0
D32: Recommended area for Above Ground Permanent Tanks (acres) | F32: =(storageRequiredVolumeInput*1.25)/(7.48*aboveGroundTanksHeightInput*43560) -> 0
D33: Recommended area for Below Ground Permanent Tanks (acres) | F33: =storageRequiredVolumeInput*1.25/(7.48*belowGroundTanksDepthInput*43560) -> 0
C35: BMPs Currently in Use
D36: Select all BMPs, if any, currently in use at the facility.
D37: The facility would like to continue to use or expand the use of Portable Tanks.
D38: The facility would like to continue to use or expand the use of Modular Tanks
D39: The facility would like to continue to use or expand the use of Ponds/Basins.
D40: The facility would like to continue to use or expand the use of Above Ground Permanent Tanks.
D41: The facility would like to continue to use or expand the use of Below Ground Permanent Tanks.
C43: Portable Tanks
D44: Is there an area where portable tanks can be located? See the storage calculator for an estimation of required area if storage volume is known.
C46: Modular Tanks
D47: Is there an area where modular tanks can be located? See the storage calculator for an estimation of required area if storage volume is known.
C49: Ponds/Basins
D50: Is there an area where pond(s)/basin(s) can be located? See the storage calculator for an estimation of required area if storage volume is known.
D51: Is the distance to groundwater or bedrock suitable for the construction of a pond/basin at the available location?
D52: Is storage location downgradient of stormwater collection point?
D53: Is construction of a pump station to convey runoff into an elevated pond/basin possible as part of this project?
C55: Above Ground Permanent Tanks
D56: Is there an area where an above ground tank or tanks can be located? See the storage calculator for an estimation of required area if storage volume is known.
D57: Is construction of a pump station to convey runoff into tank as part of this project possible?
C59: Below Ground Permanent Tanks
D60: Is there an area where a below ground tank or tanks can be located? See the storage calculator for an estimation of required area if storage volume is known.
D61: Is the distance to groundwater or bedrock suitable for the construction of a below ground tank?
D62: Can a pump station be included as part of this project to transport runoff out of storage tank?

Sheet Storage - Guidance (hidden)
A1: Topic | B1: Question Number | C1: Question | D1: Source of Information | E1: Response / Value | F1: Action | G1: Comments
A2: Portable Tanks | B2: 1 | C2: Is the volume of storage required less than 150,000 gallons? | D2: From calculations in containment/collection section | E2: Yes | F2: Proceed to question 2
E3: No | F3: The use of portable tanks is not applicable due to low storage volume requirements.
B4: 2 | C4: Is there area where portable tanks can be located ? See Fact sheet 27 for possible siting constraints. | D4: User provided | E4: No | F4: Portable tanks are not applicable due to space requirements. | G4: Portable Tanks are typically an interim practice until pemanent storage can be provided.
E5: Yes | F5: Portable tanks are potentially appropriate. These are typically an interim practice until permanent storage can be provided. Please see Fact Sheet 27 Portable Tanks for additional information.
A8: Modular Tanks | B8: 1 | C8: Is the volume of storage required between 50,000 to 2,000,000 gallons? | D8: From calculations in containment/collection section | E8: Yes | F8: Proceed to question 2
E9: No | F9: This BMP is not applicable due to storage volume requirement falling outside the range of 50,000 to 2,000,000 gallons.
B10: 2 | C10: Is there area where modular tanks can be located ? See Fact sheet 28 for potential siting constraints. | D10: User provided | E10: No | F10: Modular tanks are not applicable due to space requirements.
E11: Yes | F11: Modular tanks are potentially applicable. These are typically an interim practice until permanent storage can be provided. Please see Fact Sheet 28 Modular Tanks for additional information.
A14: Ponds/Basins | B14: 1 | C14: Is deicing area runoff collected via gravity flow? | D14: User provided. | E14: No | F14: Proceed to question 2
E15: yes | F15: The use of ponds/basins is potentially applicable. Please see Fact Sheet 29 Basins for additional information.
C16: Do wildlife attractants prohibit the construction of a pond? | E16: Yes | F16: The use of ponds/basins is not applicable due to prior indication (in General Questions on the TRD page) that wildlife attractant concerns prohibit open water.
E17: No
C18: Is space available for the construction of a pond? | E18: Yes | F18: Proceed
E19: No | F19: The use of ponds/basins is not applicable due to volume-driven space requirements.
B20: 2 | C20: Is the distance to groundwater or bedrock suitable for the construction of a pond at the available location? | D20: User provided. | E20: Yes | F20: The use of ponds/basins is potentially appropriate. Please see Fact Sheet 29 Basins for additional information.
E21: No | F21: The use of ponds/basins is not applicable due to depth requirements.
B22: 3 | C22: Is construction of a pump station to convey runoff into the pond possible as part of this project possible? | D22: User provided. | E22: Yes | F22: The use of ponds/basins is potentially applicable. See Fact Sheet 29 Basins and FAA Advisory Circular 150/5200-33 Hazardous Wildlife Attractants on or Near Aiports for information on limitations for Ponds/Basins and requirements for mitigation of potential hazardous wildlife attractants associated with ponds/basins.
E23: No | F23: The use of ponds/basins is not applicable due to the need to pump runoff to the upgradient potential site.
C24: is there an area where a pond(s)/basin(s) can be located? | E24: yes | F24: proceed
E25: No | F25: The use of ponds/basins is not applicable due to space requirements.
A27: Above Ground Permanent Tanks | B27: 1 | C27: Is runoff collected conveyed to storage by gravity | D27: User provided. | E27: Yes | F27: Proceed to question 2
E28: No | F28: Proceed to question 3
B29: 2 | C29: Is construction of a pump station to convey runoff into tank as part of this project possible? | D29: User provided. | E29: Yes | F29: Proceed to question 3
E30: No | F30: Above ground permanent tanks are not applicable due to need for pump station to transfer runoff into above ground storage tanks.
B31: 3 | C31: Is there a site where an above ground structure can be constructed without interference with airport operations and design surfaces? | D31: User provided. | E31: Yes | F31: Above ground permanent tanks are potentially applicable. Please see Fact Sheet 30 Permanent Tanks for additional information.
E32: No | F32: Above ground permanent tanks are not applicable because of space and/or height restrictions.
B33: 4 | C33: What are the height restrictions in the space that is available for on-site storage, treatment, or glycol recovery? | D33: From Treatment Recovery Disposal Logic General Drop Down question 1.3 | E33: 20 feet - 30 feet or > 35 feet | F33: proceed
E34: 10 feet - 20 feet or <10 feet | F34: Above ground permanent tanks are not applicable due to height restrictions.
B35: 5 | C35: Is the volume of storage required greater than 10,000 gallons | D35: From collection system or treatment system calculations | E35: Yes | F35: proceed
E36: No | F36: Above ground permanent tanks are not applicable due to low storage volume requirements.
C37: Area requirement | E37: yes | F37: proceed
E38: No | F38: Above ground permanent tanks are not applicable due to space requirements.
A40: Below Ground Permanent Tanks | B40: 1 | C40: Is there availablility of a suitable location for a beilow ground storage tank? | D40: User provided | E40: Yes | F40: Proceed to question 2
E41: No | F41: Below ground permanent tanks are not applicable due to space requirements.
B42: 2 | C42: Is distance to bedrock less than 5 feet in the prospective area of the below ground storage tank? | D42: User provided | E42: Yes | F42: Proceed to question 2
E43: No | F43: Below ground permanent tanks are not applicable due to depth requirements.
B44: 3 | C44: Can a pump station be included as part of this project to transport runoff out of storage tank | D44: User provided | E44: Yes | F44: Below ground permanent tanks are potentially applicable. Please see Fact Sheet 30 Permanent Tanks for additional information.
E45: No | F45: Below ground permanent tanks are not applicable because of the infeasability of meeting pumping requirements.

Sheet Rating System (hidden)
A1: Screening Parameter | B1: Rating | D1: Considerations to Establish Rating
A2: Implementation Time
B3: 1 | C3: > 3 years | D3: Quantify time to execute Planning & Study, Permitting, Design, Procurement, Construction, Commissioning
B4: 2 | C4: 2 - 3 years
B5: 3 | C5: 1 - 2 years
B6: 4 | C6: 3 - 12 months
B7: 5 | C7: < 3 months
A8: Siting Constraints
B9: 1 | C9: > 6 constraints | D9: Example Constraint parameters: Height (> 10ft), Footprint (>1 acre), Hazardous Wildlife Attractant (y/n), Electrical Service (y/n), Connect to Airport Controls/Communication (y/n), Typically Located in Airfield (y/n), Requires Construction > 3 ft below surface (y/n), Typically located in tenant operated areas (y/n), Requires connection to offsite infrastructure (y/n), Impacts to design surfaces (Part 77, RSA, ROFA, etc.)
B10: 2 | C10: 5-6 constraints
B11: 3 | C11: 3-4 constraints
B12: 4 | C12: 1-2 constraints
B13: 5 | C13: No constraints
A14: Expandability and Adaptability
B15: 1 | C15: > 9 constraints | D15: Example constraints: Inflexible shape, inflexible unit size, requires new building to expand/adapt, requires new support system to expand/adapt, requires more than one connection point to existing system to expand/adapt, not typically modular, can only expand in one direction, expansion impacts to existing infrastructure/tenants.
B16: 2 | C16: 7-9 constraints
B17: 3 | C17: 4-6 constraints
B18: 4 | C18: 1-3 constraints
B19: 5 | C19: No constraints
A20: Staffing & Contract Operational Support
B21: 1 | C21: 3 or more new FTE | D21: For processes requiring contracted operational support instead of employees, considering 1 FTE = $100,000 in annual contracted operational support. Consider operations, maintenance, technical support, and management when evaluating FTEs.
B22: 2 | C22: 2 new FTE
B23: 3 | C23: 1 new FTE
B24: 4 | C24: Part-time employee
B25: 5 | C25: No new employees
A26: Operations and Maintenance Complexity
B27: 1 | C27: > 10 parameters | D27: Parameter = an individual item that must be monitored, analyzed, controlled, adjusted, or maintained on a daily basis by the operations and maintenance staff. For example, monitoring and adjusting flow rate into a system = 1 parameter.
B28: 2 | C28: 5-10 parameters
B29: 3 | C29: 2-5 parameters
B30: 4 | C30: 1 parameter
B31: 5 | C31: 0 parameters

Sheet BMP Scores (hidden)
A1: Treatment/Recovery/Disposal Ratings | B1: POTW | C1: Glycol Recovery | D1: PFT | E1: Aerated Lagoon | F1: Activated Sludge | G1: AGB | H1: MBBR | I1: AFBR
A2: Implementation Time | B2: 4 | C2: 1 | D2: 2 | E2: 4 | F2: 2 | G2: 3 | H2: 2 | I2: 2
A3: Siting Constraints | B3: 5 | C3: 3 | D3: 2 | E3: 4 | F3: 4 | G3: 3 | H3: 4 | I3: 3
A4: Expandability and Adaptability | B4: 5 | C4: 2 | D4: 4 | E4: 4 | F4: 3 | G4: 5 | H4: 2 | I4: 2
A5: Staffing & Contract Operational Support | B5: 5 | C5: 1 | D5: 4 | E5: 4 | F5: 2 | G5: 3 | H5: 2 | I5: 2
A6: Operations and Maintenance Complexity | B6: 4 | C6: 3 | D6: 5 | E6: 3 | F6: 2 | G6: 3 | H6: 2 | I6: 2
A7: sum | B7: =SUM(B2:B6) -> 23 | C7: =SUM(C2:C6) -> 10 | D7: 17 | E7: 19 | F7: 13 | G7: 17 | H7: 12 | I7: 11
A9: Collection Systems | B9: Centralized Deicing Facilities | C9: Apron Collection Systems | D9: Glycol Collection Vehicles | E9: Block-and-pump Systems | F9: Airfield Drainage Planning/Design/Retrofit | G9: Deicer-laden Snow Management | L9: Collection BMP Performance Ranges
A10: Implementation Time | B10: 2 | C10: 4 | D10: 4 | E10: 4 | F10: 1 | G10: 4
A11: Siting Constraints | B11: 2 | C11: 4 | D11: 4 | E11: 3 | F11: 1 | G11: 4 | N11: Reported in Fact Sheet
A12: Expandability and Adaptability | B12: 3 | C12: 3 | D12: 5 | E12: 4 | F12: 3 | G12: 5 | L12: Collection Technology | M12: Fact Sheet | N12: Min | O12: Max | P12: Min acceptable performance
A13: Staffing & Contract Operational Support | B13: 4 | C13: 4 | D13: 2 | E13: 2 | F13: 1 | G13: 5 | L13: Centralized Deicing Facilities | M13: 21 | N13: 0.35 | O13: 0.8 | P13: 0.6
A14: Operations and Maintenance Complexity | B14: 1 | C14: 3 | D14: 2 | E14: 2 | F14: 1 | G14: 3 | L14: Apron Collection Systems | M14: 22 | N14: 0.2 | O14: 0.7 | P14: 0.5
A15: weighted sum (not inc. lim. storage) | B15: =B19*B16*B17 -> 12 | C15: 18 | D15: 17 | E15: 15 | F15: 7 | G15: 21 | L15: Glycol Collection Vehicles | M15: 23 | N15: 0.2 | O15: 0.5 | P15: 0.4
A16: recycling is desired | B16: 1 | C16: 1 | D16: 1 | E16: 1 | F16: 1 | G16: 1 | L16: Block-and-pump systems | M16: 24 | N16: 0.2 | O16: 0.35 | P16: 0.3
A17: collection efficiency is important | B17: 1 | C17: 1 | D17: 1 | E17: 1 | F17: 1 | G17: 1
A18: if storage space is limited | B18: 1.1 | C18: 0.8 | D18: 1.2 | E18: 0.9 | F18: 1.2 | G18: 1
A19: unweighted sum | B19: =SUM(B10:B14) -> 12 | C19: =SUM(C10:C14) -> 18 | D19: 17 | E19: 15 | F19: 7 | G19: 21
A21: Storage | B21: Portable Tanks | C21: Modular Tanks | D21: Ponds/Basins | E21: Above Ground Permanent Tanks | F21: Below Ground Permanent Tanks
A22: Implementation Time | B22: 5 | C22: 4 | D22: 3 | E22: 3 | F22: 3
A23: Siting Constraints | B23: 4 | C23: 4 | D23: 3 | E23: 3 | F23: 3
A24: Expandability and Adaptability | B24: 4 | C24: 4 | D24: 3 | E24: 3 | F24: 3
A25: Staffing & Contract Operational Support | B25: 4 | C25: 4 | D25: 3 | E25: 4 | F25: 4
A26: Operations and Maintenance Complexity | B26: 4 | C26: 4 | D26: 3 | E26: 4 | F26: 4
A27: weighted sum | B27: =B29*B28 -> 21 | C27: =C29*C28 -> 20 | D27: 15 | E27: 17 | F27: 17
A28: weight | B28: 1 | C28: 1 | D28: 1 | E28: 1 | F28: 1
A29: unweighted sum | B29: =SUM(B22:B26) -> 21 | C29: =SUM(C22:C26) -> 20 | D29: =SUM(D22:D26) -> 15 | E29: =SUM(E22:E26) -> 17 | F29: =SUM(F22:F26) -> 17
A30: limited storage? | B30: FALSE | C30: FALSE | D30: FALSE | E30: FALSE | F30: FALSE
A32: SRP | B32: sBTT | C32: BTT Trucks | D32: FA Trucks
A33: Implementation Time | B33: 3 | C33: 3 | D33: 3
A34: Siting Constraints | B34: 4 | C34: 5 | D34: 5
A35: Expandability and Adaptability | B35: 4 | C35: 5 | D35: 5
A36: Staffing & Contract Operational Support | B36: 5 | C36: 5 | D36: 5
A37: Operations and Maintenance Complexity | B37: 3 | C37: 3 | D37: 5
A38: sum | B38: =SUM(B33:B37) -> 19 | C38: =SUM(C33:C37) -> 21 | D38: =SUM(D33:D37) -> 23

Sheet Report
C3: Report
C10: Run-Specific Information
D11: Analyst | E11: =Start!F18 -> 0
D12: Scenario Name | E12: =Start!F19 -> 0
D13: Description | E13: =Start!F20 -> 0
D14: Date | E14: =Start!F21 -> 2020-04-17
D15: Airport | E15: =IF(airportName="NOT LISTED",airportNameManual,airportName) -> 0
C21: Source Reduction Summary
D22: Stationary blend-to-temperature
D23: Forced air trucks
D24: Blend-to-temperature trucks
C26: Additional Source Reduction technologies to consider
C36: Existing Collection Systems BMPs
C39: Additional Strategies to Consider
M44: Source Reduction Potential
M45: topic | N45: include
M46: sBTT
M47: FA Trucks | N47: =IF(OR(forcedAirGuidance=fluidReductionRankHigh,forcedAirGuidance=bttRankMed),TRUE,FALSE) -> TRUE
M48: BTT Trucks
M50: Addtl SRP
M51: topic | N51: include
M52: Proactive anti-icing | N52: FALSE
M53: Physical removal of snow | N53: FALSE
M54: Hangared parking | N54: FALSE
M55: Hot water deicing | N55: FALSE
M56: Enclosed bucket deicing | N56: FALSE
M57: Enhanced weather forecasting | N57: FALSE
M58: Holdover time determinations system | N58: FALSE
M59: Reduced aircraft operations | N59: FALSE
M61: Collection Systems
M62: topic | N62: include
M63: 00 true placeholder | N63: TRUE
M64: 00 false placeholder | N64: FALSE
M65: Centralized Deicing Facilities
M66: Apron Collection Systems
M67: Glycol Collection Vehicles
M68: Block-and-pump Systems
M70: Addtl CS
M71: topic | N71: include
M72: Airfield Drainage Planning/Design/Retrofit
M73: Deicer-laden Snow Management
M75: Treatment Recovery Disposal
M76: topic | N76: include
M77: 00 true placeholder | N77: TRUE
M78: 00 false placeholder | N78: FALSE
M79: POTW
M80: Glycol Recovery
M81: PFT
M82: Aerated Lagoon
M83: Activated Sludge
M84: AGB
M85: MBBR
M86: AFBR
M88: Storage
M89: topic | N89: include
M90: 00 true placeholder | N90: TRUE
M91: 00 false placeholder | N91: FALSE
M92: Portable Tanks
M93: Modular Tanks
M94: Ponds/Basins
M95: Above Ground Permanent Tanks
M96: Below Ground Permanent Tanks
M98: include | N98: TRUE | Q98: include | R98: TRUE | U98: include | V98: TRUE
M99: cs | Q99: trd | U99: storage
M100: Row Labels | Q100: Row Labels | U100: Row Labels
M101: 00 true placeholder | Q101: 00 true placeholder | U101: 00 true placeholder
M112: =COUNTA(M102:M109) -> 0 | Q112: =COUNTA(Q102:Q109) -> 0 | U112: =COUNTA(U102:U109) -> 0
N113: =PRODUCT(M112,Q112,U112) -> 0
P115: cs | Q115: cs score | R115: trd | S115: trd score | T115: storage | U115: storage score | V115: sum score | W115: combo index
M116: =MOD((ROW()-ROW(M$116)),M$112)+1 ->  | N116: =MOD(INT((ROW()-ROW(N$116))/M$112),Q$112)+1 ->  | O116: =MOD(INT(INT((ROW()-ROW(O$116))/M$112)/Q$112),U$112)+1 ->  | P116: =INDEX(collectionSystemsBMPs,M116) ->  | Q116: =HLOOKUP(P116,collectionSystemsBMPScores,7,FALSE) ->  | R116: =INDEX(trdBMPs,N116) ->  | S116: =HLOOKUP(R116,trdBMPScores,7,FALSE) ->  | T116: =INDEX(storageBMPs,O116) ->  | U116: =HLOOKUP(T116,storageBMPScores,7,FALSE) ->  | V116: =SUM(IF(HLOOKUP(T116,storageBMPScores,8,FALSE),HLOOKUP(P116,collectionSystemsBMPScores,10,FALSE)*Q116,Q116)+S116+U116) ->  | W116: 1
P117: =INDEX(collectionSystemsBMPs,M117) ->  | Q117: =HLOOKUP(P117,collectionSystemsBMPScores,7,FALSE) ->  | R117: =INDEX(trdBMPs,N117) ->  | T117: =INDEX(storageBMPs,O117) ->  | U117: =HLOOKUP(T117,storageBMPScores,7,FALSE) ->  | W117: 2
R118: =INDEX(trdBMPs,N118) ->  | T118: =INDEX(storageBMPs,O118) ->  | W118: 3
P119: =INDEX(collectionSystemsBMPs,M119) ->  | W119: 4
W120: 5
W121: 6
W122: 7
W123: 8
W124: 9
W125: 10
W126: 11
W127: 12
W128: 13
W129: 14
W130: 15
W131: 16
W132: 17
W133: 18
W134: 19
W135: 20
W136: 21
W137: 22
W138: 23
W139: 24
W140: 25
W141: 26
W142: 27
W143: 28
W144: 29
W145: 30
W146: 31
W147: 32
W148: 33
W149: 34
W150: 35
W151: 36
W152: 37
W153: 38
W154: 39
W155: 40
W156: 41
W157: 42
W158: 43
W159: 44
W160: 45
W161: 46
W162: 47
W163: 48
W164: 49
W165: 50
W166: 51
W167: 52
W168: 53
W169: 54
W170: 55
W171: 56
W172: 57
W173: 58
W174: 59
W175: 60
W176: 61
W177: 62
W178: 63
W179: 64
M180: =MOD((ROW()-ROW(M$116)),M$112)+1 ->  | N180: =MOD(INT((ROW()-ROW(N$116))/M$112),Q$112)+1 ->  | O180: =MOD(INT(INT((ROW()-ROW(O$116))/M$112)/Q$112),U$112)+1 ->  | P180: =INDEX(collectionSystemsBMPs,M180) ->  | Q180: =HLOOKUP(P180,collectionSystemsBMPScores,7,FALSE) ->  | R180: =INDEX(trdBMPs,N180) ->  | S180: =HLOOKUP(R180,trdBMPScores,7,FALSE) ->  | T180: =INDEX(storageBMPs,O180) ->  | U180: =HLOOKUP(T180,storageBMPScores,7,FALSE) ->  | V180: =SUM(IF(HLOOKUP(T180,storageBMPScores,8,FALSE),HLOOKUP(P180,collectionSystemsBMPScores,10,FALSE)*Q180,Q180)+S180+U180) ->  | W180: 65
W181: 66
W182: 67
W183: 68
W184: 69
W185: 70
W186: 71
W187: 72
W188: 73
W189: 74
W190: 75
W191: 76
W192: 77
W193: 78
W194: 79
W195: 80
W196: 81
W197: 82
W198: 83
W199: 84
W200: 85
W201: 86
W202: 87
W203: 88
W204: 89
W205: 90
W206: 91
W207: 92
W208: 93
W209: 94
W210: 95
W211: 96
W212: 97
W213: 98
W214: 99
W215: 100
W216: 101
W217: 102
W218: 103
W219: 104
W220: 105
W221: 106
W222: 107
W223: 108
W224: 109
W225: 110
W226: 111
W227: 112
W228: 113
W229: 114
W230: 115
W231: 116
W232: 117
W233: 118
W234: 119
W235: 120
W236: 121
W237: 122
W238: 123
W239: 124
W240: 125
W241: 126
W242: 127
W243: 128
M244: =MOD((ROW()-ROW(M$116)),M$112)+1 ->  | N244: =MOD(INT((ROW()-ROW(N$116))/M$112),Q$112)+1 ->  | O244: =MOD(INT(INT((ROW()-ROW(O$116))/M$112)/Q$112),U$112)+1 ->  | P244: =INDEX(collectionSystemsBMPs,M244) ->  | Q244: =HLOOKUP(P244,collectionSystemsBMPScores,7,FALSE) ->  | R244: =INDEX(trdBMPs,N244) ->  | S244: =HLOOKUP(R244,trdBMPScores,7,FALSE) ->  | T244: =INDEX(storageBMPs,O244) ->  | U244: =HLOOKUP(T244,storageBMPScores,7,FALSE) ->  | V244: =SUM(IF(HLOOKUP(T244,storageBMPScores,8,FALSE),HLOOKUP(P244,collectionSystemsBMPScores,10,FALSE)*Q244,Q244)+S244+U244) ->  | W244: 129
W245: 130
W246: 131
... 111 more rows

Sheet testreport (hidden)
A5: Airfield Drainage Planning/Design/Retrofit | B5: POTW | C5: Modular Tanks | D5: =MOD((ROW()-5),A$27)+1 -> 1 | E5: =MOD(INT((ROW()-1)/A$27),B$27)+1 -> 2 | F5: =MOD(INT(INT((ROW()-1)/A$27)/B$27),C$27)+1 -> 1 | G5: =INDEX(A$5:A$12,D5) -> Airfield Drainage Planning/Design/Retrofit | H5: =INDEX(B$5:B$12,E5) -> lotw | I5: =INDEX(C$5:C$12,F5) -> Modular Tanks
A6: Apron Collection Systems | B6: lotw | C6: Ponds/Basins | D6: =MOD((ROW()-5),A$27)+1 -> 2 | E6: 2 | F6: 1 | G6: Apron Collection Systems | H6: lotw | I6: Modular Tanks
A7: Deicer-laden Snow Management | C7: lotd | D7: 3 | E7: 1 | F7: 2 | G7: Deicer-laden Snow Management | H7: POTW | I7: Ponds/Basins
D8: 1 | E8: 1 | F8: 2 | G8: Airfield Drainage Planning/Design/Retrofit | H8: POTW | I8: Ponds/Basins
D9: 2 | E9: 1 | F9: 2 | G9: Apron Collection Systems | H9: POTW | I9: Ponds/Basins
D10: 3 | E10: 2 | F10: 2 | G10: Deicer-laden Snow Management | H10: lotw | I10: Ponds/Basins
D11: 1 | E11: 2 | F11: 2 | G11: Airfield Drainage Planning/Design/Retrofit | H11: lotw | I11: Ponds/Basins
D12: 2 | E12: 2 | F12: 2 | G12: Apron Collection Systems | H12: lotw | I12: Ponds/Basins
D13: 3 | E13: 1 | F13: 3 | G13: Deicer-laden Snow Management | H13: POTW | I13: lotd
D14: 1 | E14: 1 | F14: 3 | G14: Airfield Drainage Planning/Design/Retrofit | H14: POTW | I14: lotd
D15: 2 | E15: 1 | F15: 3 | G15: Apron Collection Systems | H15: POTW | I15: lotd
D16: 3 | E16: 2 | F16: 3 | G16: Deicer-laden Snow Management | H16: lotw | I16: lotd
D17: 1 | E17: 2 | F17: 3 | G17: Airfield Drainage Planning/Design/Retrofit | H17: lotw | I17: lotd
D18: 2 | E18: 2 | F18: 3 | G18: Apron Collection Systems | H18: lotw | I18: lotd
D19: 3 | E19: 1 | F19: 1 | G19: Deicer-laden Snow Management | H19: POTW | I19: Modular Tanks
D20: 1 | E20: 1 | F20: 1 | G20: Airfield Drainage Planning/Design/Retrofit | H20: POTW | I20: Modular Tanks
D21: 2 | E21: 1 | F21: 1 | G21: Apron Collection Systems | H21: POTW | I21: Modular Tanks
D22: 3 | E22: 2 | F22: 1 | G22: Deicer-laden Snow Management | H22: lotw | I22: Modular Tanks
D23: 1 | E23: 2 | F23: 1 | G23: Airfield Drainage Planning/Design/Retrofit | H23: lotw | I23: Modular Tanks
D24: 2 | E24: 2 | F24: 1 | G24: Apron Collection Systems | H24: lotw | I24: Modular Tanks
D25: 3 | E25: 1 | F25: 2 | G25: Deicer-laden Snow Management | H25: POTW | I25: Ponds/Basins
D26: 1 | E26: 1 | F26: 2 | G26: Airfield Drainage Planning/Design/Retrofit | H26: POTW | I26: Ponds/Basins
A27: =COUNTA(A5:A14) -> 3 | B27: =COUNTA(B5:B14) -> 2 | C27: =COUNTA(C5:C14) -> 3 | D27: 2 | E27: 1 | F27: 2 | G27: Apron Collection Systems | H27: POTW | I27: Ponds/Basins
D28: 3 | E28: 2 | F28: 2 | G28: Deicer-laden Snow Management | H28: lotw | I28: Ponds/Basins
A30: =PRODUCT(A27:C27) -> 18
